Workbook

Sheet 1.Портфель кредитів
C1: ="ІНФОРМАЦІЙНО: Курс НБУ, станом на "&TEXT(C13,"dd.mm.yyyy")&"р." -> ІНФОРМАЦІЙНО: Курс НБУ, станом на 01.09.2023, 01.10.2023р.
C2: 840 | D2: 978 | R2: БУДЬТЕ УВАЖНІ! Дану операцію неможливо відмінити. Публічний паспорт необхідно формувати лише після збереження копії файлу.
A7: Банк заповнює всі стовпчики, що не мають заливки. | E7: Цей документ був підготовлений Фондом гарантування вкладів фізичних осіб (далі – Фонд) виключно для інформаційних цілей і не повинен вважатися як спонукання до будь-яких дій чи бездіяльності. Інформація, що міститься в цьому документі, була отримана з/або ґрунтується на джерелах, які вважаються надійними, але не є вичерпною та не може сприйматися як повна або актуальна. Зокрема, але не виключно, станом на дату придбання активів допускаються несуттєві зміни лота, в складі якого продаються такі активи. Під несуттєвими змінами лота слід розуміти такі зміни характеристик активів у складі такого лота, які впливають на його балансову вартість, але не більше ніж на 10 відсотків. Рішення покупця щодо будь-яких дій або бездіяльності повинно ґрунтуватися на власних оцінках та дослідженнях майна (активу/активів), котре реалізується. Фонд не несе відповідальності за рішення покупця та його наслідки, що ґрунтується на інформації, викладеній в даному документі. | RJ7: 2029-11-09
A8: Обов'язкове внесення всіх можливих даних.
A9: Всі грошові значення заповнюються в грн., або еквіваленті по курсу НБУ, станом на звітну дату.
A10: Клітинки із випадаючими списками заповнюються шляхом вибору відповідного значення зі списку.
A13: Звітна дата | B13: : | C13: 01.09.2023, 01.10.2023 | W13: =SUM(W16:W1048576) -> 205748063.8 | X13: 468139918.9 | Y13: 556320330 | Z13: 485120158.1 | AA13: 71200171.97 | AB13: 0
C14: Загальні дані | H14: Характеристика активу / фактори впливу | X14: Заборгованість
A15: unicid | B15: # | C15: Банк | D15: МФО банку | E15: Класифікація активу | F15: Область | G15: Ознака банкрутства/ліквідації (відповідно ЄДР на дату заповнення паспорту) | H15: Група активу (1 – права вимоги, 2 – майнові права, 3 – майнові права) | I15: Номер кредитного договору/Інвентарний номер | J15: Тип кредита/активу | K15: Валюта | L15: Відсоткова ставка номінальна | M15: Дата відкриття/Рік виготовлення (дата введення в експлуатацію) | N15: Дата закінчення | O15: Відмітка про знаходження права об'єкту в якості забезпечення під рефінансуванням в НБУ | P15: Наявність кредитного договору та договору застави | Q15: Кількість днів прострочення оплати боргу на дату заповнення | R15: Сума погашеної заборгованності у поточному році | S15: Сума останнього погашення заборгованності, грн. екв. | T15: Дата останнього погашення заборгованності | U15: Суб'єкт оціночної діяльності | V15: Дата оцінки активу | W15: Оціночна вартість, грн. екв. | X15: Заборгованість на дату формування ліквідаційної маси, грн. екв. | Y15: ="Заборгованстіь на дату заповнення паспорту, грн. екв. "&TEXT(C13,"dd.mm.yyyy")&"р. (тіло та проценти):" -> Заборгованстіь на дату заповнення паспорту, грн. екв. 01.09.2023, 01.10.2023р. (тіло та проценти): | Z15: Заборгованість по тілу кредиту на дату заповнення паспорту, грн. екв. | AA15: Забаргованність по нарах. % за кредитом на дату заповнення паспорту, грн. екв. | AB15: Штрафи та пені, грн. екв.
A16: 380816_1 | B16: 1 | C16: Банк Січ | D16: =IFERROR(VLOOKUP(C16,Hidden_Словник!$A$2:$C$106,3,FALSE),"") -> 380816 | E16: Ю/О право вимоги | F16: Київ | G16: Банкрутство | H16: 1 | I16: 203470-ГР-3581 | J16: Банківська гарантія | K16: Гривня | L16: 0.21 | M16: 2020-12-16 | N16: 2024-03-05 | O16: НІ | P16: Відсутні документи кредитної справи | Q16: 662 | R16: 0 | S16: 85924.06 | T16: 2021-04-16 | U16: ЗАТ «КОНСАЛТИНГЮРСЕРВІС» | V16: 2022-11-30 | W16: 51070.89 | X16: 3811260.69 | Y16: =IF(Z16+AA16>0,Z16+AA16,"") -> 4104355.56 | Z16: 3007341.89 | AA16: 1097013.67 | AB16: 0
A17: 380816_2 | B17: 2 | C17: Банк Січ | D17: =IFERROR(VLOOKUP(C17,Hidden_Словник!$A$2:$C$106,3,FALSE),"") -> 380816 | E17: Ю/О право вимоги | F17: Київ | G17: Банкрутство | H17: 1 | I17: 203470-ГР-3582 | J17: Банківська гарантія | K17: Гривня | L17: 0.21 | M17: 2020-12-16 | N17: 2024-03-05 | O17: НІ | P17: Наявні документи кредитної справи | Q17: 662 | R17: 0 | S17: 28542.24 | T17: 2021-04-16 | U17: ЗАТ «КОНСАЛТИНГЮРСЕРВІС» | V17: 2022-11-30 | W17: 16963.85 | X17: 1265959.02 | Y17: =IF(Z17+AA17>0,Z17+AA17,"") -> 1363319.11 | Z17: 998978.24 | AA17: 364340.87 | AB17: 0
A18: 380816_3 | B18: 3 | C18: Банк Січ | D18: =IFERROR(VLOOKUP(C18,Hidden_Словник!$A$2:$C$106,3,FALSE),"") -> 380816 | E18: Ю/О право вимоги | F18: Київ | G18: Діюче | H18: 1 | I18: 203570-ГР-2511 | J18: Банківська гарантія | K18: Гривня | L18: 0.3 | M18: 2020-09-07 | N18: 2021-03-02 | O18: НІ | P18: Відсутні документи кредитної справи | Q18: 961 | R18: 0 | S18: 0 | T18: - | U18: ЗАТ «КОНСАЛТИНГЮРСЕРВІС» | V18: 2022-11-30 | W18: 15708 | X18: 575384.72 | Y18: 652465.65 | Z18: 360000 | AA18: 292465.65 | AB18: 0
A19: 380816_4 | B19: 4 | C19: Банк Січ | D19: =IFERROR(VLOOKUP(C19,Hidden_Словник!$A$2:$C$106,3,FALSE),"") -> 380816 | E19: Ю/О право вимоги | F19: Київ | G19: Діюче | H19: 1 | I19: 173/13 | J19: кредитна лінія | K19: Гривня | L19: 0 | M19: 2013-11-15 | N19: 2014-05-30 | O19: НІ | P19: Наявні документи кредитної справи | Q19: 3378 | R19: 0 | S19: 17067.07 | T19: 2014-06-03 | U19: ЗАТ «КОНСАЛТИНГЮРСЕРВІС» | V19: 2022-11-30 | W19: 8331.98 | X19: 946816.1 | Y19: 946816.1 | Z19: 840000 | AA19: 106816.1 | AB19: 0
A20: 380816_5 | B20: 5 | C20: Банк Січ | D20: =IFERROR(VLOOKUP(C20,Hidden_Словник!$A$2:$C$106,3,FALSE),"") -> 380816 | E20: Ю/О право вимоги | F20: Київ | G20: Діюче | H20: 1 | I20: 176/13 | J20: кредитна лінія | K20: Гривня | L20: 0 | M20: 2013-11-15 | N20: 2014-05-30 | O20: НІ | P20: Наявні документи кредитної справи | Q20: 3378 | R20: 0 | S20: 17067.07 | T20: 2014-06-03 | U20: ЗАТ «КОНСАЛТИНГЮРСЕРВІС» | V20: 2022-11-30 | W20: 8364.3 | X20: 950488.76 | Y20: 950488.76 | Z20: 840000 | AA20: 110488.76 | AB20: 0
A21: 380816_6 | B21: 6 | C21: Банк Січ | D21: =IFERROR(VLOOKUP(C21,Hidden_Словник!$A$2:$C$106,3,FALSE),"") -> 380816 | E21: Ф/О право вимоги | F21: Київ | G21: Діюче | H21: 1 | I21: 258/19 | J21: кредит на споживчі потреби | K21: Гривня | L21: 0.38 | M21: 2019-08-29 | N21: 2021-08-26 | O21: НІ | P21: Наявні документи кредитної справи | Q21: 1064 | R21: 0 | S21: 105.2 | T21: 2021-08-09 | U21: ЗАТ «КОНСАЛТИНГЮРСЕРВІС» | V21: 2022-11-30 | W21: 2100.97 | X21: 328276.52 | Y21: 398052.46 | Z21: 152794.59 | AA21: 245257.87 | AB21: 0
A22: 380816_7 | B22: 7 | C22: Банк Січ | D22: =IFERROR(VLOOKUP(C22,Hidden_Словник!$A$2:$C$106,3,FALSE),"") -> 380816 | E22: Ю/О право вимоги | F22: Київ | G22: Діюче | H22: 1 | I22: 246/19 | J22: відновлювана кредитна лінія | K22: Гривня | L22: 0.24 | M22: 2019-08-19 | N22: 2020-12-25 | O22: НІ | P22: Наявні документи кредитної справи | Q22: 1095 | R22: 0 | S22: 0 | T22: - | U22: ЗАТ «КОНСАЛТИНГЮРСЕРВІС» | V22: 2022-11-30 | W22: 6117.06 | X22: 926826.94 | Y22: 1059166.31 | Z22: 598439.88 | AA22: 460726.43 | AB22: 0
A23: 380816_8 | B23: 8 | C23: Банк Січ | D23: =IFERROR(VLOOKUP(C23,Hidden_Словник!$A$2:$C$106,3,FALSE),"") -> 380816 | E23: Ю/О право вимоги | F23: Київ | G23: Діюче | H23: 1 | I23: 112/21 | J23: Кредитна лінія | K23: Гривня | L23: 0.1515 | M23: 2021-03-11 | N23: 2023-03-07 | O23: НІ | P23: Наявні документи кредитної справи | Q23: 350 | R23: 0 | S23: 129608.33 | T23: 2022-10-03 | U23: ЗАТ «КОНСАЛТИНГЮРСЕРВІС» | V23: 2022-11-30 | W23: 16772282.11 | X23: 25102591.67 | Y23: 28105991.66 | Z23: 24000000 | AA23: 4105991.66 | AB23: 0
A24: 380816_9 | B24: 9 | C24: Банк Січ | D24: =IFERROR(VLOOKUP(C24,Hidden_Словник!$A$2:$C$106,3,FALSE),"") -> 380816 | E24: Ю/О право вимоги | F24: Київ | G24: Діюче | H24: 1 | I24: 463/21 | J24: Кредитна лінія | K24: Гривня | L24: 0.1715 | M24: 2021-11-16 | N24: 2023-11-10 | O24: НІ | P24: Наявні документи кредитної справи | Q24: 318 | R24: 0 | S24: 339191.67 | T24: 2022-09-21 | U24: ЗАТ «КОНСАЛТИНГЮРСЕРВІС» | V24: 2022-11-30 | W24: 18056457.87 | X24: 27024580.56 | Y24: 30418374.97 | Z24: 26000000 | AA24: 4418374.97 | AB24: 0
A25: 380816_10 | B25: 10 | C25: Банк Січ | D25: =IFERROR(VLOOKUP(C25,Hidden_Словник!$A$2:$C$106,3,FALSE),"") -> 380816 | E25: Ю/О право вимоги | F25: Львівська | G25: Діюче | H25: 1 | I25: 394/21 | J25: Кредитна лінія | K25: Гривня | L25: 0.18 | M25: 2021-10-01 | N25: 2022-09-30 | O25: НІ | P25: Наявні документи кредитної справи | Q25: 339 | R25: 0 | S25: 607000 | T25: 2022-07-27 | U25: ЗАТ «КОНСАЛТИНГЮРСЕРВІС» | V25: 2022-11-30 | W25: 35455767.52 | X25: 53379580.02 | Y25: 60032300.02 | Z25: 48560000 | AA25: 11472300.02 | AB25: 0
A26: 380816_11 | B26: 11 | C26: Банк Січ | D26: =IFERROR(VLOOKUP(C26,Hidden_Словник!$A$2:$C$106,3,FALSE),"") -> 380816 | E26: Дебіторська заборгованість | F26: Львівська | G26: Діюче | H26: 1 | I26: 26002001204450 | J26: Дебіторська заборгованість | K26: Гривня | L26: 0 | M26: 2022-01-31 | N26: - | O26: НІ | P26: Наявні документи кредитної справи | Q26: 577 | R26: 0 | S26: 0 | T26: - | U26: ТОВ «ПІВНІЧНО-СХІДНА КОНСАЛТИНГОВА ГРУПА» | V26: 2022-11-30 | W26: 1 | X26: 845 | Y26: 845 | Z26: 845 | AA26: 0 | AB26: 0
A27: 380816_12 | B27: 12 | C27: Банк Січ | D27: =IFERROR(VLOOKUP(C27,Hidden_Словник!$A$2:$C$106,3,FALSE),"") -> 380816 | E27: Дебіторська заборгованість | F27: Львівська | G27: Діюче | H27: 1 | I27: 26001002204450 | J27: Дебіторська заборгованість | K27: Гривня | L27: 0 | M27: 2022-08-31 | N27: - | O27: НІ | P27: Наявні документи кредитної справи | Q27: 365 | R27: 0 | S27: 0 | T27: - | U27: ТОВ «ПІВНІЧНО-СХІДНА КОНСАЛТИНГОВА ГРУПА» | V27: 2022-11-30 | W27: 1 | X27: 400 | Y27: 400 | Z27: 400 | AA27: 0 | AB27: 0
A28: 380816_13 | B28: 13 | C28: Банк Січ | D28: =IFERROR(VLOOKUP(C28,Hidden_Словник!$A$2:$C$106,3,FALSE),"") -> 380816 | E28: Ю/О право вимоги | F28: Київ | G28: Діюче | H28: 1 | I28: 104/13 | J28: Невідновлювана мультивалютна кредитна лінія | K28: Гривня | L28: 0.23 | M28: 2013-08-12 | N28: 2018-08-08 | O28: НІ | P28: Відсутні документи кредитної справи | Q28: 1849 | R28: 0 | S28: 119054.95 | T28: 2019-03-28 | U28: ЗАТ «КОНСАЛТИНГЮРСЕРВІС»123 283,49 | V28: 2022-11-30 | W28: 82289.02 | X28: 123283.49 | Y28: 123283.49 | Z28: 123283.49 | AA28: 0 | AB28: 0
A29: 380816_14 | B29: 14 | C29: Банк Січ | D29: =IFERROR(VLOOKUP(C29,Hidden_Словник!$A$2:$C$106,3,FALSE),"") -> 380816 | E29: Дебіторська заборгованість | F29: Київ | G29: Діюче | H29: 1 | I29: 26004010664 | J29: Дебіторська заборгованість | K29: Гривня | L29: 0 | M29: 2022-06-30 | N29: - | O29: НІ | P29: Наявні документи кредитної справи | Q29: 427 | R29: 0 | S29: 0 | T29: - | U29: ТОВ «ПІВНІЧНО-СХІДНА КОНСАЛТИНГОВА ГРУПА» | V29: 2022-11-30 | W29: 616 | X29: 616 | Y29: 1600 | Z29: 1600 | AA29: 0 | AB29: 0
A30: 380816_15 | B30: 15 | C30: Банк Січ | D30: =IFERROR(VLOOKUP(C30,Hidden_Словник!$A$2:$C$106,3,FALSE),"") -> 380816 | E30: Ю/О майнові права | F30: Львівська | G30: Ліквідовано | H30: 2 | I30: 578/21 | J30: Фінансовий лізинг | K30: Гривня | L30: 0.09 | M30: 2021-12-31 | N30: 2041-12-31 | O30: НІ | P30: Наявні документи кредитної справи | Q30: 354 | R30: 0 | S30: 272263.68 | T30: 2022-07-29 | U30: ЗАТ «КОНСАЛТИНГЮРСЕРВІС»123 283,49 | V30: 2022-11-30 | W30: 12346381.3 | X30: 30 267 764,72 | Y30: 32253012.04 | Z30: 29383859.33 | AA30: 2869152.71 | AB30: 0
A31: 380816_16 | B31: 16 | C31: Банк Січ | D31: =IFERROR(VLOOKUP(C31,Hidden_Словник!$A$2:$C$106,3,FALSE),"") -> 380816 | E31: Інше | F31: Київ | G31: Інше | I31: 34092020000011 | J31: основні засоби | K31: Гривня | L31: 0 | M31: 2018-12-27 | N31: - | O31: НІ | Q31: - | R31: - | S31: - | T31: - | U31: ЗАТ «КОНСАЛТИНГЮРСЕРВІС»123 283,49 | V31: 2022-11-30 | W31: 1 | X31: 266.48 | Y31: 266.48 | Z31: 266.48 | AA31: 0 | AB31: 0
A32: 380816_17 | B32: 17 | C32: Банк Січ | D32: =IFERROR(VLOOKUP(C32,Hidden_Словник!$A$2:$C$106,3,FALSE),"") -> 380816 | E32: Інше | F32: Київ | G32: Інше | I32: 34092020000012 | J32: основні засоби | K32: Гривня | L32: 0 | M32: 2018-12-27 | N32: - | O32: НІ | Q32: - | R32: - | S32: - | T32: - | U32: ЗАТ «КОНСАЛТИНГЮРСЕРВІС»123 283,49 | V32: 2022-11-30 | W32: 1 | X32: 266.54 | Y32: 266.54 | Z32: 266.54 | AA32: 0 | AB32: 0
A33: 380816_18 | B33: 18 | C33: Банк Січ | D33: =IFERROR(VLOOKUP(C33,Hidden_Словник!$A$2:$C$106,3,FALSE),"") -> 380816 | E33: Інше | F33: Київ | G33: Інше | I33: 34092020000013 | J33: основні засоби | K33: Гривня | L33: 0 | M33: 2018-12-27 | N33: - | O33: НІ | Q33: - | R33: - | S33: - | T33: - | U33: ЗАТ «КОНСАЛТИНГЮРСЕРВІС»123 283,49 | V33: 2022-11-30 | W33: 1 | X33: 270.1 | Y33: 270.1 | Z33: 270.1 | AA33: 0 | AB33: 0
A34: 380816_19 | B34: 19 | C34: Банк Січ | D34: =IFERROR(VLOOKUP(C34,Hidden_Словник!$A$2:$C$106,3,FALSE),"") -> 380816 | E34: Інше | F34: Київ | G34: Інше | I34: 34092020000014 | J34: основні засоби | K34: Гривня | L34: 0 | M34: 2018-12-27 | N34: - | O34: НІ | Q34: - | R34: - | S34: - | T34: - | U34: ЗАТ «КОНСАЛТИНГЮРСЕРВІС»123 283,49 | V34: 2022-11-30 | W34: 416 | X34: 272.96 | Y34: 272.96 | Z34: 272.96 | AA34: 0 | AB34: 0
A35: 380816_20 | B35: 20 | C35: Банк Січ | D35: =IFERROR(VLOOKUP(C35,Hidden_Словник!$A$2:$C$106,3,FALSE),"") -> 380816 | E35: Інше | F35: Київ | G35: Інше | I35: 34092020000015 | J35: основні засоби | K35: Гривня | L35: 0 | M35: 2018-12-27 | N35: - | O35: НІ | Q35: - | R35: - | S35: - | T35: - | U35: ЗАТ «КОНСАЛТИНГЮРСЕРВІС»123 283,49 | V35: 2022-11-30 | W35: 1 | X35: 277.21 | Y35: 277.21 | Z35: 277.21 | AA35: 0 | AB35: 0
A36: 380816_21 | B36: 21 | C36: Банк Січ | D36: =IFERROR(VLOOKUP(C36,Hidden_Словник!$A$2:$C$106,3,FALSE),"") -> 380816 | E36: Інше | F36: Київ | G36: Інше | I36: 34092020000016 | J36: основні засоби | K36: Гривня | L36: 0 | M36: 2018-12-27 | N36: - | O36: НІ | Q36: - | R36: - | S36: - | T36: - | U36: ЗАТ «КОНСАЛТИНГЮРСЕРВІС»123 283,49 | V36: 2022-11-30 | W36: 1 | X36: 277.56 | Y36: 277.56 | Z36: 277.56 | AA36: 0 | AB36: 0
A37: 380816_22 | B37: 22 | C37: Банк Січ | D37: =IFERROR(VLOOKUP(C37,Hidden_Словник!$A$2:$C$106,3,FALSE),"") -> 380816 | E37: Інше | F37: Київ | G37: Інше | I37: 34092020000017 | J37: основні засоби | K37: Гривня | L37: 0 | M37: 2018-12-27 | N37: - | O37: НІ | Q37: - | R37: - | S37: - | T37: - | U37: ЗАТ «КОНСАЛТИНГЮРСЕРВІС»123 283,49 | V37: 2022-11-30 | W37: 1 | X37: 279.08 | Y37: 279.08 | Z37: 279.08 | AA37: 0 | AB37: 0
A38: 380816_23 | B38: 23 | C38: Банк Січ | D38: =IFERROR(VLOOKUP(C38,Hidden_Словник!$A$2:$C$106,3,FALSE),"") -> 380816 | E38: Інше | F38: Київ | G38: Інше | I38: 34092020000018 | J38: основні засоби | K38: Гривня | L38: 0 | M38: 2018-12-27 | N38: - | O38: НІ | Q38: - | R38: - | S38: - | T38: - | U38: ЗАТ «КОНСАЛТИНГЮРСЕРВІС»123 283,49 | V38: 2022-11-30 | W38: 1 | X38: 279.1 | Y38: 279.1 | Z38: 279.1 | AA38: 0 | AB38: 0
A39: 380816_24 | B39: 24 | C39: Банк Січ | D39: =IFERROR(VLOOKUP(C39,Hidden_Словник!$A$2:$C$106,3,FALSE),"") -> 380816 | E39: Інше | F39: Київ | G39: Інше | I39: 34092020000019 | J39: основні засоби | K39: Гривня | L39: 0 | M39: 2018-12-27 | N39: - | O39: НІ | Q39: - | R39: - | S39: - | T39: - | U39: ЗАТ «КОНСАЛТИНГЮРСЕРВІС»123 283,49 | V39: 2022-11-30 | W39: 1 | X39: 280.03 | Y39: 280.03 | Z39: 280.03 | AA39: 0 | AB39: 0
A40: 380816_25 | B40: 25 | C40: Банк Січ | D40: =IFERROR(VLOOKUP(C40,Hidden_Словник!$A$2:$C$106,3,FALSE),"") -> 380816 | E40: Інше | F40: Київ | G40: Інше | I40: 34092020000110 | J40: основні засоби | K40: Гривня | L40: 0 | M40: 2018-12-27 | N40: - | O40: НІ | Q40: - | R40: - | S40: - | T40: - | U40: ЗАТ «КОНСАЛТИНГЮРСЕРВІС»123 283,49 | V40: 2022-11-30 | W40: 1 | X40: 289.54 | Y40: 289.54 | Z40: 289.54 | AA40: 0 | AB40: 0
A41: 380816_26 | B41: 26 | C41: Банк Січ | D41: =IFERROR(VLOOKUP(C41,Hidden_Словник!$A$2:$C$106,3,FALSE),"") -> 380816 | E41: Інше | F41: Київ | G41: Інше | I41: 34092020000111 | J41: основні засоби | K41: Гривня | L41: 0 | M41: 2018-12-27 | N41: - | O41: НІ | Q41: - | R41: - | S41: - | T41: - | U41: ЗАТ «КОНСАЛТИНГЮРСЕРВІС»123 283,49 | V41: 2022-11-30 | W41: 1 | X41: 289.89 | Y41: 289.89 | Z41: 289.89 | AA41: 0 | AB41: 0
A42: 380816_27 | B42: 27 | C42: Банк Січ | D42: =IFERROR(VLOOKUP(C42,Hidden_Словник!$A$2:$C$106,3,FALSE),"") -> 380816 | E42: Інше | F42: Київ | G42: Інше | I42: 34092020000112 | J42: основні засоби | K42: Гривня | L42: 0 | M42: 2018-12-27 | N42: - | O42: НІ | Q42: - | R42: - | S42: - | T42: - | U42: ЗАТ «КОНСАЛТИНГЮРСЕРВІС»123 283,49 | V42: 2022-11-30 | W42: 66 | X42: 294.41 | Y42: 294.41 | Z42: 294.41 | AA42: 0 | AB42: 0
A43: 380816_28 | B43: 28 | C43: Банк Січ | D43: =IFERROR(VLOOKUP(C43,Hidden_Словник!$A$2:$C$106,3,FALSE),"") -> 380816 | E43: Інше | F43: Київ | G43: Інше | I43: 34092020000113 | J43: основні засоби | K43: Гривня | L43: 0 | M43: 2018-12-27 | N43: - | O43: НІ | Q43: - | R43: - | S43: - | T43: - | U43: ЗАТ «КОНСАЛТИНГЮРСЕРВІС»123 283,49 | V43: 2022-11-30 | W43: 66 | X43: 294.41 | Y43: 294.41 | Z43: 294.41 | AA43: 0 | AB43: 0
A44: 380816_29 | B44: 29 | C44: Банк Січ | D44: =IFERROR(VLOOKUP(C44,Hidden_Словник!$A$2:$C$106,3,FALSE),"") -> 380816 | E44: Інше | F44: Київ | G44: Інше | I44: 34092020000114 | J44: основні засоби | K44: Гривня | L44: 0 | M44: 2018-12-27 | N44: - | O44: НІ | Q44: - | R44: - | S44: - | T44: - | U44: ЗАТ «КОНСАЛТИНГЮРСЕРВІС»123 283,49 | V44: 2022-11-30 | W44: 455 | X44: 298.27 | Y44: 298.27 | Z44: 298.27 | AA44: 0 | AB44: 0
A45: 380816_30 | B45: 30 | C45: Банк Січ | D45: =IFERROR(VLOOKUP(C45,Hidden_Словник!$A$2:$C$106,3,FALSE),"") -> 380816 | E45: Інше | F45: Київ | G45: Інше | I45: 34092020000115 | J45: основні засоби | K45: Гривня | L45: 0 | M45: 2018-12-27 | N45: - | O45: НІ | Q45: - | R45: - | S45: - | T45: - | U45: ЗАТ «КОНСАЛТИНГЮРСЕРВІС»123 283,49 | V45: 2022-11-30 | W45: 1 | X45: 301.75 | Y45: 301.75 | Z45: 301.75 | AA45: 0 | AB45: 0
A46: 380816_31 | B46: 31 | C46: Банк Січ | D46: =IFERROR(VLOOKUP(C46,Hidden_Словник!$A$2:$C$106,3,FALSE),"") -> 380816 | E46: Інше | F46: Київ | G46: Інше | I46: 34092020000116 | J46: основні засоби | K46: Гривня | L46: 0 | M46: 2018-12-27 | N46: - | O46: НІ | Q46: - | R46: - | S46: - | T46: - | U46: ЗАТ «КОНСАЛТИНГЮРСЕРВІС»123 283,49 | V46: 2022-11-30 | W46: 1 | X46: 302.61 | Y46: 302.61 | Z46: 302.61 | AA46: 0 | AB46: 0
A47: 380816_32 | B47: 32 | C47: Банк Січ | D47: =IFERROR(VLOOKUP(C47,Hidden_Словник!$A$2:$C$106,3,FALSE),"") -> 380816 | E47: Інше | F47: Київ | G47: Інше | I47: 34092020000117 | J47: основні засоби | K47: Гривня | L47: 0 | M47: 2018-12-27 | N47: - | O47: НІ | Q47: - | R47: - | S47: - | T47: - | U47: ЗАТ «КОНСАЛТИНГЮРСЕРВІС»123 283,49 | V47: 2022-11-30 | W47: 1 | X47: 303.08 | Y47: 303.08 | Z47: 303.08 | AA47: 0 | AB47: 0
A48: 380816_33 | B48: 33 | C48: Банк Січ | D48: =IFERROR(VLOOKUP(C48,Hidden_Словник!$A$2:$C$106,3,FALSE),"") -> 380816 | E48: Інше | F48: Київ | G48: Інше | I48: 34092020000118 | J48: основні засоби | K48: Гривня | L48: 0 | M48: 2018-12-27 | N48: - | O48: НІ | Q48: - | R48: - | S48: - | T48: - | U48: ЗАТ «КОНСАЛТИНГЮРСЕРВІС»123 283,49 | V48: 2022-11-30 | W48: 1 | X48: 305.44 | Y48: 305.44 | Z48: 305.44 | AA48: 0 | AB48: 0
A49: 380816_34 | B49: 34 | C49: Банк Січ | D49: =IFERROR(VLOOKUP(C49,Hidden_Словник!$A$2:$C$106,3,FALSE),"") -> 380816 | E49: Інше | F49: Київ | G49: Інше | I49: 34092020000119 | J49: основні засоби | K49: Гривня | L49: 0 | M49: 2018-12-27 | N49: - | O49: НІ | Q49: - | R49: - | S49: - | T49: - | U49: ЗАТ «КОНСАЛТИНГЮРСЕРВІС»123 283,49 | V49: 2022-11-30 | W49: 1 | X49: 306.49 | Y49: 306.49 | Z49: 306.49 | AA49: 0 | AB49: 0
A50: 380816_35 | B50: 35 | C50: Банк Січ | D50: =IFERROR(VLOOKUP(C50,Hidden_Словник!$A$2:$C$106,3,FALSE),"") -> 380816 | E50: Інше | F50: Київ | G50: Інше | I50: 34092020000120 | J50: основні засоби | K50: Гривня | L50: 0 | M50: 2018-12-27 | N50: - | O50: НІ | Q50: - | R50: - | S50: - | T50: - | U50: ЗАТ «КОНСАЛТИНГЮРСЕРВІС»123 283,49 | V50: 2022-11-30 | W50: 1 | X50: 308.01 | Y50: 308.01 | Z50: 308.01 | AA50: 0 | AB50: 0
A51: 380816_36 | B51: 36 | C51: Банк Січ | D51: =IFERROR(VLOOKUP(C51,Hidden_Словник!$A$2:$C$106,3,FALSE),"") -> 380816 | E51: Інше | F51: Київ | G51: Інше | I51: 34092020000121 | J51: основні засоби | K51: Гривня | L51: 0 | M51: 2018-12-27 | N51: - | O51: НІ | Q51: - | R51: - | S51: - | T51: - | U51: ЗАТ «КОНСАЛТИНГЮРСЕРВІС»123 283,49 | V51: 2022-11-30 | W51: 475 | X51: 311.26 | Y51: 311.26 | Z51: 311.26 | AA51: 0 | AB51: 0
A52: 380816_37 | B52: 37 | C52: Банк Січ | D52: =IFERROR(VLOOKUP(C52,Hidden_Словник!$A$2:$C$106,3,FALSE),"") -> 380816 | E52: Інше | F52: Київ | G52: Інше | I52: 34092020000122 | J52: основні засоби | K52: Гривня | L52: 0 | M52: 2018-12-27 | N52: - | O52: НІ | Q52: - | R52: - | S52: - | T52: - | U52: ЗАТ «КОНСАЛТИНГЮРСЕРВІС»123 283,49 | V52: 2022-11-30 | W52: 1 | X52: 311.92 | Y52: 311.92 | Z52: 311.92 | AA52: 0 | AB52: 0
A53: 380816_38 | B53: 38 | C53: Банк Січ | D53: =IFERROR(VLOOKUP(C53,Hidden_Словник!$A$2:$C$106,3,FALSE),"") -> 380816 | E53: Інше | F53: Київ | G53: Інше | I53: 34092020000123 | J53: основні засоби | K53: Гривня | L53: 0 | M53: 2018-12-27 | N53: - | O53: НІ | Q53: - | R53: - | S53: - | T53: - | U53: ЗАТ «КОНСАЛТИНГЮРСЕРВІС»123 283,49 | V53: 2022-11-30 | W53: 1 | X53: 315.25 | Y53: 315.25 | Z53: 315.25 | AA53: 0 | AB53: 0
A54: 380816_39 | B54: 39 | C54: Банк Січ | D54: =IFERROR(VLOOKUP(C54,Hidden_Словник!$A$2:$C$106,3,FALSE),"") -> 380816 | E54: Інше | F54: Київ | G54: Інше | I54: 34092020000124 | J54: основні засоби | K54: Гривня | L54: 0 | M54: 2018-12-27 | N54: - | O54: НІ | Q54: - | R54: - | S54: - | T54: - | U54: ЗАТ «КОНСАЛТИНГЮРСЕРВІС»123 283,49 | V54: 2022-11-30 | W54: 1 | X54: 317.06 | Y54: 317.06 | Z54: 317.06 | AA54: 0 | AB54: 0
A55: 380816_40 | B55: 40 | C55: Банк Січ | D55: =IFERROR(VLOOKUP(C55,Hidden_Словник!$A$2:$C$106,3,FALSE),"") -> 380816 | E55: Інше | F55: Київ | G55: Інше | I55: 34092020000125 | J55: основні засоби | K55: Гривня | L55: 0 | M55: 2018-12-27 | N55: - | O55: НІ | Q55: - | R55: - | S55: - | T55: - | U55: ЗАТ «КОНСАЛТИНГЮРСЕРВІС»123 283,49 | V55: 2022-11-30 | W55: 1 | X55: 319.09 | Y55: 319.09 | Z55: 319.09 | AA55: 0 | AB55: 0
A56: 380816_41 | B56: 41 | C56: Банк Січ | D56: =IFERROR(VLOOKUP(C56,Hidden_Словник!$A$2:$C$106,3,FALSE),"") -> 380816 | E56: Інше | F56: Київ | G56: Інше | I56: 34092020000126 | J56: основні засоби | K56: Гривня | L56: 0 | M56: 2018-12-27 | N56: - | O56: НІ | Q56: - | R56: - | S56: - | T56: - | U56: ЗАТ «КОНСАЛТИНГЮРСЕРВІС»123 283,49 | V56: 2022-11-30 | W56: 1 | X56: 325.04 | Y56: 325.04 | Z56: 325.04 | AA56: 0 | AB56: 0
A57: 380816_42 | B57: 42 | C57: Банк Січ | D57: =IFERROR(VLOOKUP(C57,Hidden_Словник!$A$2:$C$106,3,FALSE),"") -> 380816 | E57: Інше | F57: Київ | G57: Інше | I57: 34092020000127 | J57: основні засоби | K57: Гривня | L57: 0 | M57: 2018-12-27 | N57: - | O57: НІ | Q57: - | R57: - | S57: - | T57: - | U57: ЗАТ «КОНСАЛТИНГЮРСЕРВІС»123 283,49 | V57: 2022-11-30 | W57: 1 | X57: 331.9 | Y57: 331.9 | Z57: 331.9 | AA57: 0 | AB57: 0
A58: 380816_43 | B58: 43 | C58: Банк Січ | D58: =IFERROR(VLOOKUP(C58,Hidden_Словник!$A$2:$C$106,3,FALSE),"") -> 380816 | E58: Інше | F58: Київ | G58: Інше | I58: 34092020000128 | J58: основні засоби | K58: Гривня | L58: 0 | M58: 2018-12-27 | N58: - | O58: НІ | Q58: - | R58: - | S58: - | T58: - | U58: ЗАТ «КОНСАЛТИНГЮРСЕРВІС»123 283,49 | V58: 2022-11-30 | W58: 1 | X58: 335.06 | Y58: 335.06 | Z58: 335.06 | AA58: 0 | AB58: 0
A59: 380816_44 | B59: 44 | C59: Банк Січ | D59: =IFERROR(VLOOKUP(C59,Hidden_Словник!$A$2:$C$106,3,FALSE),"") -> 380816 | E59: Інше | F59: Київ | G59: Інше | I59: 34092020000129 | J59: основні засоби | K59: Гривня | L59: 0 | M59: 2018-12-27 | N59: - | O59: НІ | Q59: - | R59: - | S59: - | T59: - | U59: ЗАТ «КОНСАЛТИНГЮРСЕРВІС»123 283,49 | V59: 2022-11-30 | W59: 1 | X59: 347.3 | Y59: 347.3 | Z59: 347.3 | AA59: 0 | AB59: 0
A60: 380816_45 | B60: 45 | C60: Банк Січ | D60: =IFERROR(VLOOKUP(C60,Hidden_Словник!$A$2:$C$106,3,FALSE),"") -> 380816 | E60: Інше | F60: Київ | G60: Інше | I60: 34092020000130 | J60: основні засоби | K60: Гривня | L60: 0 | M60: 2018-12-27 | N60: - | O60: НІ | Q60: - | R60: - | S60: - | T60: - | U60: ЗАТ «КОНСАЛТИНГЮРСЕРВІС»123 283,49 | V60: 2022-11-30 | W60: 1 | X60: 349.66 | Y60: 349.66 | Z60: 349.66 | AA60: 0 | AB60: 0
A61: 380816_46 | B61: 46 | C61: Банк Січ | D61: =IFERROR(VLOOKUP(C61,Hidden_Словник!$A$2:$C$106,3,FALSE),"") -> 380816 | E61: Інше | F61: Київ | G61: Інше | I61: 34092020000131 | J61: основні засоби | K61: Гривня | L61: 0 | M61: 2018-12-27 | N61: - | O61: НІ | Q61: - | R61: - | S61: - | T61: - | U61: ЗАТ «КОНСАЛТИНГЮРСЕРВІС»123 283,49 | V61: 2022-11-30 | W61: 536 | X61: 351.84 | Y61: 351.84 | Z61: 351.84 | AA61: 0 | AB61: 0
A62: 380816_47 | B62: 47 | C62: Банк Січ | D62: =IFERROR(VLOOKUP(C62,Hidden_Словник!$A$2:$C$106,3,FALSE),"") -> 380816 | E62: Інше | F62: Київ | G62: Інше | I62: 34092020000132 | J62: основні засоби | K62: Гривня | L62: 0 | M62: 2018-12-27 | N62: - | O62: НІ | Q62: - | R62: - | S62: - | T62: - | U62: ЗАТ «КОНСАЛТИНГЮРСЕРВІС»123 283,49 | V62: 2022-11-30 | W62: 1 | X62: 353.2 | Y62: 353.2 | Z62: 353.2 | AA62: 0 | AB62: 0
A63: 380816_48 | B63: 48 | C63: Банк Січ | D63: =IFERROR(VLOOKUP(C63,Hidden_Словник!$A$2:$C$106,3,FALSE),"") -> 380816 | E63: Інше | F63: Київ | G63: Інше | I63: 34092020000133 | J63: основні засоби | K63: Гривня | L63: 0 | M63: 2018-12-27 | N63: - | O63: НІ | Q63: - | R63: - | S63: - | T63: - | U63: ЗАТ «КОНСАЛТИНГЮРСЕРВІС»123 283,49 | V63: 2022-11-30 | W63: 1 | X63: 360.56 | Y63: 360.56 | Z63: 360.56 | AA63: 0 | AB63: 0
A64: 380816_49 | B64: 49 | C64: Банк Січ | D64: =IFERROR(VLOOKUP(C64,Hidden_Словник!$A$2:$C$106,3,FALSE),"") -> 380816 | E64: Інше | F64: Київ | G64: Інше | I64: 34092020000134 | J64: основні засоби | K64: Гривня | L64: 0 | M64: 2018-12-27 | N64: - | O64: НІ | Q64: - | R64: - | S64: - | T64: - | U64: ЗАТ «КОНСАЛТИНГЮРСЕРВІС»123 283,49 | V64: 2022-11-30 | W64: 1 | X64: 360.66 | Y64: 360.66 | Z64: 360.66 | AA64: 0 | AB64: 0
A65: 380816_50 | B65: 50 | C65: Банк Січ | D65: =IFERROR(VLOOKUP(C65,Hidden_Словник!$A$2:$C$106,3,FALSE),"") -> 380816 | E65: Інше | F65: Київ | G65: Інше | I65: 34092020000135 | J65: основні засоби | K65: Гривня | L65: 0 | M65: 2018-12-27 | N65: - | O65: НІ | Q65: - | R65: - | S65: - | T65: - | U65: ЗАТ «КОНСАЛТИНГЮРСЕРВІС»123 283,49 | V65: 2022-11-30 | W65: 1 | X65: 361.53 | Y65: 361.53 | Z65: 361.53 | AA65: 0 | AB65: 0
A66: 380816_51 | B66: 51 | C66: Банк Січ | D66: =IFERROR(VLOOKUP(C66,Hidden_Словник!$A$2:$C$106,3,FALSE),"") -> 380816 | E66: Інше | F66: Київ | G66: Інше | I66: 34092020000136 | J66: основні засоби | K66: Гривня | L66: 0 | M66: 2018-12-27 | N66: - | O66: НІ | Q66: - | R66: - | S66: - | T66: - | U66: ЗАТ «КОНСАЛТИНГЮРСЕРВІС»123 283,49 | V66: 2022-11-30 | W66: 1 | X66: 362.05 | Y66: 362.05 | Z66: 362.05 | AA66: 0 | AB66: 0
A67: 380816_52 | B67: 52 | C67: Банк Січ | D67: =IFERROR(VLOOKUP(C67,Hidden_Словник!$A$2:$C$106,3,FALSE),"") -> 380816 | E67: Інше | F67: Київ | G67: Інше | I67: 34092020000137 | J67: основні засоби | K67: Гривня | L67: 0 | M67: 2018-12-27 | N67: - | O67: НІ | Q67: - | R67: - | S67: - | T67: - | U67: ЗАТ «КОНСАЛТИНГЮРСЕРВІС»123 283,49 | V67: 2022-11-30 | W67: 1 | X67: 370.21 | Y67: 370.21 | Z67: 370.21 | AA67: 0 | AB67: 0
A68: 380816_53 | B68: 53 | C68: Банк Січ | D68: =IFERROR(VLOOKUP(C68,Hidden_Словник!$A$2:$C$106,3,FALSE),"") -> 380816 | E68: Інше | F68: Київ | G68: Інше | I68: 34092020000138 | J68: основні засоби | K68: Гривня | L68: 0 | M68: 2018-12-27 | N68: - | O68: НІ | Q68: - | R68: - | S68: - | T68: - | U68: ЗАТ «КОНСАЛТИНГЮРСЕРВІС»123 283,49 | V68: 2022-11-30 | W68: 576 | X68: 377.75 | Y68: 377.75 | Z68: 377.75 | AA68: 0 | AB68: 0
A69: 380816_54 | B69: 54 | C69: Банк Січ | D69: =IFERROR(VLOOKUP(C69,Hidden_Словник!$A$2:$C$106,3,FALSE),"") -> 380816 | E69: Інше | F69: Київ | G69: Інше | I69: 34092020000139 | J69: основні засоби | K69: Гривня | L69: 0 | M69: 2018-12-27 | N69: - | O69: НІ | Q69: - | R69: - | S69: - | T69: - | U69: ЗАТ «КОНСАЛТИНГЮРСЕРВІС»123 283,49 | V69: 2022-11-30 | W69: 334 | X69: 387.55 | Y69: 387.55 | Z69: 387.55 | AA69: 0 | AB69: 0
A70: 380816_55 | B70: 55 | C70: Банк Січ | D70: =IFERROR(VLOOKUP(C70,Hidden_Словник!$A$2:$C$106,3,FALSE),"") -> 380816 | E70: Інше | F70: Київ | G70: Інше | I70: 34092020000140 | J70: основні засоби | K70: Гривня | L70: 0 | M70: 2018-12-27 | N70: - | O70: НІ | Q70: - | R70: - | S70: - | T70: - | U70: ЗАТ «КОНСАЛТИНГЮРСЕРВІС»123 283,49 | V70: 2022-11-30 | W70: 334 | X70: 387.56 | Y70: 387.56 | Z70: 387.56 | AA70: 0 | AB70: 0
A71: 380816_56 | B71: 56 | C71: Банк Січ | D71: =IFERROR(VLOOKUP(C71,Hidden_Словник!$A$2:$C$106,3,FALSE),"") -> 380816 | E71: Інше | F71: Київ | G71: Інше | I71: 34092020000141 | J71: основні засоби | K71: Гривня | L71: 0 | M71: 2018-12-27 | N71: - | O71: НІ | Q71: - | R71: - | S71: - | T71: - | U71: ЗАТ «КОНСАЛТИНГЮРСЕРВІС»123 283,49 | V71: 2022-11-30 | W71: 334 | X71: 387.56 | Y71: 387.56 | Z71: 387.56 | AA71: 0 | AB71: 0
A72: 380816_57 | B72: 57 | C72: Банк Січ | D72: =IFERROR(VLOOKUP(C72,Hidden_Словник!$A$2:$C$106,3,FALSE),"") -> 380816 | E72: Інше | F72: Київ | G72: Інше | I72: 34092020000142 | J72: основні засоби | K72: Гривня | L72: 0 | M72: 2018-12-27 | N72: - | O72: НІ | Q72: - | R72: - | S72: - | T72: - | U72: ЗАТ «КОНСАЛТИНГЮРСЕРВІС»123 283,49 | V72: 2022-11-30 | W72: 1 | X72: 388.16 | Y72: 388.16 | Z72: 388.16 | AA72: 0 | AB72: 0
A73: 380816_58 | B73: 58 | C73: Банк Січ | D73: =IFERROR(VLOOKUP(C73,Hidden_Словник!$A$2:$C$106,3,FALSE),"") -> 380816 | E73: Інше | F73: Київ | G73: Інше | I73: 34092020000143 | J73: основні засоби | K73: Гривня | L73: 0 | M73: 2018-12-27 | N73: - | O73: НІ | Q73: - | R73: - | S73: - | T73: - | U73: ЗАТ «КОНСАЛТИНГЮРСЕРВІС»123 283,49 | V73: 2022-11-30 | W73: 1 | X73: 408.43 | Y73: 408.43 | Z73: 408.43 | AA73: 0 | AB73: 0
A74: 380816_59 | B74: 59 | C74: Банк Січ | D74: =IFERROR(VLOOKUP(C74,Hidden_Словник!$A$2:$C$106,3,FALSE),"") -> 380816 | E74: Інше | F74: Київ | G74: Інше | I74: 34092020000144 | J74: основні засоби | K74: Гривня | L74: 0 | M74: 2018-12-27 | N74: - | O74: НІ | Q74: - | R74: - | S74: - | T74: - | U74: ЗАТ «КОНСАЛТИНГЮРСЕРВІС»123 283,49 | V74: 2022-11-30 | W74: 1 | X74: 411.89 | Y74: 411.89 | Z74: 411.89 | AA74: 0 | AB74: 0
A75: 380816_60 | B75: 60 | C75: Банк Січ | D75: =IFERROR(VLOOKUP(C75,Hidden_Словник!$A$2:$C$106,3,FALSE),"") -> 380816 | E75: Інше | F75: Київ | G75: Інше | I75: 34092020000145 | J75: основні засоби | K75: Гривня | L75: 0 | M75: 2018-12-27 | N75: - | O75: НІ | Q75: - | R75: - | S75: - | T75: - | U75: ЗАТ «КОНСАЛТИНГЮРСЕРВІС»123 283,49 | V75: 2022-11-30 | W75: 1 | X75: 413.42 | Y75: 413.42 | Z75: 413.42 | AA75: 0 | AB75: 0
A76: 380816_61 | B76: 61 | C76: Банк Січ | D76: =IFERROR(VLOOKUP(C76,Hidden_Словник!$A$2:$C$106,3,FALSE),"") -> 380816 | E76: Інше | F76: Київ | G76: Інше | I76: 34092020000146 | J76: основні засоби | K76: Гривня | L76: 0 | M76: 2018-12-27 | N76: - | O76: НІ | Q76: - | R76: - | S76: - | T76: - | U76: ЗАТ «КОНСАЛТИНГЮРСЕРВІС»123 283,49 | V76: 2022-11-30 | W76: 1 | X76: 423.22 | Y76: 423.22 | Z76: 423.22 | AA76: 0 | AB76: 0
A77: 380816_62 | B77: 62 | C77: Банк Січ | D77: =IFERROR(VLOOKUP(C77,Hidden_Словник!$A$2:$C$106,3,FALSE),"") -> 380816 | E77: Інше | F77: Київ | G77: Інше | I77: 34092020000147 | J77: основні засоби | K77: Гривня | L77: 0 | M77: 2018-12-27 | N77: - | O77: НІ | Q77: - | R77: - | S77: - | T77: - | U77: ЗАТ «КОНСАЛТИНГЮРСЕРВІС»123 283,49 | V77: 2022-11-30 | W77: 1 | X77: 423.33 | Y77: 423.33 | Z77: 423.33 | AA77: 0 | AB77: 0
A78: 380816_63 | B78: 63 | C78: Банк Січ | D78: =IFERROR(VLOOKUP(C78,Hidden_Словник!$A$2:$C$106,3,FALSE),"") -> 380816 | E78: Інше | F78: Київ | G78: Інше | I78: 34092020000148 | J78: основні засоби | K78: Гривня | L78: 0 | M78: 2018-12-27 | N78: - | O78: НІ | Q78: - | R78: - | S78: - | T78: - | U78: ЗАТ «КОНСАЛТИНГЮРСЕРВІС»123 283,49 | V78: 2022-11-30 | W78: 1 | X78: 425.82 | Y78: 425.82 | Z78: 425.82 | AA78: 0 | AB78: 0
A79: 380816_64 | B79: 64 | C79: Банк Січ | D79: =IFERROR(VLOOKUP(C79,Hidden_Словник!$A$2:$C$106,3,FALSE),"") -> 380816 | E79: Інше | F79: Київ | G79: Інше | I79: 34092020000149 | J79: основні засоби | K79: Гривня | L79: 0 | M79: 2018-12-27 | N79: - | O79: НІ | Q79: - | R79: - | S79: - | T79: - | U79: ЗАТ «КОНСАЛТИНГЮРСЕРВІС»123 283,49 | V79: 2022-11-30 | W79: 1 | X79: 434.4 | Y79: 434.4 | Z79: 434.4 | AA79: 0 | AB79: 0
A80: 380816_65 | B80: 65 | C80: Банк Січ | D80: =IFERROR(VLOOKUP(C80,Hidden_Словник!$A$2:$C$106,3,FALSE),"") -> 380816 | E80: Інше | F80: Київ | G80: Інше | I80: 34092020000150 | J80: основні засоби | K80: Гривня | L80: 0 | M80: 2018-12-27 | N80: - | O80: НІ | Q80: - | R80: - | S80: - | T80: - | U80: ЗАТ «КОНСАЛТИНГЮРСЕРВІС»123 283,49 | V80: 2022-11-30 | W80: 334 | X80: 435.11 | Y80: 435.11 | Z80: 435.11 | AA80: 0 | AB80: 0
A81: 380816_66 | B81: 66 | C81: Банк Січ | D81: =IFERROR(VLOOKUP(C81,Hidden_Словник!$A$2:$C$106,3,FALSE),"") -> 380816 | E81: Інше | F81: Київ | G81: Інше | I81: 34092020000151 | J81: основні засоби | K81: Гривня | L81: 0 | M81: 2018-12-27 | N81: - | O81: НІ | Q81: - | R81: - | S81: - | T81: - | U81: ЗАТ «КОНСАЛТИНГЮРСЕРВІС»123 283,49 | V81: 2022-11-30 | W81: 1 | X81: 438.29 | Y81: =IF(Z81+AA81>0,Z81+AA81,"") -> 438.29 | Z81: 438.29 | AA81: 0 | AB81: 0
A82: 380816_67 | B82: 67 | C82: Банк Січ | D82: =IFERROR(VLOOKUP(C82,Hidden_Словник!$A$2:$C$106,3,FALSE),"") -> 380816 | E82: Інше | F82: Київ | G82: Інше | I82: 34092020000152 | J82: основні засоби | K82: Гривня | L82: 0 | M82: 2018-12-27 | N82: - | O82: НІ | Q82: - | R82: - | S82: - | T82: - | U82: ЗАТ «КОНСАЛТИНГЮРСЕРВІС»123 283,49 | V82: 2022-11-30 | W82: 66 | X82: 443.06 | Y82: 443.06 | Z82: 443.06 | AA82: 0 | AB82: 0
A83: 380816_68 | B83: 68 | C83: Банк Січ | D83: =IFERROR(VLOOKUP(C83,Hidden_Словник!$A$2:$C$106,3,FALSE),"") -> 380816 | E83: Інше | F83: Київ | G83: Інше | I83: 34092020000153 | J83: основні засоби | K83: Гривня | L83: 0 | M83: 2018-12-27 | N83: - | O83: НІ | Q83: - | R83: - | S83: - | T83: - | U83: ЗАТ «КОНСАЛТИНГЮРСЕРВІС»123 283,49 | V83: 2022-11-30 | W83: 66 | X83: 443.06 | Y83: 443.06 | Z83: 443.06 | AA83: 0 | AB83: 0
A84: 380816_69 | B84: 69 | C84: Банк Січ | D84: =IFERROR(VLOOKUP(C84,Hidden_Словник!$A$2:$C$106,3,FALSE),"") -> 380816 | E84: Інше | F84: Київ | G84: Інше | I84: 34092020000154 | J84: основні засоби | K84: Гривня | L84: 0 | M84: 2018-12-27 | N84: - | O84: НІ | Q84: - | R84: - | S84: - | T84: - | U84: ЗАТ «КОНСАЛТИНГЮРСЕРВІС»123 283,49 | V84: 2022-11-30 | W84: 66 | X84: 443.06 | Y84: 443.06 | Z84: 443.06 | AA84: 0 | AB84: 0
A85: 380816_70 | B85: 70 | C85: Банк Січ | D85: =IFERROR(VLOOKUP(C85,Hidden_Словник!$A$2:$C$106,3,FALSE),"") -> 380816 | E85: Інше | F85: Київ | G85: Інше | I85: 34092020000155 | J85: основні засоби | K85: Гривня | L85: 0 | M85: 2018-12-27 | N85: - | O85: НІ | Q85: - | R85: - | S85: - | T85: - | U85: ЗАТ «КОНСАЛТИНГЮРСЕРВІС»123 283,49 | V85: 2022-11-30 | W85: 1 | X85: 443.27 | Y85: 443.27 | Z85: 443.27 | AA85: 0 | AB85: 0
A86: 380816_71 | B86: 71 | C86: Банк Січ | D86: =IFERROR(VLOOKUP(C86,Hidden_Словник!$A$2:$C$106,3,FALSE),"") -> 380816 | E86: Інше | F86: Київ | G86: Інше | I86: 34092020000156 | J86: основні засоби | K86: Гривня | L86: 0 | M86: 2018-12-27 | N86: - | O86: НІ | Q86: - | R86: - | S86: - | T86: - | U86: ЗАТ «КОНСАЛТИНГЮРСЕРВІС»123 283,49 | V86: 2022-11-30 | W86: 1 | X86: 444.7 | Y86: 444.7 | Z86: 444.7 | AA86: 0 | AB86: 0
A87: 380816_72 | B87: 72 | C87: Банк Січ | D87: =IFERROR(VLOOKUP(C87,Hidden_Словник!$A$2:$C$106,3,FALSE),"") -> 380816 | E87: Інше | F87: Київ | G87: Інше | I87: 34092020000157 | J87: основні засоби | K87: Гривня | L87: 0 | M87: 2018-12-27 | N87: - | O87: НІ | Q87: - | R87: - | S87: - | T87: - | U87: ЗАТ «КОНСАЛТИНГЮРСЕРВІС»123 283,49 | V87: 2022-11-30 | W87: 1 | X87: 445.51 | Y87: 445.51 | Z87: 445.51 | AA87: 0 | AB87: 0
A88: 380816_73 | B88: 73 | C88: Банк Січ | D88: =IFERROR(VLOOKUP(C88,Hidden_Словник!$A$2:$C$106,3,FALSE),"") -> 380816 | E88: Інше | F88: Київ | G88: Інше | I88: 34092020000158 | J88: основні засоби | K88: Гривня | L88: 0 | M88: 2018-12-27 | N88: - | O88: НІ | Q88: - | R88: - | S88: - | T88: - | U88: ЗАТ «КОНСАЛТИНГЮРСЕРВІС»123 283,49 | V88: 2022-11-30 | W88: 2666 | X88: 452.41 | Y88: 452.41 | Z88: 452.41 | AA88: 0 | AB88: 0
A89: 380816_74 | B89: 74 | C89: Банк Січ | D89: =IFERROR(VLOOKUP(C89,Hidden_Словник!$A$2:$C$106,3,FALSE),"") -> 380816 | E89: Інше | F89: Київ | G89: Інше | I89: 34092020000159 | J89: основні засоби | K89: Гривня | L89: 0 | M89: 2018-12-27 | N89: - | O89: НІ | Q89: - | R89: - | S89: - | T89: - | U89: ЗАТ «КОНСАЛТИНГЮРСЕРВІС»123 283,49 | V89: 2022-11-30 | W89: 2666 | X89: 452.41 | Y89: 452.41 | Z89: 452.41 | AA89: 0 | AB89: 0
A90: 380816_75 | B90: 75 | C90: Банк Січ | D90: =IFERROR(VLOOKUP(C90,Hidden_Словник!$A$2:$C$106,3,FALSE),"") -> 380816 | E90: Інше | F90: Київ | G90: Інше | I90: 34092020000160 | J90: основні засоби | K90: Гривня | L90: 0 | M90: 2018-12-27 | N90: - | O90: НІ | Q90: - | R90: - | S90: - | T90: - | U90: ЗАТ «КОНСАЛТИНГЮРСЕРВІС»123 283,49 | V90: 2022-11-30 | W90: 2666 | X90: 452.41 | Y90: 452.41 | Z90: 452.41 | AA90: 0 | AB90: 0
A91: 380816_76 | B91: 76 | C91: Банк Січ | D91: =IFERROR(VLOOKUP(C91,Hidden_Словник!$A$2:$C$106,3,FALSE),"") -> 380816 | E91: Інше | F91: Київ | G91: Інше | I91: 34092020000161 | J91: основні засоби | K91: Гривня | L91: 0 | M91: 2018-12-27 | N91: - | O91: НІ | Q91: - | R91: - | S91: - | T91: - | U91: ЗАТ «КОНСАЛТИНГЮРСЕРВІС»123 283,49 | V91: 2022-11-30 | W91: 66 | X91: 455.45 | Y91: 455.45 | Z91: 455.45 | AA91: 0 | AB91: 0
A92: 380816_77 | B92: 77 | C92: Банк Січ | D92: =IFERROR(VLOOKUP(C92,Hidden_Словник!$A$2:$C$106,3,FALSE),"") -> 380816 | E92: Інше | F92: Київ | G92: Інше | I92: 34092020000162 | J92: основні засоби | K92: Гривня | L92: 0 | M92: 2018-12-27 | N92: - | O92: НІ | Q92: - | R92: - | S92: - | T92: - | U92: ЗАТ «КОНСАЛТИНГЮРСЕРВІС»123 283,49 | V92: 2022-11-30 | W92: 698 | X92: 458.18 | Y92: 458.18 | Z92: 458.18 | AA92: 0 | AB92: 0
A93: 380816_78 | B93: 78 | C93: Банк Січ | D93: =IFERROR(VLOOKUP(C93,Hidden_Словник!$A$2:$C$106,3,FALSE),"") -> 380816 | E93: Інше | F93: Київ | G93: Інше | I93: 34092020000163 | J93: основні засоби | K93: Гривня | L93: 0 | M93: 2018-12-27 | N93: - | O93: НІ | Q93: - | R93: - | S93: - | T93: - | U93: ЗАТ «КОНСАЛТИНГЮРСЕРВІС»123 283,49 | V93: 2022-11-30 | W93: 2666 | X93: 458.55 | Y93: 458.55 | Z93: 458.55 | AA93: 0 | AB93: 0
A94: 380816_79 | B94: 79 | C94: Банк Січ | D94: =IFERROR(VLOOKUP(C94,Hidden_Словник!$A$2:$C$106,3,FALSE),"") -> 380816 | E94: Інше | F94: Київ | G94: Інше | I94: 34092020000164 | J94: основні засоби | K94: Гривня | L94: 0 | M94: 2018-12-27 | N94: - | O94: НІ | Q94: - | R94: - | S94: - | T94: - | U94: ЗАТ «КОНСАЛТИНГЮРСЕРВІС»123 283,49 | V94: 2022-11-30 | W94: 2666 | X94: 462.99 | Y94: 462.99 | Z94: 462.99 | AA94: 0 | AB94: 0
A95: 380816_80 | B95: 80 | C95: Банк Січ | D95: =IFERROR(VLOOKUP(C95,Hidden_Словник!$A$2:$C$106,3,FALSE),"") -> 380816 | E95: Інше | F95: Київ | G95: Інше | I95: 34092020000165 | J95: основні засоби | K95: Гривня | L95: 0 | M95: 2018-12-27 | N95: - | O95: НІ | Q95: - | R95: - | S95: - | T95: - | U95: ЗАТ «КОНСАЛТИНГЮРСЕРВІС»123 283,49 | V95: 2022-11-30 | W95: 2666 | X95: 462.99 | Y95: 462.99 | Z95: 462.99 | AA95: 0 | AB95: 0
A96: 380816_81 | B96: 81 | C96: Банк Січ | D96: =IFERROR(VLOOKUP(C96,Hidden_Словник!$A$2:$C$106,3,FALSE),"") -> 380816 | E96: Інше | F96: Київ | G96: Інше | I96: 34092020000166 | J96: основні засоби | K96: Гривня | L96: 0 | M96: 2018-12-27 | N96: - | O96: НІ | Q96: - | R96: - | S96: - | T96: - | U96: ЗАТ «КОНСАЛТИНГЮРСЕРВІС»123 283,49 | V96: 2022-11-30 | W96: 1 | X96: 463.42 | Y96: 463.42 | Z96: 463.42 | AA96: 0 | AB96: 0
A97: 380816_82 | B97: 82 | C97: Банк Січ | D97: =IFERROR(VLOOKUP(C97,Hidden_Словник!$A$2:$C$106,3,FALSE),"") -> 380816 | E97: Інше | F97: Київ | G97: Інше | I97: 34092020000167 | J97: основні засоби | K97: Гривня | L97: 0 | M97: 2018-12-27 | N97: - | O97: НІ | Q97: - | R97: - | S97: - | T97: - | U97: ЗАТ «КОНСАЛТИНГЮРСЕРВІС»123 283,49 | V97: 2022-11-30 | W97: 2666 | X97: 467.37 | Y97: 467.37 | Z97: 467.37 | AA97: 0 | AB97: 0
A98: 380816_83 | B98: 83 | C98: Банк Січ | D98: =IFERROR(VLOOKUP(C98,Hidden_Словник!$A$2:$C$106,3,FALSE),"") -> 380816 | E98: Інше | F98: Київ | G98: Інше | I98: 34092020000168 | J98: основні засоби | K98: Гривня | L98: 0 | M98: 2018-12-27 | N98: - | O98: НІ | Q98: - | R98: - | S98: - | T98: - | U98: ЗАТ «КОНСАЛТИНГЮРСЕРВІС»123 283,49 | V98: 2022-11-30 | W98: 334 | X98: 471.05 | Y98: 471.05 | Z98: 471.05 | AA98: 0 | AB98: 0
A99: 380816_84 | B99: 84 | C99: Банк Січ | D99: =IFERROR(VLOOKUP(C99,Hidden_Словник!$A$2:$C$106,3,FALSE),"") -> 380816 | E99: Інше | F99: Київ | G99: Інше | I99: 34092020000169 | J99: основні засоби | K99: Гривня | L99: 0 | M99: 2018-12-27 | N99: - | O99: НІ | Q99: - | R99: - | S99: - | T99: - | U99: ЗАТ «КОНСАЛТИНГЮРСЕРВІС»123 283,49 | V99: 2022-11-30 | W99: 334 | X99: 471.05 | Y99: 471.05 | Z99: 471.05 | AA99: 0 | AB99: 0
A100: 380816_85 | B100: 85 | C100: Банк Січ | D100: =IFERROR(VLOOKUP(C100,Hidden_Словник!$A$2:$C$106,3,FALSE),"") -> 380816 | E100: Інше | F100: Київ | G100: Інше | I100: 34092020000170 | J100: основні засоби | K100: Гривня | L100: 0 | M100: 2018-12-27 | N100: - | O100: НІ | Q100: - | R100: - | S100: - | T100: - | U100: ЗАТ «КОНСАЛТИНГЮРСЕРВІС»123 283,49 | V100: 2022-11-30 | W100: 66 | X100: 471.35 | Y100: 471.35 | Z100: 471.35 | AA100: 0 | AB100: 0
A101: 380816_86 | B101: 86 | C101: Банк Січ | D101: =IFERROR(VLOOKUP(C101,Hidden_Словник!$A$2:$C$106,3,FALSE),"") -> 380816 | E101: Інше | F101: Київ | G101: Інше | I101: 34092020000171 | J101: основні засоби | K101: Гривня | L101: 0 | M101: 2018-12-27 | N101: - | O101: НІ | Q101: - | R101: - | S101: - | T101: - | U101: ЗАТ «КОНСАЛТИНГЮРСЕРВІС»123 283,49 | V101: 2022-11-30 | W101: 2666 | X101: 473.62 | Y101: 473.62 | Z101: 473.62 | AA101: 0 | AB101: 0
A102: 380816_87 | B102: 87 | C102: Банк Січ | D102: =IFERROR(VLOOKUP(C102,Hidden_Словник!$A$2:$C$106,3,FALSE),"") -> 380816 | E102: Інше | F102: Київ | G102: Інше | I102: 34092020000172 | J102: основні засоби | K102: Гривня | L102: 0 | M102: 2018-12-27 | N102: - | O102: НІ | Q102: - | R102: - | S102: - | T102: - | U102: ЗАТ «КОНСАЛТИНГЮРСЕРВІС»123 283,49 | V102: 2022-11-30 | W102: 2666 | X102: 474.68 | Y102: 474.68 | Z102: 474.68 | AA102: 0 | AB102: 0
A103: 380816_88 | B103: 88 | C103: Банк Січ | D103: =IFERROR(VLOOKUP(C103,Hidden_Словник!$A$2:$C$106,3,FALSE),"") -> 380816 | E103: Інше | F103: Київ | G103: Інше | I103: 34092020000173 | J103: основні засоби | K103: Гривня | L103: 0 | M103: 2018-12-27 | N103: - | O103: НІ | Q103: - | R103: - | S103: - | T103: - | U103: ЗАТ «КОНСАЛТИНГЮРСЕРВІС»123 283,49 | V103: 2022-11-30 | W103: 726 | X103: 476 | Y103: 476 | Z103: 476 | AA103: 0 | AB103: 0
A104: 380816_89 | B104: 89 | C104: Банк Січ | D104: =IFERROR(VLOOKUP(C104,Hidden_Словник!$A$2:$C$106,3,FALSE),"") -> 380816 | E104: Інше | F104: Київ | G104: Інше | I104: 34092020000174 | J104: основні засоби | K104: Гривня | L104: 0 | M104: 2018-12-27 | N104: - | O104: НІ | Q104: - | R104: - | S104: - | T104: - | U104: ЗАТ «КОНСАЛТИНГЮРСЕРВІС»123 283,49 | V104: 2022-11-30 | W104: 728 | X104: 477.4 | Y104: 477.4 | Z104: 477.4 | AA104: 0 | AB104: 0
A105: 380816_90 | B105: 90 | C105: Банк Січ | D105: =IFERROR(VLOOKUP(C105,Hidden_Словник!$A$2:$C$106,3,FALSE),"") -> 380816 | E105: Інше | F105: Київ | G105: Інше | I105: 34092020000175 | J105: основні засоби | K105: Гривня | L105: 0 | M105: 2018-12-27 | N105: - | O105: НІ | Q105: - | R105: - | S105: - | T105: - | U105: ЗАТ «КОНСАЛТИНГЮРСЕРВІС»123 283,49 | V105: 2022-11-30 | W105: 728 | X105: 477.4 | Y105: 477.4 | Z105: 477.4 | AA105: 0 | AB105: 0
A106: 380816_91 | B106: 91 | C106: Банк Січ | D106: =IFERROR(VLOOKUP(C106,Hidden_Словник!$A$2:$C$106,3,FALSE),"") -> 380816 | E106: Інше | F106: Київ | G106: Інше | I106: 34092020000176 | J106: основні засоби | K106: Гривня | L106: 0 | M106: 2018-12-27 | N106: - | O106: НІ | Q106: - | R106: - | S106: - | T106: - | U106: ЗАТ «КОНСАЛТИНГЮРСЕРВІС»123 283,49 | V106: 2022-11-30 | W106: 728 | X106: 477.4 | Y106: 477.4 | Z106: 477.4 | AA106: 0 | AB106: 0
A107: 380816_92 | B107: 92 | C107: Банк Січ | D107: =IFERROR(VLOOKUP(C107,Hidden_Словник!$A$2:$C$106,3,FALSE),"") -> 380816 | E107: Інше | F107: Київ | G107: Інше | I107: 34092020000177 | J107: основні засоби | K107: Гривня | L107: 0 | M107: 2018-12-27 | N107: - | O107: НІ | Q107: - | R107: - | S107: - | T107: - | U107: ЗАТ «КОНСАЛТИНГЮРСЕРВІС»123 283,49 | V107: 2022-11-30 | W107: 1 | X107: 483.34 | Y107: 483.34 | Z107: 483.34 | AA107: 0 | AB107: 0
A108: 380816_93 | B108: 93 | C108: Банк Січ | D108: =IFERROR(VLOOKUP(C108,Hidden_Словник!$A$2:$C$106,3,FALSE),"") -> 380816 | E108: Інше | F108: Київ | G108: Інше | I108: 34092020000178 | J108: основні засоби | K108: Гривня | L108: 0 | M108: 2018-12-27 | N108: - | O108: НІ | Q108: - | R108: - | S108: - | T108: - | U108: ЗАТ «КОНСАЛТИНГЮРСЕРВІС»123 283,49 | V108: 2022-11-30 | W108: 66 | X108: 484.57 | Y108: 484.57 | Z108: 484.57 | AA108: 0 | AB108: 0
A109: 380816_94 | B109: 94 | C109: Банк Січ | D109: =IFERROR(VLOOKUP(C109,Hidden_Словник!$A$2:$C$106,3,FALSE),"") -> 380816 | E109: Інше | F109: Київ | G109: Інше | I109: 34092020000179 | J109: основні засоби | K109: Гривня | L109: 0 | M109: 2018-12-27 | N109: - | O109: НІ | Q109: - | R109: - | S109: - | T109: - | U109: ЗАТ «КОНСАЛТИНГЮРСЕРВІС»123 283,49 | V109: 2022-11-30 | W109: 2666 | X109: 486.7 | Y109: 486.7 | Z109: 486.7 | AA109: 0 | AB109: 0
A110: 380816_95 | B110: 95 | C110: Банк Січ | D110: =IFERROR(VLOOKUP(C110,Hidden_Словник!$A$2:$C$106,3,FALSE),"") -> 380816 | E110: Інше | F110: Київ | G110: Інше | I110: 34092020000180 | J110: основні засоби | K110: Гривня | L110: 0 | M110: 2018-12-27 | N110: - | O110: НІ | Q110: - | R110: - | S110: - | T110: - | U110: ЗАТ «КОНСАЛТИНГЮРСЕРВІС»123 283,49 | V110: 2022-11-30 | W110: 1 | X110: 495.47 | Y110: 495.47 | Z110: 495.47 | AA110: 0 | AB110: 0
A111: 380816_96 | B111: 96 | C111: Банк Січ | D111: =IFERROR(VLOOKUP(C111,Hidden_Словник!$A$2:$C$106,3,FALSE),"") -> 380816 | E111: Інше | F111: Київ | G111: Інше | I111: 34092020000181 | J111: основні засоби | K111: Гривня | L111: 0 | M111: 2018-12-27 | N111: - | O111: НІ | Q111: - | R111: - | S111: - | T111: - | U111: ЗАТ «КОНСАЛТИНГЮРСЕРВІС»123 283,49 | V111: 2022-11-30 | W111: 1 | X111: 499.56 | Y111: 499.56 | Z111: 499.56 | AA111: 0 | AB111: 0
A112: 380816_97 | B112: 97 | C112: Банк Січ | D112: =IFERROR(VLOOKUP(C112,Hidden_Словник!$A$2:$C$106,3,FALSE),"") -> 380816 | E112: Інше | F112: Київ | G112: Інше | I112: 34092020000182 | J112: основні засоби | K112: Гривня | L112: 0 | M112: 2018-12-27 | N112: - | O112: НІ | Q112: - | R112: - | S112: - | T112: - | U112: ЗАТ «КОНСАЛТИНГЮРСЕРВІС»123 283,49 | V112: 2022-11-30 | W112: 1 | X112: 513.9 | Y112: 513.9 | Z112: 513.9 | AA112: 0 | AB112: 0
A113: 380816_98 | B113: 98 | C113: Банк Січ | D113: =IFERROR(VLOOKUP(C113,Hidden_Словник!$A$2:$C$106,3,FALSE),"") -> 380816 | E113: Інше | F113: Київ | G113: Інше | I113: 34092020000183 | J113: основні засоби | K113: Гривня | L113: 0 | M113: 2018-12-27 | N113: - | O113: НІ | Q113: - | R113: - | S113: - | T113: - | U113: ЗАТ «КОНСАЛТИНГЮРСЕРВІС»123 283,49 | V113: 2022-11-30 | W113: 1 | X113: 518.04 | Y113: 518.04 | Z113: 518.04 | AA113: 0 | AB113: 0
A114: 380816_99 | B114: 99 | C114: Банк Січ | D114: =IFERROR(VLOOKUP(C114,Hidden_Словник!$A$2:$C$106,3,FALSE),"") -> 380816 | E114: Інше | F114: Київ | G114: Інше | I114: 34092020000184 | J114: основні засоби | K114: Гривня | L114: 0 | M114: 2018-12-27 | N114: - | O114: НІ | Q114: - | R114: - | S114: - | T114: - | U114: ЗАТ «КОНСАЛТИНГЮРСЕРВІС»123 283,49 | V114: 2022-11-30 | W114: 802 | X114: 525.82 | Y114: 525.82 | Z114: 525.82 | AA114: 0 | AB114: 0
A115: 380816_100 | B115: 100 | C115: Банк Січ | D115: =IFERROR(VLOOKUP(C115,Hidden_Словник!$A$2:$C$106,3,FALSE),"") -> 380816 | E115: Інше | F115: Київ | G115: Інше | I115: 34092020000185 | J115: основні засоби | K115: Гривня | L115: 0 | M115: 2018-12-27 | N115: - | O115: НІ | Q115: - | R115: - | S115: - | T115: - | U115: ЗАТ «КОНСАЛТИНГЮРСЕРВІС»123 283,49 | V115: 2022-11-30 | W115: 1334 | X115: 542.07 | Y115: 542.07 | Z115: 542.07 | AA115: 0 | AB115: 0
A116: 380816_101 | B116: 101 | C116: Банк Січ | D116: =IFERROR(VLOOKUP(C116,Hidden_Словник!$A$2:$C$106,3,FALSE),"") -> 380816 | E116: Інше | F116: Київ | G116: Інше | I116: 34092020000186 | J116: основні засоби | K116: Гривня | L116: 0 | M116: 2018-12-27 | N116: - | O116: НІ | Q116: - | R116: - | S116: - | T116: - | U116: ЗАТ «КОНСАЛТИНГЮРСЕРВІС»123 283,49 | V116: 2022-11-30 | W116: 38000 | X116: 543.36 | Y116: 543.36 | Z116: 543.36 | AA116: 0 | AB116: 0
A117: 380816_102 | B117: 102 | C117: Банк Січ | D117: =IFERROR(VLOOKUP(C117,Hidden_Словник!$A$2:$C$106,3,FALSE),"") -> 380816 | E117: Інше | F117: Київ | G117: Інше | I117: 34092020000187 | J117: основні засоби | K117: Гривня | L117: 0 | M117: 2018-12-27 | N117: - | O117: НІ | Q117: - | R117: - | S117: - | T117: - | U117: ЗАТ «КОНСАЛТИНГЮРСЕРВІС»123 283,49 | V117: 2022-11-30 | W117: 1 | X117: 545.09 | Y117: 545.09 | Z117: 545.09 | AA117: 0 | AB117: 0
A118: 380816_103 | B118: 103 | C118: Банк Січ | D118: =IFERROR(VLOOKUP(C118,Hidden_Словник!$A$2:$C$106,3,FALSE),"") -> 380816 | E118: Інше | F118: Київ | G118: Інше | I118: 34092020000188 | J118: основні засоби | K118: Гривня | L118: 0 | M118: 2018-12-27 | N118: - | O118: НІ | Q118: - | R118: - | S118: - | T118: - | U118: ЗАТ «КОНСАЛТИНГЮРСЕРВІС»123 283,49 | V118: 2022-11-30 | W118: 842 | X118: 551.97 | Y118: 551.97 | Z118: 551.97 | AA118: 0 | AB118: 0
A119: 380816_104 | B119: 104 | C119: Банк Січ | D119: =IFERROR(VLOOKUP(C119,Hidden_Словник!$A$2:$C$106,3,FALSE),"") -> 380816 | E119: Інше | F119: Київ | G119: Інше | I119: 34092020000189 | J119: основні засоби | K119: Гривня | L119: 0 | M119: 2018-12-27 | N119: - | O119: НІ | Q119: - | R119: - | S119: - | T119: - | U119: ЗАТ «КОНСАЛТИНГЮРСЕРВІС»123 283,49 | V119: 2022-11-30 | W119: 1 | X119: 564.74 | Y119: 564.74 | Z119: 564.74 | AA119: 0 | AB119: 0
A120: 380816_105 | B120: 105 | C120: Банк Січ | D120: =IFERROR(VLOOKUP(C120,Hidden_Словник!$A$2:$C$106,3,FALSE),"") -> 380816 | E120: Інше | F120: Київ | G120: Інше | I120: 34092020000190 | J120: основні засоби | K120: Гривня | L120: 0 | M120: 2018-12-27 | N120: - | O120: НІ | Q120: - | R120: - | S120: - | T120: - | U120: ЗАТ «КОНСАЛТИНГЮРСЕРВІС»123 283,49 | V120: 2022-11-30 | W120: 1 | X120: 566.29 | Y120: 566.29 | Z120: 566.29 | AA120: 0 | AB120: 0
A121: 380816_106 | B121: 106 | C121: Банк Січ | D121: =IFERROR(VLOOKUP(C121,Hidden_Словник!$A$2:$C$106,3,FALSE),"") -> 380816 | E121: Інше | F121: Київ | G121: Інше | I121: 34092020000191 | J121: основні засоби | K121: Гривня | L121: 0 | M121: 2018-12-27 | N121: - | O121: НІ | Q121: - | R121: - | S121: - | T121: - | U121: ЗАТ «КОНСАЛТИНГЮРСЕРВІС»123 283,49 | V121: 2022-11-30 | W121: 334 | X121: 566.59 | Y121: 566.59 | Z121: 566.59 | AA121: 0 | AB121: 0
A122: 380816_107 | B122: 107 | C122: Банк Січ | D122: =IFERROR(VLOOKUP(C122,Hidden_Словник!$A$2:$C$106,3,FALSE),"") -> 380816 | E122: Інше | F122: Київ | G122: Інше | I122: 34092020000192 | J122: основні засоби | K122: Гривня | L122: 0 | M122: 2018-12-27 | N122: - | O122: НІ | Q122: - | R122: - | S122: - | T122: - | U122: ЗАТ «КОНСАЛТИНГЮРСЕРВІС»123 283,49 | V122: 2022-11-30 | W122: 1334 | X122: 568.28 | Y122: 568.28 | Z122: 568.28 | AA122: 0 | AB122: 0
A123: 380816_108 | B123: 108 | C123: Банк Січ | D123: =IFERROR(VLOOKUP(C123,Hidden_Словник!$A$2:$C$106,3,FALSE),"") -> 380816 | E123: Інше | F123: Київ | G123: Інше | I123: 34092020000193 | J123: основні засоби | K123: Гривня | L123: 0 | M123: 2018-12-27 | N123: - | O123: НІ | Q123: - | R123: - | S123: - | T123: - | U123: ЗАТ «КОНСАЛТИНГЮРСЕРВІС»123 283,49 | V123: 2022-11-30 | W123: 1 | X123: 569.02 | Y123: 569.02 | Z123: 569.02 | AA123: 0 | AB123: 0
A124: 380816_109 | B124: 109 | C124: Банк Січ | D124: =IFERROR(VLOOKUP(C124,Hidden_Словник!$A$2:$C$106,3,FALSE),"") -> 380816 | E124: Інше | F124: Київ | G124: Інше | I124: 34092020000194 | J124: основні засоби | K124: Гривня | L124: 0 | M124: 2018-12-27 | N124: - | O124: НІ | Q124: - | R124: - | S124: - | T124: - | U124: ЗАТ «КОНСАЛТИНГЮРСЕРВІС»123 283,49 | V124: 2022-11-30 | W124: 1 | X124: 578.55 | Y124: 578.55 | Z124: 578.55 | AA124: 0 | AB124: 0
A125: 380816_110 | B125: 110 | C125: Банк Січ | D125: =IFERROR(VLOOKUP(C125,Hidden_Словник!$A$2:$C$106,3,FALSE),"") -> 380816 | E125: Інше | F125: Київ | G125: Інше | I125: 34092020000195 | J125: основні засоби | K125: Гривня | L125: 0 | M125: 2018-12-27 | N125: - | O125: НІ | Q125: - | R125: - | S125: - | T125: - | U125: ЗАТ «КОНСАЛТИНГЮРСЕРВІС»123 283,49 | V125: 2022-11-30 | W125: 885 | X125: 580.48 | Y125: 580.48 | Z125: 580.48 | AA125: 0 | AB125: 0
A126: 380816_111 | B126: 111 | C126: Банк Січ | D126: =IFERROR(VLOOKUP(C126,Hidden_Словник!$A$2:$C$106,3,FALSE),"") -> 380816 | E126: Інше | F126: Київ | G126: Інше | I126: 34092020000196 | J126: основні засоби | K126: Гривня | L126: 0 | M126: 2018-12-27 | N126: - | O126: НІ | Q126: - | R126: - | S126: - | T126: - | U126: ЗАТ «КОНСАЛТИНГЮРСЕРВІС»123 283,49 | V126: 2022-11-30 | W126: 1 | X126: 583.04 | Y126: 583.04 | Z126: 583.04 | AA126: 0 | AB126: 0
A127: 380816_112 | B127: 112 | C127: Банк Січ | D127: =IFERROR(VLOOKUP(C127,Hidden_Словник!$A$2:$C$106,3,FALSE),"") -> 380816 | E127: Інше | F127: Київ | G127: Інше | I127: 34092020000197 | J127: основні засоби | K127: Гривня | L127: 0 | M127: 2018-12-27 | N127: - | O127: НІ | Q127: - | R127: - | S127: - | T127: - | U127: ЗАТ «КОНСАЛТИНГЮРСЕРВІС»123 283,49 | V127: 2022-11-30 | W127: 1 | X127: 597.96 | Y127: 597.96 | Z127: 597.96 | AA127: 0 | AB127: 0
A128: 380816_113 | B128: 113 | C128: Банк Січ | D128: =IFERROR(VLOOKUP(C128,Hidden_Словник!$A$2:$C$106,3,FALSE),"") -> 380816 | E128: Інше | F128: Київ | G128: Інше | I128: 34092020000198 | J128: основні засоби | K128: Гривня | L128: 0 | M128: 2018-12-27 | N128: - | O128: НІ | Q128: - | R128: - | S128: - | T128: - | U128: ЗАТ «КОНСАЛТИНГЮРСЕРВІС»123 283,49 | V128: 2022-11-30 | W128: 66 | X128: 598.07 | Y128: 598.07 | Z128: 598.07 | AA128: 0 | AB128: 0
A129: 380816_114 | B129: 114 | C129: Банк Січ | D129: =IFERROR(VLOOKUP(C129,Hidden_Словник!$A$2:$C$106,3,FALSE),"") -> 380816 | E129: Інше | F129: Київ | G129: Інше | I129: 34092020000199 | J129: основні засоби | K129: Гривня | L129: 0 | M129: 2018-12-27 | N129: - | O129: НІ | Q129: - | R129: - | S129: - | T129: - | U129: ЗАТ «КОНСАЛТИНГЮРСЕРВІС»123 283,49 | V129: 2022-11-30 | W129: 1 | X129: 601.1 | Y129: 601.1 | Z129: 601.1 | AA129: 0 | AB129: 0
A130: 380816_115 | B130: 115 | C130: Банк Січ | D130: =IFERROR(VLOOKUP(C130,Hidden_Словник!$A$2:$C$106,3,FALSE),"") -> 380816 | E130: Інше | F130: Київ | G130: Інше | I130: 34092020001100 | J130: основні засоби | K130: Гривня | L130: 0 | M130: 2018-12-27 | N130: - | O130: НІ | Q130: - | R130: - | S130: - | T130: - | U130: ЗАТ «КОНСАЛТИНГЮРСЕРВІС»123 283,49 | V130: 2022-11-30 | W130: 941 | X130: 617.6 | Y130: 617.6 | Z130: 617.6 | AA130: 0 | AB130: 0
A131: 380816_116 | B131: 116 | C131: Банк Січ | D131: =IFERROR(VLOOKUP(C131,Hidden_Словник!$A$2:$C$106,3,FALSE),"") -> 380816 | E131: Інше | F131: Київ | G131: Інше | I131: 34092020001101 | J131: основні засоби | K131: Гривня | L131: 0 | M131: 2018-12-27 | N131: - | O131: НІ | Q131: - | R131: - | S131: - | T131: - | U131: ЗАТ «КОНСАЛТИНГЮРСЕРВІС»123 283,49 | V131: 2022-11-30 | W131: 1 | X131: 644.38 | Y131: 644.38 | Z131: 644.38 | AA131: 0 | AB131: 0
A132: 380816_117 | B132: 117 | C132: Банк Січ | D132: =IFERROR(VLOOKUP(C132,Hidden_Словник!$A$2:$C$106,3,FALSE),"") -> 380816 | E132: Інше | F132: Київ | G132: Інше | I132: 34092020001102 | J132: основні засоби | K132: Гривня | L132: 0 | M132: 2018-12-27 | N132: - | O132: НІ | Q132: - | R132: - | S132: - | T132: - | U132: ЗАТ «КОНСАЛТИНГЮРСЕРВІС»123 283,49 | V132: 2022-11-30 | W132: 988 | X132: 648.34 | Y132: 648.34 | Z132: 648.34 | AA132: 0 | AB132: 0
A133: 380816_118 | B133: 118 | C133: Банк Січ | D133: =IFERROR(VLOOKUP(C133,Hidden_Словник!$A$2:$C$106,3,FALSE),"") -> 380816 | E133: Інше | F133: Київ | G133: Інше | I133: 34092020001103 | J133: основні засоби | K133: Гривня | L133: 0 | M133: 2018-12-27 | N133: - | O133: НІ | Q133: - | R133: - | S133: - | T133: - | U133: ЗАТ «КОНСАЛТИНГЮРСЕРВІС»123 283,49 | V133: 2022-11-30 | W133: 1 | X133: 672.44 | Y133: 672.44 | Z133: 672.44 | AA133: 0 | AB133: 0
A134: 380816_119 | B134: 119 | C134: Банк Січ | D134: =IFERROR(VLOOKUP(C134,Hidden_Словник!$A$2:$C$106,3,FALSE),"") -> 380816 | E134: Інше | F134: Київ | G134: Інше | I134: 34092020001104 | J134: основні засоби | K134: Гривня | L134: 0 | M134: 2018-12-27 | N134: - | O134: НІ | Q134: - | R134: - | S134: - | T134: - | U134: ЗАТ «КОНСАЛТИНГЮРСЕРВІС»123 283,49 | V134: 2022-11-30 | W134: 1 | X134: 681.29 | Y134: 681.29 | Z134: 681.29 | AA134: 0 | AB134: 0
A135: 380816_120 | B135: 120 | C135: Банк Січ | D135: =IFERROR(VLOOKUP(C135,Hidden_Словник!$A$2:$C$106,3,FALSE),"") -> 380816 | E135: Інше | F135: Київ | G135: Інше | I135: 34092020001105 | J135: основні засоби | K135: Гривня | L135: 0 | M135: 2018-12-27 | N135: - | O135: НІ | Q135: - | R135: - | S135: - | T135: - | U135: ЗАТ «КОНСАЛТИНГЮРСЕРВІС»123 283,49 | V135: 2022-11-30 | W135: 1 | X135: 684.64 | Y135: 684.64 | Z135: 684.64 | AA135: 0 | AB135: 0
A136: 380816_121 | B136: 121 | C136: Банк Січ | D136: =IFERROR(VLOOKUP(C136,Hidden_Словник!$A$2:$C$106,3,FALSE),"") -> 380816 | E136: Інше | F136: Київ | G136: Інше | I136: 34092020001106 | J136: основні засоби | K136: Гривня | L136: 0 | M136: 2018-12-27 | N136: - | O136: НІ | Q136: - | R136: - | S136: - | T136: - | U136: ЗАТ «КОНСАЛТИНГЮРСЕРВІС»123 283,49 | V136: 2022-11-30 | W136: 1044 | X136: 684.96 | Y136: 684.96 | Z136: 684.96 | AA136: 0 | AB136: 0
A137: 380816_122 | B137: 122 | C137: Банк Січ | D137: =IFERROR(VLOOKUP(C137,Hidden_Словник!$A$2:$C$106,3,FALSE),"") -> 380816 | E137: Інше | F137: Київ | G137: Інше | I137: 34092020001107 | J137: основні засоби | K137: Гривня | L137: 0 | M137: 2018-12-27 | N137: - | O137: НІ | Q137: - | R137: - | S137: - | T137: - | U137: ЗАТ «КОНСАЛТИНГЮРСЕРВІС»123 283,49 | V137: 2022-11-30 | W137: 1 | X137: 688.8 | Y137: 688.8 | Z137: 688.8 | AA137: 0 | AB137: 0
A138: 380816_123 | B138: 123 | C138: Банк Січ | D138: =IFERROR(VLOOKUP(C138,Hidden_Словник!$A$2:$C$106,3,FALSE),"") -> 380816 | E138: Інше | F138: Київ | G138: Інше | I138: 34092020001108 | J138: основні засоби | K138: Гривня | L138: 0 | M138: 2018-12-27 | N138: - | O138: НІ | Q138: - | R138: - | S138: - | T138: - | U138: ЗАТ «КОНСАЛТИНГЮРСЕРВІС»123 283,49 | V138: 2022-11-30 | W138: 1059 | X138: 694.69 | Y138: 694.69 | Z138: 694.69 | AA138: 0 | AB138: 0
A139: 380816_124 | B139: 124 | C139: Банк Січ | D139: =IFERROR(VLOOKUP(C139,Hidden_Словник!$A$2:$C$106,3,FALSE),"") -> 380816 | E139: Інше | F139: Київ | G139: Інше | I139: 34092020001109 | J139: основні засоби | K139: Гривня | L139: 0 | M139: 2018-12-27 | N139: - | O139: НІ | Q139: - | R139: - | S139: - | T139: - | U139: ЗАТ «КОНСАЛТИНГЮРСЕРВІС»123 283,49 | V139: 2022-11-30 | W139: 1073 | X139: 703.98 | Y139: 703.98 | Z139: 703.98 | AA139: 0 | AB139: 0
A140: 380816_125 | B140: 125 | C140: Банк Січ | D140: =IFERROR(VLOOKUP(C140,Hidden_Словник!$A$2:$C$106,3,FALSE),"") -> 380816 | E140: Інше | F140: Київ | G140: Інше | I140: 34092020001110 | J140: основні засоби | K140: Гривня | L140: 0 | M140: 2018-12-27 | N140: - | O140: НІ | Q140: - | R140: - | S140: - | T140: - | U140: ЗАТ «КОНСАЛТИНГЮРСЕРВІС»123 283,49 | V140: 2022-11-30 | W140: 1 | X140: 717.77 | Y140: 717.77 | Z140: 717.77 | AA140: 0 | AB140: 0
A141: 380816_126 | B141: 126 | C141: Банк Січ | D141: =IFERROR(VLOOKUP(C141,Hidden_Словник!$A$2:$C$106,3,FALSE),"") -> 380816 | E141: Інше | F141: Київ | G141: Інше | I141: 34092020001111 | J141: основні засоби | K141: Гривня | L141: 0 | M141: 2018-12-27 | N141: - | O141: НІ | Q141: - | R141: - | S141: - | T141: - | U141: ЗАТ «КОНСАЛТИНГЮРСЕРВІС»123 283,49 | V141: 2022-11-30 | W141: 1102 | X141: 722.61 | Y141: 722.61 | Z141: 722.61 | AA141: 0 | AB141: 0
A142: 380816_127 | B142: 127 | C142: Банк Січ | D142: =IFERROR(VLOOKUP(C142,Hidden_Словник!$A$2:$C$106,3,FALSE),"") -> 380816 | E142: Інше | F142: Київ | G142: Інше | I142: 34092020001112 | J142: основні засоби | K142: Гривня | L142: 0 | M142: 2018-12-27 | N142: - | O142: НІ | Q142: - | R142: - | S142: - | T142: - | U142: ЗАТ «КОНСАЛТИНГЮРСЕРВІС»123 283,49 | V142: 2022-11-30 | W142: 1 | X142: 742.82 | Y142: 742.82 | Z142: 742.82 | AA142: 0 | AB142: 0
A143: 380816_128 | B143: 128 | C143: Банк Січ | D143: =IFERROR(VLOOKUP(C143,Hidden_Словник!$A$2:$C$106,3,FALSE),"") -> 380816 | E143: Інше | F143: Київ | G143: Інше | I143: 34092020001113 | J143: основні засоби | K143: Гривня | L143: 0 | M143: 2018-12-27 | N143: - | O143: НІ | Q143: - | R143: - | S143: - | T143: - | U143: ЗАТ «КОНСАЛТИНГЮРСЕРВІС»123 283,49 | V143: 2022-11-30 | W143: 1136 | X143: 745.06 | Y143: 745.06 | Z143: 745.06 | AA143: 0 | AB143: 0
A144: 380816_129 | B144: 129 | C144: Банк Січ | D144: =IFERROR(VLOOKUP(C144,Hidden_Словник!$A$2:$C$106,3,FALSE),"") -> 380816 | E144: Інше | F144: Київ | G144: Інше | I144: 34092020001114 | J144: основні засоби | K144: Гривня | L144: 0 | M144: 2018-12-27 | N144: - | O144: НІ | Q144: - | R144: - | S144: - | T144: - | U144: ЗАТ «КОНСАЛТИНГЮРСЕРВІС»123 283,49 | V144: 2022-11-30 | W144: 1 | X144: 757.77 | Y144: 757.77 | Z144: 757.77 | AA144: 0 | AB144: 0
A145: 380816_130 | B145: 130 | C145: Банк Січ | D145: =IFERROR(VLOOKUP(C145,Hidden_Словник!$A$2:$C$106,3,FALSE),"") -> 380816 | E145: Інше | F145: Київ | G145: Інше | I145: 34092020001115 | J145: основні засоби | K145: Гривня | L145: 0 | M145: 2018-12-27 | N145: - | O145: НІ | Q145: - | R145: - | S145: - | T145: - | U145: ЗАТ «КОНСАЛТИНГЮРСЕРВІС»123 283,49 | V145: 2022-11-30 | W145: 1 | X145: 783.64 | Y145: =IF(Z145+AA145>0,Z145+AA145,"") -> 783.64 | Z145: 783.64 | AA145: 0 | AB145: 0
A146: 380816_131 | B146: 131 | C146: Банк Січ | D146: =IFERROR(VLOOKUP(C146,Hidden_Словник!$A$2:$C$106,3,FALSE),"") -> 380816 | E146: Інше | F146: Київ | G146: Інше | I146: 34092020001116 | J146: основні засоби | K146: Гривня | L146: 0 | M146: 2018-12-27 | N146: - | O146: НІ | Q146: - | R146: - | S146: - | T146: - | U146: ЗАТ «КОНСАЛТИНГЮРСЕРВІС»123 283,49 | V146: 2022-11-30 | W146: 1 | X146: 785.53 | Y146: 785.53 | Z146: 785.53 | AA146: 0 | AB146: 0
A147: 380816_132 | B147: 132 | C147: Банк Січ | D147: =IFERROR(VLOOKUP(C147,Hidden_Словник!$A$2:$C$106,3,FALSE),"") -> 380816 | E147: Інше | F147: Київ | G147: Інше | I147: 34092020001117 | J147: основні засоби | K147: Гривня | L147: 0 | M147: 2018-12-27 | N147: - | O147: НІ | Q147: - | R147: - | S147: - | T147: - | U147: ЗАТ «КОНСАЛТИНГЮРСЕРВІС»123 283,49 | V147: 2022-11-30 | W147: 1213 | X147: 795.71 | Y147: 795.71 | Z147: 795.71 | AA147: 0 | AB147: 0
A148: 380816_133 | B148: 133 | C148: Банк Січ | D148: =IFERROR(VLOOKUP(C148,Hidden_Словник!$A$2:$C$106,3,FALSE),"") -> 380816 | E148: Інше | F148: Київ | G148: Інше | I148: 34092020001118 | J148: основні засоби | K148: Гривня | L148: 0 | M148: 2018-12-27 | N148: - | O148: НІ | Q148: - | R148: - | S148: - | T148: - | U148: ЗАТ «КОНСАЛТИНГЮРСЕРВІС»123 283,49 | V148: 2022-11-30 | W148: 1 | X148: 807.95 | Y148: 807.95 | Z148: 807.95 | AA148: 0 | AB148: 0
A149: 380816_134 | B149: 134 | C149: Банк Січ | D149: =IFERROR(VLOOKUP(C149,Hidden_Словник!$A$2:$C$106,3,FALSE),"") -> 380816 | E149: Інше | F149: Київ | G149: Інше | I149: 34092020001119 | J149: основні засоби | K149: Гривня | L149: 0 | M149: 2018-12-27 | N149: - | O149: НІ | Q149: - | R149: - | S149: - | T149: - | U149: ЗАТ «КОНСАЛТИНГЮРСЕРВІС»123 283,49 | V149: 2022-11-30 | W149: 1 | X149: 813.58 | Y149: 813.58 | Z149: 813.58 | AA149: 0 | AB149: 0
A150: 380816_135 | B150: 135 | C150: Банк Січ | D150: =IFERROR(VLOOKUP(C150,Hidden_Словник!$A$2:$C$106,3,FALSE),"") -> 380816 | E150: Інше | F150: Київ | G150: Інше | I150: 34092020001120 | J150: основні засоби | K150: Гривня | L150: 0 | M150: 2018-12-27 | N150: - | O150: НІ | Q150: - | R150: - | S150: - | T150: - | U150: ЗАТ «КОНСАЛТИНГЮРСЕРВІС»123 283,49 | V150: 2022-11-30 | W150: 1247 | X150: 817.74 | Y150: 817.74 | Z150: 817.74 | AA150: 0 | AB150: 0
A151: 380816_136 | B151: 136 | C151: Банк Січ | D151: =IFERROR(VLOOKUP(C151,Hidden_Словник!$A$2:$C$106,3,FALSE),"") -> 380816 | E151: Інше | F151: Київ | G151: Інше | I151: 34092020001121 | J151: основні засоби | K151: Гривня | L151: 0 | M151: 2018-12-27 | N151: - | O151: НІ | Q151: - | R151: - | S151: - | T151: - | U151: ЗАТ «КОНСАЛТИНГЮРСЕРВІС»123 283,49 | V151: 2022-11-30 | W151: 1 | X151: 826.26 | Y151: 826.26 | Z151: 826.26 | AA151: 0 | AB151: 0
A152: 380816_137 | B152: 137 | C152: Банк Січ | D152: =IFERROR(VLOOKUP(C152,Hidden_Словник!$A$2:$C$106,3,FALSE),"") -> 380816 | E152: Інше | F152: Київ | G152: Інше | I152: 34092020001122 | J152: основні засоби | K152: Гривня | L152: 0 | M152: 2018-12-27 | N152: - | O152: НІ | Q152: - | R152: - | S152: - | T152: - | U152: ЗАТ «КОНСАЛТИНГЮРСЕРВІС»123 283,49 | V152: 2022-11-30 | W152: 10000 | X152: 848.05 | Y152: 848.05 | Z152: 848.05 | AA152: 0 | AB152: 0
A153: 380816_138 | B153: 138 | C153: Банк Січ | D153: =IFERROR(VLOOKUP(C153,Hidden_Словник!$A$2:$C$106,3,FALSE),"") -> 380816 | E153: Інше | F153: Київ | G153: Інше | I153: 34092020001123 | J153: основні засоби | K153: Гривня | L153: 0 | M153: 2018-12-27 | N153: - | O153: НІ | Q153: - | R153: - | S153: - | T153: - | U153: ЗАТ «КОНСАЛТИНГЮРСЕРВІС»123 283,49 | V153: 2022-11-30 | W153: 1 | X153: 851.85 | Y153: 851.85 | Z153: 851.85 | AA153: 0 | AB153: 0
A154: 380816_139 | B154: 139 | C154: Банк Січ | D154: =IFERROR(VLOOKUP(C154,Hidden_Словник!$A$2:$C$106,3,FALSE),"") -> 380816 | E154: Інше | F154: Київ | G154: Інше | I154: 34092020001124 | J154: основні засоби | K154: Гривня | L154: 0 | M154: 2018-12-27 | N154: - | O154: НІ | Q154: - | R154: - | S154: - | T154: - | U154: ЗАТ «КОНСАЛТИНГЮРСЕРВІС»123 283,49 | V154: 2022-11-30 | W154: 1317 | X154: 863.82 | Y154: 863.82 | Z154: 863.82 | AA154: 0 | AB154: 0
A155: 380816_140 | B155: 140 | C155: Банк Січ | D155: =IFERROR(VLOOKUP(C155,Hidden_Словник!$A$2:$C$106,3,FALSE),"") -> 380816 | E155: Інше | F155: Київ | G155: Інше | I155: 34092020001125 | J155: основні засоби | K155: Гривня | L155: 0 | M155: 2018-12-27 | N155: - | O155: НІ | Q155: - | R155: - | S155: - | T155: - | U155: ЗАТ «КОНСАЛТИНГЮРСЕРВІС»123 283,49 | V155: 2022-11-30 | W155: 1323 | X155: 867.81 | Y155: 867.81 | Z155: 867.81 | AA155: 0 | AB155: 0
A156: 380816_141 | B156: 141 | C156: Банк Січ | D156: =IFERROR(VLOOKUP(C156,Hidden_Словник!$A$2:$C$106,3,FALSE),"") -> 380816 | E156: Інше | F156: Київ | G156: Інше | I156: 34092020001126 | J156: основні засоби | K156: Гривня | L156: 0 | M156: 2018-12-27 | N156: - | O156: НІ | Q156: - | R156: - | S156: - | T156: - | U156: ЗАТ «КОНСАЛТИНГЮРСЕРВІС»123 283,49 | V156: 2022-11-30 | W156: 1323 | X156: 867.81 | Y156: 867.81 | Z156: 867.81 | AA156: 0 | AB156: 0
A157: 380816_142 | B157: 142 | C157: Банк Січ | D157: =IFERROR(VLOOKUP(C157,Hidden_Словник!$A$2:$C$106,3,FALSE),"") -> 380816 | E157: Інше | F157: Київ | G157: Інше | I157: 34092020001127 | J157: основні засоби | K157: Гривня | L157: 0 | M157: 2018-12-27 | N157: - | O157: НІ | Q157: - | R157: - | S157: - | T157: - | U157: ЗАТ «КОНСАЛТИНГЮРСЕРВІС»123 283,49 | V157: 2022-11-30 | W157: 1323 | X157: 867.81 | Y157: 867.81 | Z157: 867.81 | AA157: 0 | AB157: 0
A158: 380816_143 | B158: 143 | C158: Банк Січ | D158: =IFERROR(VLOOKUP(C158,Hidden_Словник!$A$2:$C$106,3,FALSE),"") -> 380816 | E158: Інше | F158: Київ | G158: Інше | I158: 34092020001128 | J158: основні засоби | K158: Гривня | L158: 0 | M158: 2018-12-27 | N158: - | O158: НІ | Q158: - | R158: - | S158: - | T158: - | U158: ЗАТ «КОНСАЛТИНГЮРСЕРВІС»123 283,49 | V158: 2022-11-30 | W158: 1323 | X158: 867.81 | Y158: 867.81 | Z158: 867.81 | AA158: 0 | AB158: 0
A159: 380816_144 | B159: 144 | C159: Банк Січ | D159: =IFERROR(VLOOKUP(C159,Hidden_Словник!$A$2:$C$106,3,FALSE),"") -> 380816 | E159: Інше | F159: Київ | G159: Інше | I159: 34092020001129 | J159: основні засоби | K159: Гривня | L159: 0 | M159: 2018-12-27 | N159: - | O159: НІ | Q159: - | R159: - | S159: - | T159: - | U159: ЗАТ «КОНСАЛТИНГЮРСЕРВІС»123 283,49 | V159: 2022-11-30 | W159: 1324 | X159: 868.68 | Y159: 868.68 | Z159: 868.68 | AA159: 0 | AB159: 0
A160: 380816_145 | B160: 145 | C160: Банк Січ | D160: =IFERROR(VLOOKUP(C160,Hidden_Словник!$A$2:$C$106,3,FALSE),"") -> 380816 | E160: Інше | F160: Київ | G160: Інше | I160: 34092020001130 | J160: основні засоби | K160: Гривня | L160: 0 | M160: 2018-12-27 | N160: - | O160: НІ | Q160: - | R160: - | S160: - | T160: - | U160: ЗАТ «КОНСАЛТИНГЮРСЕРВІС»123 283,49 | V160: 2022-11-30 | W160: 1 | X160: 873.54 | Y160: 873.54 | Z160: 873.54 | AA160: 0 | AB160: 0
A161: 380816_146 | B161: 146 | C161: Банк Січ | D161: =IFERROR(VLOOKUP(C161,Hidden_Словник!$A$2:$C$106,3,FALSE),"") -> 380816 | E161: Інше | F161: Київ | G161: Інше | I161: 34092020001131 | J161: основні засоби | K161: Гривня | L161: 0 | M161: 2018-12-27 | N161: - | O161: НІ | Q161: - | R161: - | S161: - | T161: - | U161: ЗАТ «КОНСАЛТИНГЮРСЕРВІС»123 283,49 | V161: 2022-11-30 | W161: 1342 | X161: 879.97 | Y161: 879.97 | Z161: 879.97 | AA161: 0 | AB161: 0
A162: 380816_147 | B162: 147 | C162: Банк Січ | D162: =IFERROR(VLOOKUP(C162,Hidden_Словник!$A$2:$C$106,3,FALSE),"") -> 380816 | E162: Інше | F162: Київ | G162: Інше | I162: 34092020001132 | J162: основні засоби | K162: Гривня | L162: 0 | M162: 2018-12-27 | N162: - | O162: НІ | Q162: - | R162: - | S162: - | T162: - | U162: ЗАТ «КОНСАЛТИНГЮРСЕРВІС»123 283,49 | V162: 2022-11-30 | W162: 1367 | X162: 896.48 | Y162: 896.48 | Z162: 896.48 | AA162: 0 | AB162: 0
A163: 380816_148 | B163: 148 | C163: Банк Січ | D163: =IFERROR(VLOOKUP(C163,Hidden_Словник!$A$2:$C$106,3,FALSE),"") -> 380816 | E163: Інше | F163: Київ | G163: Інше | I163: 34092020001133 | J163: основні засоби | K163: Гривня | L163: 0 | M163: 2018-12-27 | N163: - | O163: НІ | Q163: - | R163: - | S163: - | T163: - | U163: ЗАТ «КОНСАЛТИНГЮРСЕРВІС»123 283,49 | V163: 2022-11-30 | W163: 1 | X163: 899.12 | Y163: 899.12 | Z163: 899.12 | AA163: 0 | AB163: 0
A164: 380816_149 | B164: 149 | C164: Банк Січ | D164: =IFERROR(VLOOKUP(C164,Hidden_Словник!$A$2:$C$106,3,FALSE),"") -> 380816 | E164: Інше | F164: Київ | G164: Інше | I164: 34092020001134 | J164: основні засоби | K164: Гривня | L164: 0 | M164: 2018-12-27 | N164: - | O164: НІ | Q164: - | R164: - | S164: - | T164: - | U164: ЗАТ «КОНСАЛТИНГЮРСЕРВІС»123 283,49 | V164: 2022-11-30 | W164: 1375 | X164: 902.03 | Y164: 902.03 | Z164: 902.03 | AA164: 0 | AB164: 0
A165: 380816_150 | B165: 150 | C165: Банк Січ | D165: =IFERROR(VLOOKUP(C165,Hidden_Словник!$A$2:$C$106,3,FALSE),"") -> 380816 | E165: Інше | F165: Київ | G165: Інше | I165: 34092020001135 | J165: основні засоби | K165: Гривня | L165: 0 | M165: 2018-12-27 | N165: - | O165: НІ | Q165: - | R165: - | S165: - | T165: - | U165: ЗАТ «КОНСАЛТИНГЮРСЕРВІС»123 283,49 | V165: 2022-11-30 | W165: 1375 | X165: 902.03 | Y165: 902.03 | Z165: 902.03 | AA165: 0 | AB165: 0
A166: 380816_151 | B166: 151 | C166: Банк Січ | D166: =IFERROR(VLOOKUP(C166,Hidden_Словник!$A$2:$C$106,3,FALSE),"") -> 380816 | E166: Інше | F166: Київ | G166: Інше | I166: 34092020001136 | J166: основні засоби | K166: Гривня | L166: 0 | M166: 2018-12-27 | N166: - | O166: НІ | Q166: - | R166: - | S166: - | T166: - | U166: ЗАТ «КОНСАЛТИНГЮРСЕРВІС»123 283,49 | V166: 2022-11-30 | W166: 1379 | X166: 904.8 | Y166: 904.8 | Z166: 904.8 | AA166: 0 | AB166: 0
A167: 380816_152 | B167: 152 | C167: Банк Січ | D167: =IFERROR(VLOOKUP(C167,Hidden_Словник!$A$2:$C$106,3,FALSE),"") -> 380816 | E167: Інше | F167: Київ | G167: Інше | I167: 34092020001137 | J167: основні засоби | K167: Гривня | L167: 0 | M167: 2018-12-27 | N167: - | O167: НІ | Q167: - | R167: - | S167: - | T167: - | U167: ЗАТ «КОНСАЛТИНГЮРСЕРВІС»123 283,49 | V167: 2022-11-30 | W167: 1 | X167: 907.18 | Y167: 907.18 | Z167: 907.18 | AA167: 0 | AB167: 0
A168: 380816_153 | B168: 153 | C168: Банк Січ | D168: =IFERROR(VLOOKUP(C168,Hidden_Словник!$A$2:$C$106,3,FALSE),"") -> 380816 | E168: Інше | F168: Київ | G168: Інше | I168: 34092020001138 | J168: основні засоби | K168: Гривня | L168: 0 | M168: 2018-12-27 | N168: - | O168: НІ | Q168: - | R168: - | S168: - | T168: - | U168: ЗАТ «КОНСАЛТИНГЮРСЕРВІС»123 283,49 | V168: 2022-11-30 | W168: 1 | X168: 929.6 | Y168: 929.6 | Z168: 929.6 | AA168: 0 | AB168: 0
A169: 380816_154 | B169: 154 | C169: Банк Січ | D169: =IFERROR(VLOOKUP(C169,Hidden_Словник!$A$2:$C$106,3,FALSE),"") -> 380816 | E169: Інше | F169: Київ | G169: Інше | I169: 34092020001139 | J169: основні засоби | K169: Гривня | L169: 0 | M169: 2018-12-27 | N169: - | O169: НІ | Q169: - | R169: - | S169: - | T169: - | U169: ЗАТ «КОНСАЛТИНГЮРСЕРВІС»123 283,49 | V169: 2022-11-30 | W169: 1 | X169: 972.03 | Y169: 972.03 | Z169: 972.03 | AA169: 0 | AB169: 0
A170: 380816_155 | B170: 155 | C170: Банк Січ | D170: =IFERROR(VLOOKUP(C170,Hidden_Словник!$A$2:$C$106,3,FALSE),"") -> 380816 | E170: Інше | F170: Київ | G170: Інше | I170: 34092020001140 | J170: основні засоби | K170: Гривня | L170: 0 | M170: 2018-12-27 | N170: - | O170: НІ | Q170: - | R170: - | S170: - | T170: - | U170: ЗАТ «КОНСАЛТИНГЮРСЕРВІС»123 283,49 | V170: 2022-11-30 | W170: 1 | X170: 979.35 | Y170: 979.35 | Z170: 979.35 | AA170: 0 | AB170: 0
A171: 380816_156 | B171: 156 | C171: Банк Січ | D171: =IFERROR(VLOOKUP(C171,Hidden_Словник!$A$2:$C$106,3,FALSE),"") -> 380816 | E171: Інше | F171: Київ | G171: Інше | I171: 34092020001141 | J171: основні засоби | K171: Гривня | L171: 0 | M171: 2018-12-27 | N171: - | O171: НІ | Q171: - | R171: - | S171: - | T171: - | U171: ЗАТ «КОНСАЛТИНГЮРСЕРВІС»123 283,49 | V171: 2022-11-30 | W171: 1 | X171: 985.02 | Y171: 985.02 | Z171: 985.02 | AA171: 0 | AB171: 0
A172: 380816_157 | B172: 157 | C172: Банк Січ | D172: =IFERROR(VLOOKUP(C172,Hidden_Словник!$A$2:$C$106,3,FALSE),"") -> 380816 | E172: Інше | F172: Київ | G172: Інше | I172: 34092020001142 | J172: основні засоби | K172: Гривня | L172: 0 | M172: 2018-12-27 | N172: - | O172: НІ | Q172: - | R172: - | S172: - | T172: - | U172: ЗАТ «КОНСАЛТИНГЮРСЕРВІС»123 283,49 | V172: 2022-11-30 | W172: 1 | X172: 999.01 | Y172: 999.01 | Z172: 999.01 | AA172: 0 | AB172: 0
A173: 380816_158 | B173: 158 | C173: Банк Січ | D173: =IFERROR(VLOOKUP(C173,Hidden_Словник!$A$2:$C$106,3,FALSE),"") -> 380816 | E173: Інше | F173: Київ | G173: Інше | I173: 34092020001143 | J173: основні засоби | K173: Гривня | L173: 0 | M173: 2018-12-27 | N173: - | O173: НІ | Q173: - | R173: - | S173: - | T173: - | U173: ЗАТ «КОНСАЛТИНГЮРСЕРВІС»123 283,49 | V173: 2022-11-30 | W173: 1560 | X173: 1023.23 | Y173: 1023.23 | Z173: 1023.23 | AA173: 0 | AB173: 0
A174: 380816_159 | B174: 159 | C174: Банк Січ | D174: =IFERROR(VLOOKUP(C174,Hidden_Словник!$A$2:$C$106,3,FALSE),"") -> 380816 | E174: Інше | F174: Київ | G174: Інше | I174: 34092020001144 | J174: основні засоби | K174: Гривня | L174: 0 | M174: 2018-12-27 | N174: - | O174: НІ | Q174: - | R174: - | S174: - | T174: - | U174: ЗАТ «КОНСАЛТИНГЮРСЕРВІС»123 283,49 | V174: 2022-11-30 | W174: 1 | X174: 1024.71 | Y174: 1024.71 | Z174: 1024.71 | AA174: 0 | AB174: 0
A175: 380816_160 | B175: 160 | C175: Банк Січ | D175: =IFERROR(VLOOKUP(C175,Hidden_Словник!$A$2:$C$106,3,FALSE),"") -> 380816 | E175: Інше | F175: Київ | G175: Інше | I175: 34092020001145 | J175: основні засоби | K175: Гривня | L175: 0 | M175: 2018-12-27 | N175: - | O175: НІ | Q175: - | R175: - | S175: - | T175: - | U175: ЗАТ «КОНСАЛТИНГЮРСЕРВІС»123 283,49 | V175: 2022-11-30 | W175: 1565 | X175: 1026.19 | Y175: 1026.19 | Z175: 1026.19 | AA175: 0 | AB175: 0
A176: 380816_161 | B176: 161 | C176: Банк Січ | D176: =IFERROR(VLOOKUP(C176,Hidden_Словник!$A$2:$C$106,3,FALSE),"") -> 380816 | E176: Інше | F176: Київ | G176: Інше | I176: 34092020001146 | J176: основні засоби | K176: Гривня | L176: 0 | M176: 2018-12-27 | N176: - | O176: НІ | Q176: - | R176: - | S176: - | T176: - | U176: ЗАТ «КОНСАЛТИНГЮРСЕРВІС»123 283,49 | V176: 2022-11-30 | W176: 1 | X176: 1034.37 | Y176: 1034.37 | Z176: 1034.37 | AA176: 0 | AB176: 0
A177: 380816_162 | B177: 162 | C177: Банк Січ | D177: =IFERROR(VLOOKUP(C177,Hidden_Словник!$A$2:$C$106,3,FALSE),"") -> 380816 | E177: Інше | F177: Київ | G177: Інше | I177: 34092020001147 | J177: основні засоби | K177: Гривня | L177: 0 | M177: 2018-12-27 | N177: - | O177: НІ | Q177: - | R177: - | S177: - | T177: - | U177: ЗАТ «КОНСАЛТИНГЮРСЕРВІС»123 283,49 | V177: 2022-11-30 | W177: 1 | X177: 1042.64 | Y177: 1042.64 | Z177: 1042.64 | AA177: 0 | AB177: 0
A178: 380816_163 | B178: 163 | C178: Банк Січ | D178: =IFERROR(VLOOKUP(C178,Hidden_Словник!$A$2:$C$106,3,FALSE),"") -> 380816 | E178: Інше | F178: Київ | G178: Інше | I178: 34092020001148 | J178: основні засоби | K178: Гривня | L178: 0 | M178: 2018-12-27 | N178: - | O178: НІ | Q178: - | R178: - | S178: - | T178: - | U178: ЗАТ «КОНСАЛТИНГЮРСЕРВІС»123 283,49 | V178: 2022-11-30 | W178: 1 | X178: 1046.55 | Y178: 1046.55 | Z178: 1046.55 | AA178: 0 | AB178: 0
A179: 380816_164 | B179: 164 | C179: Банк Січ | D179: =IFERROR(VLOOKUP(C179,Hidden_Словник!$A$2:$C$106,3,FALSE),"") -> 380816 | E179: Інше | F179: Київ | G179: Інше | I179: 34092020001149 | J179: основні засоби | K179: Гривня | L179: 0 | M179: 2018-12-27 | N179: - | O179: НІ | Q179: - | R179: - | S179: - | T179: - | U179: ЗАТ «КОНСАЛТИНГЮРСЕРВІС»123 283,49 | V179: 2022-11-30 | W179: 1 | X179: 1049.16 | Y179: 1049.16 | Z179: 1049.16 | AA179: 0 | AB179: 0
A180: 380816_165 | B180: 165 | C180: Банк Січ | D180: =IFERROR(VLOOKUP(C180,Hidden_Словник!$A$2:$C$106,3,FALSE),"") -> 380816 | E180: Інше | F180: Київ | G180: Інше | I180: 34092020001150 | J180: основні засоби | K180: Гривня | L180: 0 | M180: 2018-12-27 | N180: - | O180: НІ | Q180: - | R180: - | S180: - | T180: - | U180: ЗАТ «КОНСАЛТИНГЮРСЕРВІС»123 283,49 | V180: 2022-11-30 | W180: 1612 | X180: 1057.29 | Y180: 1057.29 | Z180: 1057.29 | AA180: 0 | AB180: 0
A181: 380816_166 | B181: 166 | C181: Банк Січ | D181: =IFERROR(VLOOKUP(C181,Hidden_Словник!$A$2:$C$106,3,FALSE),"") -> 380816 | E181: Інше | F181: Київ | G181: Інше | I181: 34092020001151 | J181: основні засоби | K181: Гривня | L181: 0 | M181: 2018-12-27 | N181: - | O181: НІ | Q181: - | R181: - | S181: - | T181: - | U181: ЗАТ «КОНСАЛТИНГЮРСЕРВІС»123 283,49 | V181: 2022-11-30 | W181: 1612 | X181: 1057.29 | Y181: 1057.29 | Z181: 1057.29 | AA181: 0 | AB181: 0
A182: 380816_167 | B182: 167 | C182: Банк Січ | D182: =IFERROR(VLOOKUP(C182,Hidden_Словник!$A$2:$C$106,3,FALSE),"") -> 380816 | E182: Інше | F182: Київ | G182: Інше | I182: 34092020001152 | J182: основні засоби | K182: Гривня | L182: 0 | M182: 2018-12-27 | N182: - | O182: НІ | Q182: - | R182: - | S182: - | T182: - | U182: ЗАТ «КОНСАЛТИНГЮРСЕРВІС»123 283,49 | V182: 2022-11-30 | W182: 1 | X182: 1057.81 | Y182: 1057.81 | Z182: 1057.81 | AA182: 0 | AB182: 0
A183: 380816_168 | B183: 168 | C183: Банк Січ | D183: =IFERROR(VLOOKUP(C183,Hidden_Словник!$A$2:$C$106,3,FALSE),"") -> 380816 | E183: Інше | F183: Київ | G183: Інше | I183: 34092020001153 | J183: основні засоби | K183: Гривня | L183: 0 | M183: 2018-12-27 | N183: - | O183: НІ | Q183: - | R183: - | S183: - | T183: - | U183: ЗАТ «КОНСАЛТИНГЮРСЕРВІС»123 283,49 | V183: 2022-11-30 | W183: 1 | X183: 1062.93 | Y183: 1062.93 | Z183: 1062.93 | AA183: 0 | AB183: 0
A184: 380816_169 | B184: 169 | C184: Банк Січ | D184: =IFERROR(VLOOKUP(C184,Hidden_Словник!$A$2:$C$106,3,FALSE),"") -> 380816 | E184: Інше | F184: Київ | G184: Інше | I184: 34092020001154 | J184: основні засоби | K184: Гривня | L184: 0 | M184: 2018-12-27 | N184: - | O184: НІ | Q184: - | R184: - | S184: - | T184: - | U184: ЗАТ «КОНСАЛТИНГЮРСЕРВІС»123 283,49 | V184: 2022-11-30 | W184: 1640 | X184: 1075.57 | Y184: 1075.57 | Z184: 1075.57 | AA184: 0 | AB184: 0
A185: 380816_170 | B185: 170 | C185: Банк Січ | D185: =IFERROR(VLOOKUP(C185,Hidden_Словник!$A$2:$C$106,3,FALSE),"") -> 380816 | E185: Інше | F185: Київ | G185: Інше | I185: 34092020001155 | J185: основні засоби | K185: Гривня | L185: 0 | M185: 2018-12-27 | N185: - | O185: НІ | Q185: - | R185: - | S185: - | T185: - | U185: ЗАТ «КОНСАЛТИНГЮРСЕРВІС»123 283,49 | V185: 2022-11-30 | W185: 1643 | X185: 1077.52 | Y185: 1077.52 | Z185: 1077.52 | AA185: 0 | AB185: 0
A186: 380816_171 | B186: 171 | C186: Банк Січ | D186: =IFERROR(VLOOKUP(C186,Hidden_Словник!$A$2:$C$106,3,FALSE),"") -> 380816 | E186: Інше | F186: Київ | G186: Інше | I186: 34092020001156 | J186: основні засоби | K186: Гривня | L186: 0 | M186: 2018-12-27 | N186: - | O186: НІ | Q186: - | R186: - | S186: - | T186: - | U186: ЗАТ «КОНСАЛТИНГЮРСЕРВІС»123 283,49 | V186: 2022-11-30 | W186: 1 | X186: 1087.68 | Y186: 1087.68 | Z186: 1087.68 | AA186: 0 | AB186: 0
A187: 380816_172 | B187: 172 | C187: Банк Січ | D187: =IFERROR(VLOOKUP(C187,Hidden_Словник!$A$2:$C$106,3,FALSE),"") -> 380816 | E187: Інше | F187: Київ | G187: Інше | I187: 34092020001157 | J187: основні засоби | K187: Гривня | L187: 0 | M187: 2018-12-27 | N187: - | O187: НІ | Q187: - | R187: - | S187: - | T187: - | U187: ЗАТ «КОНСАЛТИНГЮРСЕРВІС»123 283,49 | V187: 2022-11-30 | W187: 1763 | X187: 1156.15 | Y187: 1156.15 | Z187: 1156.15 | AA187: 0 | AB187: 0
A188: 380816_173 | B188: 173 | C188: Банк Січ | D188: =IFERROR(VLOOKUP(C188,Hidden_Словник!$A$2:$C$106,3,FALSE),"") -> 380816 | E188: Інше | F188: Київ | G188: Інше | I188: 34092020001158 | J188: основні засоби | K188: Гривня | L188: 0 | M188: 2018-12-27 | N188: - | O188: НІ | Q188: - | R188: - | S188: - | T188: - | U188: ЗАТ «КОНСАЛТИНГЮРСЕРВІС»123 283,49 | V188: 2022-11-30 | W188: 1 | X188: 1185.71 | Y188: 1185.71 | Z188: 1185.71 | AA188: 0 | AB188: 0
A189: 380816_174 | B189: 174 | C189: Банк Січ | D189: =IFERROR(VLOOKUP(C189,Hidden_Словник!$A$2:$C$106,3,FALSE),"") -> 380816 | E189: Інше | F189: Київ | G189: Інше | I189: 34092020001159 | J189: основні засоби | K189: Гривня | L189: 0 | M189: 2018-12-27 | N189: - | O189: НІ | Q189: - | R189: - | S189: - | T189: - | U189: ЗАТ «КОНСАЛТИНГЮРСЕРВІС»123 283,49 | V189: 2022-11-30 | W189: 1 | X189: 1190.28 | Y189: 1190.28 | Z189: 1190.28 | AA189: 0 | AB189: 0
A190: 380816_175 | B190: 175 | C190: Банк Січ | D190: =IFERROR(VLOOKUP(C190,Hidden_Словник!$A$2:$C$106,3,FALSE),"") -> 380816 | E190: Інше | F190: Київ | G190: Інше | I190: 34092020001160 | J190: основні засоби | K190: Гривня | L190: 0 | M190: 2018-12-27 | N190: - | O190: НІ | Q190: - | R190: - | S190: - | T190: - | U190: ЗАТ «КОНСАЛТИНГЮРСЕРВІС»123 283,49 | V190: 2022-11-30 | W190: 1 | X190: 1190.9 | Y190: 1190.9 | Z190: 1190.9 | AA190: 0 | AB190: 0
A191: 380816_176 | B191: 176 | C191: Банк Січ | D191: =IFERROR(VLOOKUP(C191,Hidden_Словник!$A$2:$C$106,3,FALSE),"") -> 380816 | E191: Інше | F191: Київ | G191: Інше | I191: 34092020001161 | J191: основні засоби | K191: Гривня | L191: 0 | M191: 2018-12-27 | N191: - | O191: НІ | Q191: - | R191: - | S191: - | T191: - | U191: ЗАТ «КОНСАЛТИНГЮРСЕРВІС»123 283,49 | V191: 2022-11-30 | W191: 1834 | X191: 1202.56 | Y191: 1202.56 | Z191: 1202.56 | AA191: 0 | AB191: 0
A192: 380816_177 | B192: 177 | C192: Банк Січ | D192: =IFERROR(VLOOKUP(C192,Hidden_Словник!$A$2:$C$106,3,FALSE),"") -> 380816 | E192: Інше | F192: Київ | G192: Інше | I192: 34092020001162 | J192: основні засоби | K192: Гривня | L192: 0 | M192: 2018-12-27 | N192: - | O192: НІ | Q192: - | R192: - | S192: - | T192: - | U192: ЗАТ «КОНСАЛТИНГЮРСЕРВІС»123 283,49 | V192: 2022-11-30 | W192: 1 | X192: 1207.9 | Y192: 1207.9 | Z192: 1207.9 | AA192: 0 | AB192: 0
A193: 380816_178 | B193: 178 | C193: Банк Січ | D193: =IFERROR(VLOOKUP(C193,Hidden_Словник!$A$2:$C$106,3,FALSE),"") -> 380816 | E193: Інше | F193: Київ | G193: Інше | I193: 34092020001163 | J193: основні засоби | K193: Гривня | L193: 0 | M193: 2018-12-27 | N193: - | O193: НІ | Q193: - | R193: - | S193: - | T193: - | U193: ЗАТ «КОНСАЛТИНГЮРСЕРВІС»123 283,49 | V193: 2022-11-30 | W193: 1 | X193: 1229.76 | Y193: 1229.76 | Z193: 1229.76 | AA193: 0 | AB193: 0
A194: 380816_179 | B194: 179 | C194: Банк Січ | D194: =IFERROR(VLOOKUP(C194,Hidden_Словник!$A$2:$C$106,3,FALSE),"") -> 380816 | E194: Інше | F194: Київ | G194: Інше | I194: 34092020001164 | J194: основні засоби | K194: Гривня | L194: 0 | M194: 2018-12-27 | N194: - | O194: НІ | Q194: - | R194: - | S194: - | T194: - | U194: ЗАТ «КОНСАЛТИНГЮРСЕРВІС»123 283,49 | V194: 2022-11-30 | W194: 1 | X194: 1238.46 | Y194: 1238.46 | Z194: 1238.46 | AA194: 0 | AB194: 0
A195: 380816_180 | B195: 180 | C195: Банк Січ | D195: =IFERROR(VLOOKUP(C195,Hidden_Словник!$A$2:$C$106,3,FALSE),"") -> 380816 | E195: Інше | F195: Київ | G195: Інше | I195: 34092020001165 | J195: основні засоби | K195: Гривня | L195: 0 | M195: 2018-12-27 | N195: - | O195: НІ | Q195: - | R195: - | S195: - | T195: - | U195: ЗАТ «КОНСАЛТИНГЮРСЕРВІС»123 283,49 | V195: 2022-11-30 | W195: 1904 | X195: 1248.8 | Y195: 1248.8 | Z195: 1248.8 | AA195: 0 | AB195: 0
A196: 380816_181 | B196: 181 | C196: Банк Січ | D196: =IFERROR(VLOOKUP(C196,Hidden_Словник!$A$2:$C$106,3,FALSE),"") -> 380816 | E196: Інше | F196: Київ | G196: Інше | I196: 34092020001166 | J196: основні засоби | K196: Гривня | L196: 0 | M196: 2018-12-27 | N196: - | O196: НІ | Q196: - | R196: - | S196: - | T196: - | U196: ЗАТ «КОНСАЛТИНГЮРСЕРВІС»123 283,49 | V196: 2022-11-30 | W196: 1 | X196: 1280.77 | Y196: 1280.77 | Z196: 1280.77 | AA196: 0 | AB196: 0
A197: 380816_182 | B197: 182 | C197: Банк Січ | D197: =IFERROR(VLOOKUP(C197,Hidden_Словник!$A$2:$C$106,3,FALSE),"") -> 380816 | E197: Інше | F197: Київ | G197: Інше | I197: 34092020001167 | J197: основні засоби | K197: Гривня | L197: 0 | M197: 2018-12-27 | N197: - | O197: НІ | Q197: - | R197: - | S197: - | T197: - | U197: ЗАТ «КОНСАЛТИНГЮРСЕРВІС»123 283,49 | V197: 2022-11-30 | W197: 1 | X197: 1304.26 | Y197: 1304.26 | Z197: 1304.26 | AA197: 0 | AB197: 0
A198: 380816_183 | B198: 183 | C198: Банк Січ | D198: =IFERROR(VLOOKUP(C198,Hidden_Словник!$A$2:$C$106,3,FALSE),"") -> 380816 | E198: Інше | F198: Київ | G198: Інше | I198: 34092020001168 | J198: основні засоби | K198: Гривня | L198: 0 | M198: 2018-12-27 | N198: - | O198: НІ | Q198: - | R198: - | S198: - | T198: - | U198: ЗАТ «КОНСАЛТИНГЮРСЕРВІС»123 283,49 | V198: 2022-11-30 | W198: 1994 | X198: 1308.06 | Y198: 1308.06 | Z198: 1308.06 | AA198: 0 | AB198: 0
A199: 380816_184 | B199: 184 | C199: Банк Січ | D199: =IFERROR(VLOOKUP(C199,Hidden_Словник!$A$2:$C$106,3,FALSE),"") -> 380816 | E199: Інше | F199: Київ | G199: Інше | I199: 34092020001169 | J199: основні засоби | K199: Гривня | L199: 0 | M199: 2018-12-27 | N199: - | O199: НІ | Q199: - | R199: - | S199: - | T199: - | U199: ЗАТ «КОНСАЛТИНГЮРСЕРВІС»123 283,49 | V199: 2022-11-30 | W199: 1 | X199: 1331.72 | Y199: 1331.72 | Z199: 1331.72 | AA199: 0 | AB199: 0
A200: 380816_185 | B200: 185 | C200: Банк Січ | D200: =IFERROR(VLOOKUP(C200,Hidden_Словник!$A$2:$C$106,3,FALSE),"") -> 380816 | E200: Інше | F200: Київ | G200: Інше | I200: 34092020001170 | J200: основні засоби | K200: Гривня | L200: 0 | M200: 2018-12-27 | N200: - | O200: НІ | Q200: - | R200: - | S200: - | T200: - | U200: ЗАТ «КОНСАЛТИНГЮРСЕРВІС»123 283,49 | V200: 2022-11-30 | W200: 1 | X200: 1339.15 | Y200: 1339.15 | Z200: 1339.15 | AA200: 0 | AB200: 0
A201: 380816_186 | B201: 186 | C201: Банк Січ | D201: =IFERROR(VLOOKUP(C201,Hidden_Словник!$A$2:$C$106,3,FALSE),"") -> 380816 | E201: Інше | F201: Київ | G201: Інше | I201: 34092020001171 | J201: основні засоби | K201: Гривня | L201: 0 | M201: 2018-12-27 | N201: - | O201: НІ | Q201: - | R201: - | S201: - | T201: - | U201: ЗАТ «КОНСАЛТИНГЮРСЕРВІС»123 283,49 | V201: 2022-11-30 | W201: 1 | X201: 1344.7 | Y201: 1344.7 | Z201: 1344.7 | AA201: 0 | AB201: 0
A202: 380816_187 | B202: 187 | C202: Банк Січ | D202: =IFERROR(VLOOKUP(C202,Hidden_Словник!$A$2:$C$106,3,FALSE),"") -> 380816 | E202: Інше | F202: Київ | G202: Інше | I202: 34092020001172 | J202: основні засоби | K202: Гривня | L202: 0 | M202: 2018-12-27 | N202: - | O202: НІ | Q202: - | R202: - | S202: - | T202: - | U202: ЗАТ «КОНСАЛТИНГЮРСЕРВІС»123 283,49 | V202: 2022-11-30 | W202: 1 | X202: 1349.34 | Y202: 1349.34 | Z202: 1349.34 | AA202: 0 | AB202: 0
A203: 380816_188 | B203: 188 | C203: Банк Січ | D203: =IFERROR(VLOOKUP(C203,Hidden_Словник!$A$2:$C$106,3,FALSE),"") -> 380816 | E203: Інше | F203: Київ | G203: Інше | I203: 34092020001173 | J203: основні засоби | K203: Гривня | L203: 0 | M203: 2018-12-27 | N203: - | O203: НІ | Q203: - | R203: - | S203: - | T203: - | U203: ЗАТ «КОНСАЛТИНГЮРСЕРВІС»123 283,49 | V203: 2022-11-30 | W203: 1 | X203: 1350.23 | Y203: 1350.23 | Z203: 1350.23 | AA203: 0 | AB203: 0
A204: 380816_189 | B204: 189 | C204: Банк Січ | D204: =IFERROR(VLOOKUP(C204,Hidden_Словник!$A$2:$C$106,3,FALSE),"") -> 380816 | E204: Інше | F204: Київ | G204: Інше | I204: 34092020001174 | J204: основні засоби | K204: Гривня | L204: 0 | M204: 2018-12-27 | N204: - | O204: НІ | Q204: - | R204: - | S204: - | T204: - | U204: ЗАТ «КОНСАЛТИНГЮРСЕРВІС»123 283,49 | V204: 2022-11-30 | W204: 1 | X204: 1350.44 | Y204: 1350.44 | Z204: 1350.44 | AA204: 0 | AB204: 0
A205: 380816_190 | B205: 190 | C205: Банк Січ | D205: =IFERROR(VLOOKUP(C205,Hidden_Словник!$A$2:$C$106,3,FALSE),"") -> 380816 | E205: Інше | F205: Київ | G205: Інше | I205: 34092020001175 | J205: основні засоби | K205: Гривня | L205: 0 | M205: 2018-12-27 | N205: - | O205: НІ | Q205: - | R205: - | S205: - | T205: - | U205: ЗАТ «КОНСАЛТИНГЮРСЕРВІС»123 283,49 | V205: 2022-11-30 | W205: 1 | X205: 1361.85 | Y205: 1361.85 | Z205: 1361.85 | AA205: 0 | AB205: 0
A206: 380816_191 | B206: 191 | C206: Банк Січ | D206: =IFERROR(VLOOKUP(C206,Hidden_Словник!$A$2:$C$106,3,FALSE),"") -> 380816 | E206: Інше | F206: Київ | G206: Інше | I206: 34092020001176 | J206: основні засоби | K206: Гривня | L206: 0 | M206: 2018-12-27 | N206: - | O206: НІ | Q206: - | R206: - | S206: - | T206: - | U206: ЗАТ «КОНСАЛТИНГЮРСЕРВІС»123 283,49 | V206: 2022-11-30 | W206: 1 | X206: 1362.59 | Y206: 1362.59 | Z206: 1362.59 | AA206: 0 | AB206: 0
... 806 more rows

Sheet 2.Забезпечення
B1: Цей документ був підготовлений Фондом гарантування вкладів фізичних осіб (далі – Фонд) виключно для інформаційних цілей і не повинен вважатися як спонукання до будь-яких дій чи бездіяльності. Інформація, що міститься в цьому документі, була отримана з/або ґрунтується на джерелах, які вважаються надійними, але не є вичерпною та не може сприйматися як повна або актуальна. Зокрема, але не виключно, станом на дату придбання активів допускаються несуттєві зміни лота, в складі якого продаються такі активи. Під несуттєвими змінами лота слід розуміти такі зміни характеристик активів у складі такого лота, які впливають на його балансову вартість, але не більше ніж на 10 відсотків. Рішення покупця щодо будь-яких дій або бездіяльності повинно ґрунтуватися на власних оцінках та дослідженнях майна (активу/активів), котре реалізується. Фонд не несе відповідальності за рішення покупця та його наслідки, що ґрунтується на інформації, викладеній в даному документі.
A9: Звітна дата | B9: : | C9: 01.09.2023, 01.10.2023
A10: unicid | B10: Colateral_ID | C10: Банк | D10: № кред. Дог | E10: Тип застави | F10: Кількість застави | G10: (га, м2, шт., тощо) | H10: Область знаходження застави | I10: Населений пункт (місто/село/смт.) | J10: Сума/вартість за договором (грн.екв.) | K10: Реєстрація у держ. Реєстрі (обтяження) (так/ні) | L10: Ознака банкрутства/ліквідації заставодавця/фінансового поручителя(відповідно ЄДР на дату заповнення паспорту) | M10: Додаткові коментарі про заставу (у випадку наявності в Банку інформації, в т.ч. щодо виведення застави, руйнування, знаходження в розшуку, тощо)
A11: 380816__1 | B11: 380816_300734272585602476 | C11: Банк Січ | D11: 203470-ГР-3581 | E11: фінансова порука | F11: - | J11: 3007341.89 | K11: НІ
A12: 380816__2 | B12: 380816_99897972585602476 | C12: Банк Січ | D12: 203470-ГР-3582 | E12: фінансова порука | F12: - | J12: 998978.24 | K12: НІ
A13: 380816__3 | B13: 380816_080 | C13: Банк Січ | D13: 203570-ГР-2511 | E13: беззаставний
A14: 380816__4 | B14: 380816_080 | C14: Банк Січ | D14: 173/13 | E14: беззаставний
A15: 380816__5 | B15: 380816_080 | C15: Банк Січ | D15: 176/13 | E15: беззаставний
A16: 380816__6 | B16: 380816_080 | C16: Банк Січ | D16: 258/19 | E16: беззаставний
A17: 380816__7 | B17: 380816_60000072971003531 | C17: Банк Січ | D17: 246/19 | E17: фінансова порука | F17: - | J17: 600000
A18: 380816__7 | B18: 380816_600000739376250 | C18: Банк Січ | D18: 246/19 | E18: фінансова порука | F18: - | J18: 600000 | L18: Діюче
A19: 380816__7 | B19: 380816_600000740806442 | C19: Банк Січ | D19: 246/19 | E19: фінансова порука | F19: - | J19: 600000 | L19: Діюче
A20: 380816__8 | B20: 380816_080 | C20: Банк Січ | D20: 112/21 | E20: беззаставний
A21: 380816__9 | B21: 380816_080 | C21: Банк Січ | D21: 463/21 | E21: беззаставний
A22: 380816__10 | B22: 380816_50000000742454380 | C22: Банк Січ | D22: 394/21 | E22: фінансова порука | F22: - | J22: 50000000 | L22: Діюче
A23: 380816__11 | B23: 380816_080 | C23: Банк Січ | D23: 26002001204450 | E23: беззаставний
A24: 380816__12 | B24: 380816_080 | C24: Банк Січ | D24: 26001002204450 | E24: беззаставний
A25: 380816__13 | B25: 380816_76370284334726705 | C25: Банк Січ | D25: 104/13 | E25: обладнання | F25: 4425 | G25: од. | H25: Київська | J25: 76370283.24 | K25: ТАК | L25: Діюче
A26: 380816__13 | B26: 380816_64879234726705 | C26: Банк Січ | D26: 104/13 | E26: транспорт | F26: 1 | G26: од. | J26: 64879 | K26: НІ | L26: Діюче | M26: заставне авто в розшуку
A27: 380816__13 | B27: 380816_351648234726705 | C27: Банк Січ | D27: 104/13 | E27: транспорт | F27: 1 | G27: од. | J27: 351647.13 | K27: НІ | L27: Діюче | M27: заставне авто в розшуку
A28: 380816__13 | B28: 380816_76239234726705 | C28: Банк Січ | D28: 104/13 | E28: транспорт | F28: 1 | G28: од. | J28: 76239 | K28: НІ | L28: Діюче | M28: заставне авто в розшуку
A29: 380816__13 | B29: 380816_3000000072201307438 | C29: Банк Січ | D29: 104/13 | E29: фінансова порука | F29: - | J29: 30000000 | K29: НІ
A30: 380816__14 | B30: 380816_080 | C30: Банк Січ | D30: 26004010664 | E30: беззаставний
A31: 380816__15 | B31: 380816_33852050337716841 | C31: Банк Січ | D31: 578/21 | E31: обладнання | F31: 406 | G31: од. | H31: Київ | I31: Київ | J31: 33852050 | L31: Інше
A32: 380816__16 | B32: 380816_080 | C32: Банк Січ | D32: 34092020000011 | E32: беззаставний
A33: 380816__17 | B33: 380816_080 | C33: Банк Січ | D33: 34092020000012 | E33: беззаставний
A34: 380816__18 | B34: 380816_080 | C34: Банк Січ | D34: 34092020000013 | E34: беззаставний
A35: 380816__19 | B35: 380816_080 | C35: Банк Січ | D35: 34092020000014 | E35: беззаставний
A36: 380816__20 | B36: 380816_080 | C36: Банк Січ | D36: 34092020000015 | E36: беззаставний
A37: 380816__21 | B37: 380816_080 | C37: Банк Січ | D37: 34092020000016 | E37: беззаставний
A38: 380816__22 | B38: 380816_080 | C38: Банк Січ | D38: 34092020000017 | E38: беззаставний
A39: 380816__23 | B39: 380816_080 | C39: Банк Січ | D39: 34092020000018 | E39: беззаставний
A40: 380816__24 | B40: 380816_080 | C40: Банк Січ | D40: 34092020000019 | E40: беззаставний
A41: 380816__25 | B41: 380816_080 | C41: Банк Січ | D41: 34092020000110 | E41: беззаставний
A42: 380816__26 | B42: 380816_080 | C42: Банк Січ | D42: 34092020000111 | E42: беззаставний
A43: 380816__27 | B43: 380816_080 | C43: Банк Січ | D43: 34092020000112 | E43: беззаставний
A44: 380816__28 | B44: 380816_080 | C44: Банк Січ | D44: 34092020000113 | E44: беззаставний
A45: 380816__29 | B45: 380816_080 | C45: Банк Січ | D45: 34092020000114 | E45: беззаставний
A46: 380816__30 | B46: 380816_080 | C46: Банк Січ | D46: 34092020000115 | E46: беззаставний
A47: 380816__31 | B47: 380816_080 | C47: Банк Січ | D47: 34092020000116 | E47: беззаставний
A48: 380816__32 | B48: 380816_080 | C48: Банк Січ | D48: 34092020000117 | E48: беззаставний
A49: 380816__33 | B49: 380816_080 | C49: Банк Січ | D49: 34092020000118 | E49: беззаставний
A50: 380816__34 | B50: 380816_080 | C50: Банк Січ | D50: 34092020000119 | E50: беззаставний
A51: 380816__35 | B51: 380816_080 | C51: Банк Січ | D51: 34092020000120 | E51: беззаставний
A52: 380816__36 | B52: 380816_080 | C52: Банк Січ | D52: 34092020000121 | E52: беззаставний
A53: 380816__37 | B53: 380816_080 | C53: Банк Січ | D53: 34092020000122 | E53: беззаставний
A54: 380816__38 | B54: 380816_080 | C54: Банк Січ | D54: 34092020000123 | E54: беззаставний
A55: 380816__39 | B55: 380816_080 | C55: Банк Січ | D55: 34092020000124 | E55: беззаставний
A56: 380816__40 | B56: 380816_080 | C56: Банк Січ | D56: 34092020000125 | E56: беззаставний
A57: 380816__41 | B57: 380816_080 | C57: Банк Січ | D57: 34092020000126 | E57: беззаставний
A58: 380816__42 | B58: 380816_080 | C58: Банк Січ | D58: 34092020000127 | E58: беззаставний
A59: 380816__43 | B59: 380816_080 | C59: Банк Січ | D59: 34092020000128 | E59: беззаставний
A60: 380816__44 | B60: 380816_080 | C60: Банк Січ | D60: 34092020000129 | E60: беззаставний
A61: 380816__45 | B61: 380816_080 | C61: Банк Січ | D61: 34092020000130 | E61: беззаставний
A62: 380816__46 | B62: 380816_080 | C62: Банк Січ | D62: 34092020000131 | E62: беззаставний
A63: 380816__47 | B63: 380816_080 | C63: Банк Січ | D63: 34092020000132 | E63: беззаставний
A64: 380816__48 | B64: 380816_080 | C64: Банк Січ | D64: 34092020000133 | E64: беззаставний
A65: 380816__49 | B65: 380816_080 | C65: Банк Січ | D65: 34092020000134 | E65: беззаставний
A66: 380816__50 | B66: 380816_080 | C66: Банк Січ | D66: 34092020000135 | E66: беззаставний
A67: 380816__51 | B67: 380816_080 | C67: Банк Січ | D67: 34092020000136 | E67: беззаставний
A68: 380816__52 | B68: 380816_080 | C68: Банк Січ | D68: 34092020000137 | E68: беззаставний
A69: 380816__53 | B69: 380816_080 | C69: Банк Січ | D69: 34092020000138 | E69: беззаставний
A70: 380816__54 | B70: 380816_080 | C70: Банк Січ | D70: 34092020000139 | E70: беззаставний
A71: 380816__55 | B71: 380816_080 | C71: Банк Січ | D71: 34092020000140 | E71: беззаставний
A72: 380816__56 | B72: 380816_080 | C72: Банк Січ | D72: 34092020000141 | E72: беззаставний
A73: 380816__57 | B73: 380816_080 | C73: Банк Січ | D73: 34092020000142 | E73: беззаставний
A74: 380816__58 | B74: 380816_080 | C74: Банк Січ | D74: 34092020000143 | E74: беззаставний
A75: 380816__59 | B75: 380816_080 | C75: Банк Січ | D75: 34092020000144 | E75: беззаставний
A76: 380816__60 | B76: 380816_080 | C76: Банк Січ | D76: 34092020000145 | E76: беззаставний
A77: 380816__61 | B77: 380816_080 | C77: Банк Січ | D77: 34092020000146 | E77: беззаставний
A78: 380816__62 | B78: 380816_080 | C78: Банк Січ | D78: 34092020000147 | E78: беззаставний
A79: 380816__63 | B79: 380816_080 | C79: Банк Січ | D79: 34092020000148 | E79: беззаставний
A80: 380816__64 | B80: 380816_080 | C80: Банк Січ | D80: 34092020000149 | E80: беззаставний
A81: 380816__65 | B81: 380816_080 | C81: Банк Січ | D81: 34092020000150 | E81: беззаставний
A82: 380816__66 | B82: 380816_080 | C82: Банк Січ | D82: 34092020000151 | E82: беззаставний
A83: 380816__67 | B83: 380816_080 | C83: Банк Січ | D83: 34092020000152 | E83: беззаставний
A84: 380816__68 | B84: 380816_080 | C84: Банк Січ | D84: 34092020000153 | E84: беззаставний
A85: 380816__69 | B85: 380816_080 | C85: Банк Січ | D85: 34092020000154 | E85: беззаставний
A86: 380816__70 | B86: 380816_080 | C86: Банк Січ | D86: 34092020000155 | E86: беззаставний
A87: 380816__71 | B87: 380816_080 | C87: Банк Січ | D87: 34092020000156 | E87: беззаставний
A88: 380816__72 | B88: 380816_080 | C88: Банк Січ | D88: 34092020000157 | E88: беззаставний
A89: 380816__73 | B89: 380816_080 | C89: Банк Січ | D89: 34092020000158 | E89: беззаставний
A90: 380816__74 | B90: 380816_080 | C90: Банк Січ | D90: 34092020000159 | E90: беззаставний
A91: 380816__75 | B91: 380816_080 | C91: Банк Січ | D91: 34092020000160 | E91: беззаставний
A92: 380816__76 | B92: 380816_080 | C92: Банк Січ | D92: 34092020000161 | E92: беззаставний
A93: 380816__77 | B93: 380816_080 | C93: Банк Січ | D93: 34092020000162 | E93: беззаставний
A94: 380816__78 | B94: 380816_080 | C94: Банк Січ | D94: 34092020000163 | E94: беззаставний
A95: 380816__79 | B95: 380816_080 | C95: Банк Січ | D95: 34092020000164 | E95: беззаставний
A96: 380816__80 | B96: 380816_080 | C96: Банк Січ | D96: 34092020000165 | E96: беззаставний
A97: 380816__81 | B97: 380816_080 | C97: Банк Січ | D97: 34092020000166 | E97: беззаставний
A98: 380816__82 | B98: 380816_080 | C98: Банк Січ | D98: 34092020000167 | E98: беззаставний
A99: 380816__83 | B99: 380816_080 | C99: Банк Січ | D99: 34092020000168 | E99: беззаставний
A100: 380816__84 | B100: 380816_080 | C100: Банк Січ | D100: 34092020000169 | E100: беззаставний
A101: 380816__85 | B101: 380816_080 | C101: Банк Січ | D101: 34092020000170 | E101: беззаставний
A102: 380816__86 | B102: 380816_080 | C102: Банк Січ | D102: 34092020000171 | E102: беззаставний
A103: 380816__87 | B103: 380816_080 | C103: Банк Січ | D103: 34092020000172 | E103: беззаставний
A104: 380816__88 | B104: 380816_080 | C104: Банк Січ | D104: 34092020000173 | E104: беззаставний
A105: 380816__89 | B105: 380816_080 | C105: Банк Січ | D105: 34092020000174 | E105: беззаставний
A106: 380816__90 | B106: 380816_080 | C106: Банк Січ | D106: 34092020000175 | E106: беззаставний
A107: 380816__91 | B107: 380816_080 | C107: Банк Січ | D107: 34092020000176 | E107: беззаставний
A108: 380816__92 | B108: 380816_080 | C108: Банк Січ | D108: 34092020000177 | E108: беззаставний
A109: 380816__93 | B109: 380816_080 | C109: Банк Січ | D109: 34092020000178 | E109: беззаставний
A110: 380816__94 | B110: 380816_080 | C110: Банк Січ | D110: 34092020000179 | E110: беззаставний
A111: 380816__95 | B111: 380816_080 | C111: Банк Січ | D111: 34092020000180 | E111: беззаставний
A112: 380816__96 | B112: 380816_080 | C112: Банк Січ | D112: 34092020000181 | E112: беззаставний
A113: 380816__97 | B113: 380816_080 | C113: Банк Січ | D113: 34092020000182 | E113: беззаставний
A114: 380816__98 | B114: 380816_080 | C114: Банк Січ | D114: 34092020000183 | E114: беззаставний
A115: 380816__99 | B115: 380816_080 | C115: Банк Січ | D115: 34092020000184 | E115: беззаставний
A116: 380816__100 | B116: 380816_080 | C116: Банк Січ | D116: 34092020000185 | E116: беззаставний
A117: 380816__101 | B117: 380816_080 | C117: Банк Січ | D117: 34092020000186 | E117: беззаставний
A118: 380816__102 | B118: 380816_080 | C118: Банк Січ | D118: 34092020000187 | E118: беззаставний
A119: 380816__103 | B119: 380816_080 | C119: Банк Січ | D119: 34092020000188 | E119: беззаставний
A120: 380816__104 | B120: 380816_080 | C120: Банк Січ | D120: 34092020000189 | E120: беззаставний
A121: 380816__105 | B121: 380816_080 | C121: Банк Січ | D121: 34092020000190 | E121: беззаставний
A122: 380816__106 | B122: 380816_080 | C122: Банк Січ | D122: 34092020000191 | E122: беззаставний
A123: 380816__107 | B123: 380816_080 | C123: Банк Січ | D123: 34092020000192 | E123: беззаставний
A124: 380816__108 | B124: 380816_080 | C124: Банк Січ | D124: 34092020000193 | E124: беззаставний
A125: 380816__109 | B125: 380816_080 | C125: Банк Січ | D125: 34092020000194 | E125: беззаставний
A126: 380816__110 | B126: 380816_080 | C126: Банк Січ | D126: 34092020000195 | E126: беззаставний
A127: 380816__111 | B127: 380816_080 | C127: Банк Січ | D127: 34092020000196 | E127: беззаставний
A128: 380816__112 | B128: 380816_080 | C128: Банк Січ | D128: 34092020000197 | E128: беззаставний
A129: 380816__113 | B129: 380816_080 | C129: Банк Січ | D129: 34092020000198 | E129: беззаставний
A130: 380816__114 | B130: 380816_080 | C130: Банк Січ | D130: 34092020000199 | E130: беззаставний
A131: 380816__115 | B131: 380816_080 | C131: Банк Січ | D131: 34092020001100 | E131: беззаставний
A132: 380816__116 | B132: 380816_080 | C132: Банк Січ | D132: 34092020001101 | E132: беззаставний
A133: 380816__117 | B133: 380816_080 | C133: Банк Січ | D133: 34092020001102 | E133: беззаставний
A134: 380816__118 | B134: 380816_080 | C134: Банк Січ | D134: 34092020001103 | E134: беззаставний
A135: 380816__119 | B135: 380816_080 | C135: Банк Січ | D135: 34092020001104 | E135: беззаставний
A136: 380816__120 | B136: 380816_080 | C136: Банк Січ | D136: 34092020001105 | E136: беззаставний
A137: 380816__121 | B137: 380816_080 | C137: Банк Січ | D137: 34092020001106 | E137: беззаставний
A138: 380816__122 | B138: 380816_080 | C138: Банк Січ | D138: 34092020001107 | E138: беззаставний
A139: 380816__123 | B139: 380816_080 | C139: Банк Січ | D139: 34092020001108 | E139: беззаставний
A140: 380816__124 | B140: 380816_080 | C140: Банк Січ | D140: 34092020001109 | E140: беззаставний
A141: 380816__125 | B141: 380816_080 | C141: Банк Січ | D141: 34092020001110 | E141: беззаставний
A142: 380816__126 | B142: 380816_080 | C142: Банк Січ | D142: 34092020001111 | E142: беззаставний
A143: 380816__127 | B143: 380816_080 | C143: Банк Січ | D143: 34092020001112 | E143: беззаставний
A144: 380816__128 | B144: 380816_080 | C144: Банк Січ | D144: 34092020001113 | E144: беззаставний
A145: 380816__129 | B145: 380816_080 | C145: Банк Січ | D145: 34092020001114 | E145: беззаставний
A146: 380816__130 | B146: 380816_080 | C146: Банк Січ | D146: 34092020001115 | E146: беззаставний
A147: 380816__131 | B147: 380816_080 | C147: Банк Січ | D147: 34092020001116 | E147: беззаставний
A148: 380816__132 | B148: 380816_080 | C148: Банк Січ | D148: 34092020001117 | E148: беззаставний
A149: 380816__133 | B149: 380816_080 | C149: Банк Січ | D149: 34092020001118 | E149: беззаставний
A150: 380816__134 | B150: 380816_080 | C150: Банк Січ | D150: 34092020001119 | E150: беззаставний
A151: 380816__135 | B151: 380816_080 | C151: Банк Січ | D151: 34092020001120 | E151: беззаставний
A152: 380816__136 | B152: 380816_080 | C152: Банк Січ | D152: 34092020001121 | E152: беззаставний
A153: 380816__137 | B153: 380816_080 | C153: Банк Січ | D153: 34092020001122 | E153: беззаставний
A154: 380816__138 | B154: 380816_080 | C154: Банк Січ | D154: 34092020001123 | E154: беззаставний
A155: 380816__139 | B155: 380816_080 | C155: Банк Січ | D155: 34092020001124 | E155: беззаставний
A156: 380816__140 | B156: 380816_080 | C156: Банк Січ | D156: 34092020001125 | E156: беззаставний
A157: 380816__141 | B157: 380816_080 | C157: Банк Січ | D157: 34092020001126 | E157: беззаставний
A158: 380816__142 | B158: 380816_080 | C158: Банк Січ | D158: 34092020001127 | E158: беззаставний
A159: 380816__143 | B159: 380816_080 | C159: Банк Січ | D159: 34092020001128 | E159: беззаставний
A160: 380816__144 | B160: 380816_080 | C160: Банк Січ | D160: 34092020001129 | E160: беззаставний
A161: 380816__145 | B161: 380816_080 | C161: Банк Січ | D161: 34092020001130 | E161: беззаставний
A162: 380816__146 | B162: 380816_080 | C162: Банк Січ | D162: 34092020001131 | E162: беззаставний
A163: 380816__147 | B163: 380816_080 | C163: Банк Січ | D163: 34092020001132 | E163: беззаставний
A164: 380816__148 | B164: 380816_080 | C164: Банк Січ | D164: 34092020001133 | E164: беззаставний
A165: 380816__149 | B165: 380816_080 | C165: Банк Січ | D165: 34092020001134 | E165: беззаставний
A166: 380816__150 | B166: 380816_080 | C166: Банк Січ | D166: 34092020001135 | E166: беззаставний
A167: 380816__151 | B167: 380816_080 | C167: Банк Січ | D167: 34092020001136 | E167: беззаставний
A168: 380816__152 | B168: 380816_080 | C168: Банк Січ | D168: 34092020001137 | E168: беззаставний
A169: 380816__153 | B169: 380816_080 | C169: Банк Січ | D169: 34092020001138 | E169: беззаставний
A170: 380816__154 | B170: 380816_080 | C170: Банк Січ | D170: 34092020001139 | E170: беззаставний
A171: 380816__155 | B171: 380816_080 | C171: Банк Січ | D171: 34092020001140 | E171: беззаставний
A172: 380816__156 | B172: 380816_080 | C172: Банк Січ | D172: 34092020001141 | E172: беззаставний
A173: 380816__157 | B173: 380816_080 | C173: Банк Січ | D173: 34092020001142 | E173: беззаставний
A174: 380816__158 | B174: 380816_080 | C174: Банк Січ | D174: 34092020001143 | E174: беззаставний
A175: 380816__159 | B175: 380816_080 | C175: Банк Січ | D175: 34092020001144 | E175: беззаставний
A176: 380816__160 | B176: 380816_080 | C176: Банк Січ | D176: 34092020001145 | E176: беззаставний
A177: 380816__161 | B177: 380816_080 | C177: Банк Січ | D177: 34092020001146 | E177: беззаставний
A178: 380816__162 | B178: 380816_080 | C178: Банк Січ | D178: 34092020001147 | E178: беззаставний
A179: 380816__163 | B179: 380816_080 | C179: Банк Січ | D179: 34092020001148 | E179: беззаставний
A180: 380816__164 | B180: 380816_080 | C180: Банк Січ | D180: 34092020001149 | E180: беззаставний
A181: 380816__165 | B181: 380816_080 | C181: Банк Січ | D181: 34092020001150 | E181: беззаставний
A182: 380816__166 | B182: 380816_080 | C182: Банк Січ | D182: 34092020001151 | E182: беззаставний
A183: 380816__167 | B183: 380816_080 | C183: Банк Січ | D183: 34092020001152 | E183: беззаставний
A184: 380816__168 | B184: 380816_080 | C184: Банк Січ | D184: 34092020001153 | E184: беззаставний
A185: 380816__169 | B185: 380816_080 | C185: Банк Січ | D185: 34092020001154 | E185: беззаставний
A186: 380816__170 | B186: 380816_080 | C186: Банк Січ | D186: 34092020001155 | E186: беззаставний
A187: 380816__171 | B187: 380816_080 | C187: Банк Січ | D187: 34092020001156 | E187: беззаставний
A188: 380816__172 | B188: 380816_080 | C188: Банк Січ | D188: 34092020001157 | E188: беззаставний
A189: 380816__173 | B189: 380816_080 | C189: Банк Січ | D189: 34092020001158 | E189: беззаставний
A190: 380816__174 | B190: 380816_080 | C190: Банк Січ | D190: 34092020001159 | E190: беззаставний
A191: 380816__175 | B191: 380816_080 | C191: Банк Січ | D191: 34092020001160 | E191: беззаставний
A192: 380816__176 | B192: 380816_080 | C192: Банк Січ | D192: 34092020001161 | E192: беззаставний
A193: 380816__177 | B193: 380816_080 | C193: Банк Січ | D193: 34092020001162 | E193: беззаставний
A194: 380816__178 | B194: 380816_080 | C194: Банк Січ | D194: 34092020001163 | E194: беззаставний
A195: 380816__179 | B195: 380816_080 | C195: Банк Січ | D195: 34092020001164 | E195: беззаставний
A196: 380816__180 | B196: 380816_080 | C196: Банк Січ | D196: 34092020001165 | E196: беззаставний
A197: 380816__181 | B197: 380816_080 | C197: Банк Січ | D197: 34092020001166 | E197: беззаставний
A198: 380816__182 | B198: 380816_080 | C198: Банк Січ | D198: 34092020001167 | E198: беззаставний
A199: 380816__183 | B199: 380816_080 | C199: Банк Січ | D199: 34092020001168 | E199: беззаставний
A200: 380816__184 | B200: 380816_080 | C200: Банк Січ | D200: 34092020001169 | E200: беззаставний
A201: 380816__185 | B201: 380816_080 | C201: Банк Січ | D201: 34092020001170 | E201: беззаставний
A202: 380816__186 | B202: 380816_080 | C202: Банк Січ | D202: 34092020001171 | E202: беззаставний
A203: 380816__187 | B203: 380816_080 | C203: Банк Січ | D203: 34092020001172 | E203: беззаставний
A204: 380816__188 | B204: 380816_080 | C204: Банк Січ | D204: 34092020001173 | E204: беззаставний
A205: 380816__189 | B205: 380816_080 | C205: Банк Січ | D205: 34092020001174 | E205: беззаставний
A206: 380816__190 | B206: 380816_080 | C206: Банк Січ | D206: 34092020001175 | E206: беззаставний
A207: 380816__191 | B207: 380816_080 | C207: Банк Січ | D207: 34092020001176 | E207: беззаставний
... 567 more rows

Sheet 3.ППР
B1: Цей документ був підготовлений Фондом гарантування вкладів фізичних осіб (далі – Фонд) виключно для інформаційних цілей і не повинен вважатися як спонукання до будь-яких дій чи бездіяльності. Інформація, що міститься в цьому документі, була отримана з/або ґрунтується на джерелах, які вважаються надійними, але не є вичерпною та не може сприйматися як повна або актуальна. Зокрема, але не виключно, станом на дату придбання активів допускаються несуттєві зміни лота, в складі якого продаються такі активи. Під несуттєвими змінами лота слід розуміти такі зміни характеристик активів у складі такого лота, які впливають на його балансову вартість, але не більше ніж на 10 відсотків. Рішення покупця щодо будь-яких дій або бездіяльності повинно ґрунтуватися на власних оцінках та дослідженнях майна (активу/активів), котре реалізується. Фонд не несе відповідальності за рішення покупця та його наслідки, що ґрунтується на інформації, викладеній в даному документі.
A7: unicid | B7: Банк | C7: № кред. Дог | D7: Розгляд справи у суді | H7: ДВС | K7: Банкрутство | Q7: Кримінальне провадження за кредитною угодою (Так/Ні)
D8: Предмет спору | E8: Відповідач (позичальник/поручитель) | F8: Дата надіслання вимоги / претензії | G8: Дати звернення до суду | H8: Дата провадження | I8: Процесс (Так/Ні) | J8: Реалізація майна (Так/Ні) | K8: Дата провадження | L8: Банк заявлений як кредитор (Так/Ні) | M8: Банк внесенний в реєстр кредиторів (Так/Ні) | N8: Дата визнання позичальника банкрутом | O8: Дата визнання підприємства ліквідованим | P8: Банкрутство фінансового поручителя
A9: 380816__1 | B9: Банк Січ | C9: 203470-ГР-3581 | D9: стягнення заборгованості | E9: Солідарно | F9: 2021-12-07 | G9: 2021-12-24 | H9: - | I9: НІ | J9: НІ
A10: 380816__1 | B10: Банк Січ | C10: 203470-ГР-3581 | D10: банкрутство | E10: Позичальник | H10: -
A11: 380816__1 | B11: Банк Січ | C11: 203470-ГР-3581 | D11: інше | E11: Поручитель | H11: - | Q11: ТАК
A12: 380816__1 | B12: Банк Січ | C12: 203470-ГР-3581 | D12: інше | E12: Поручитель | H12: -
A13: 380816__2 | B13: Банк Січ | C13: 203470-ГР-3582 | D13: стягнення заборгованості | E13: Солідарно | F13: 2021-12-07 | G13: 2021-12-24 | H13: - | I13: НІ | J13: НІ
A14: 380816__2 | B14: Банк Січ | C14: 203470-ГР-3582 | D14: банкрутство | E14: Позичальник | H14: -
A15: 380816__2 | B15: Банк Січ | C15: 203470-ГР-3582 | D15: інше | E15: Поручитель | H15: - | Q15: ТАК
A16: 380816__3 | B16: Банк Січ | C16: 203570-ГР-2511 | D16: визнання зобов'язань недійсними | E16: 3-і особи | G16: 2022-02-07 | H16: - | I16: НІ | J16: НІ
A17: 380816__3 | B17: Банк Січ | C17: 203570-ГР-2511 | D17: стягнення заборгованості | E17: Позичальник | F17: 2021-07-05 | G17: 2021-08-13 | H17: - | I17: НІ | J17: НІ
A18: 380816__4 | B18: Банк Січ | C18: 173/13 | D18: стягнення забезпечення | E18: Позичальник | G18: 2014-10-24 | H18: -
A19: 380816__4 | B19: Банк Січ | C19: 173/13 | D19: стягнення заборгованості | E19: Поручитель | G19: 19.09.2014 | H19: - | I19: НІ | J19: НІ
A20: 380816__5 | B20: Банк Січ | C20: 176/13 | D20: стягнення заборгованості | E20: Поручитель | G20: 19.09.2014 | H20: - | I20: НІ | J20: НІ
A21: 380816__6 | B21: Банк Січ | C21: 258/19 | D21: інше | E21: Позичальник | F21: 2022-11-03 | H21: - | I21: НІ | J21: НІ
A22: 380816__7 | B22: Банк Січ | C22: 246/19 | D22: інше | E22: Солідарно | F22: 2022-10-03 | H22: - | I22: НІ | J22: НІ
A23: 380816__8 | B23: Банк Січ | C23: 112/21 | D23: стягнення заборгованості | E23: Позичальник | F23: 2022-12-14 | H23: - | I23: НІ | J23: НІ
A24: 380816__9 | B24: Банк Січ | C24: 463/21 | D24: стягнення заборгованості | E24: Позичальник | F24: 2022-12-14 | H24: - | I24: НІ | J24: НІ
A25: 380816__10 | B25: Банк Січ | C25: 394/21 | D25: стягнення заборгованості | E25: Солідарно | F25: 2022-12-16 | H25: - | I25: НІ | J25: НІ
A26: 380816__11 | B26: Банк Січ | C26: 26002001204450 | D26: ППР не здійснюється
A27: 380816__12 | B27: Банк Січ | C27: 26001002204450 | D27: ППР не здійснюється
A28: 380816__13 | B28: Банк Січ | C28: 104/13 | D28: стягнення заборгованості | E28: Позичальник | G28: 2018-08-13 | H28: 2021-12-15 | I28: ТАК | J28: НІ
A29: 380816__13 | B29: Банк Січ | C29: 104/13 | D29: стягнення забезпечення | E29: Позичальник | G29: 2018-08-03 | H29: - | I29: ТАК | J29: ТАК
A30: 380816__13 | B30: Банк Січ | C30: 104/13 | D30: стягнення забезпечення | E30: Позичальник | G30: 2018-08-03 | H30: - | I30: ТАК | J30: ТАК
A31: 380816__13 | B31: Банк Січ | C31: 104/13 | D31: стягнення забезпечення | E31: Позичальник | G31: 2018-08-03 | H31: - | I31: ТАК | J31: ТАК
A32: 380816__13 | B32: Банк Січ | C32: 104/13 | D32: стягнення забезпечення | E32: Позичальник | G32: 2018-08-03 | H32: - | I32: ТАК | J32: ТАК
A33: 380816__14 | B33: Банк Січ | C33: 26004010664 | D33: ППР не здійснюється
A34: 380816__15 | B34: Банк Січ | C34: 578/21 | D34: ППР не здійснюється | H34: -
A35: 380816__16 | B35: Банк Січ | C35: 34092020000011 | D35: ППР не здійснюється
A36: 380816__17 | B36: Банк Січ | C36: 34092020000012 | D36: ППР не здійснюється
A37: 380816__18 | B37: Банк Січ | C37: 34092020000013 | D37: ППР не здійснюється
A38: 380816__19 | B38: Банк Січ | C38: 34092020000014 | D38: ППР не здійснюється
A39: 380816__20 | B39: Банк Січ | C39: 34092020000015 | D39: ППР не здійснюється
A40: 380816__21 | B40: Банк Січ | C40: 34092020000016 | D40: ППР не здійснюється
A41: 380816__22 | B41: Банк Січ | C41: 34092020000017 | D41: ППР не здійснюється
A42: 380816__23 | B42: Банк Січ | C42: 34092020000018 | D42: ППР не здійснюється
A43: 380816__24 | B43: Банк Січ | C43: 34092020000019 | D43: ППР не здійснюється
A44: 380816__25 | B44: Банк Січ | C44: 34092020000110 | D44: ППР не здійснюється
A45: 380816__26 | B45: Банк Січ | C45: 34092020000111 | D45: ППР не здійснюється
A46: 380816__27 | B46: Банк Січ | C46: 34092020000112 | D46: ППР не здійснюється
A47: 380816__28 | B47: Банк Січ | C47: 34092020000113 | D47: ППР не здійснюється
A48: 380816__29 | B48: Банк Січ | C48: 34092020000114 | D48: ППР не здійснюється
A49: 380816__30 | B49: Банк Січ | C49: 34092020000115 | D49: ППР не здійснюється
A50: 380816__31 | B50: Банк Січ | C50: 34092020000116 | D50: ППР не здійснюється
A51: 380816__32 | B51: Банк Січ | C51: 34092020000117 | D51: ППР не здійснюється
A52: 380816__33 | B52: Банк Січ | C52: 34092020000118 | D52: ППР не здійснюється
A53: 380816__34 | B53: Банк Січ | C53: 34092020000119 | D53: ППР не здійснюється
A54: 380816__35 | B54: Банк Січ | C54: 34092020000120 | D54: ППР не здійснюється
A55: 380816__36 | B55: Банк Січ | C55: 34092020000121 | D55: ППР не здійснюється
A56: 380816__37 | B56: Банк Січ | C56: 34092020000122 | D56: ППР не здійснюється
A57: 380816__38 | B57: Банк Січ | C57: 34092020000123 | D57: ППР не здійснюється
A58: 380816__39 | B58: Банк Січ | C58: 34092020000124 | D58: ППР не здійснюється
A59: 380816__40 | B59: Банк Січ | C59: 34092020000125 | D59: ППР не здійснюється
A60: 380816__41 | B60: Банк Січ | C60: 34092020000126 | D60: ППР не здійснюється
A61: 380816__42 | B61: Банк Січ | C61: 34092020000127 | D61: ППР не здійснюється
A62: 380816__43 | B62: Банк Січ | C62: 34092020000128 | D62: ППР не здійснюється
A63: 380816__44 | B63: Банк Січ | C63: 34092020000129 | D63: ППР не здійснюється
A64: 380816__45 | B64: Банк Січ | C64: 34092020000130 | D64: ППР не здійснюється
A65: 380816__46 | B65: Банк Січ | C65: 34092020000131 | D65: ППР не здійснюється
A66: 380816__47 | B66: Банк Січ | C66: 34092020000132 | D66: ППР не здійснюється
A67: 380816__48 | B67: Банк Січ | C67: 34092020000133 | D67: ППР не здійснюється
A68: 380816__49 | B68: Банк Січ | C68: 34092020000134 | D68: ППР не здійснюється
A69: 380816__50 | B69: Банк Січ | C69: 34092020000135 | D69: ППР не здійснюється
A70: 380816__51 | B70: Банк Січ | C70: 34092020000136 | D70: ППР не здійснюється
A71: 380816__52 | B71: Банк Січ | C71: 34092020000137 | D71: ППР не здійснюється
A72: 380816__53 | B72: Банк Січ | C72: 34092020000138 | D72: ППР не здійснюється
A73: 380816__54 | B73: Банк Січ | C73: 34092020000139 | D73: ППР не здійснюється
A74: 380816__55 | B74: Банк Січ | C74: 34092020000140 | D74: ППР не здійснюється
A75: 380816__56 | B75: Банк Січ | C75: 34092020000141 | D75: ППР не здійснюється
A76: 380816__57 | B76: Банк Січ | C76: 34092020000142 | D76: ППР не здійснюється
A77: 380816__58 | B77: Банк Січ | C77: 34092020000143 | D77: ППР не здійснюється
A78: 380816__59 | B78: Банк Січ | C78: 34092020000144 | D78: ППР не здійснюється
A79: 380816__60 | B79: Банк Січ | C79: 34092020000145 | D79: ППР не здійснюється
A80: 380816__61 | B80: Банк Січ | C80: 34092020000146 | D80: ППР не здійснюється
A81: 380816__62 | B81: Банк Січ | C81: 34092020000147 | D81: ППР не здійснюється
A82: 380816__63 | B82: Банк Січ | C82: 34092020000148 | D82: ППР не здійснюється
A83: 380816__64 | B83: Банк Січ | C83: 34092020000149 | D83: ППР не здійснюється
A84: 380816__65 | B84: Банк Січ | C84: 34092020000150 | D84: ППР не здійснюється
A85: 380816__66 | B85: Банк Січ | C85: 34092020000151 | D85: ППР не здійснюється
A86: 380816__67 | B86: Банк Січ | C86: 34092020000152 | D86: ППР не здійснюється
A87: 380816__68 | B87: Банк Січ | C87: 34092020000153 | D87: ППР не здійснюється
A88: 380816__69 | B88: Банк Січ | C88: 34092020000154 | D88: ППР не здійснюється
A89: 380816__70 | B89: Банк Січ | C89: 34092020000155 | D89: ППР не здійснюється
A90: 380816__71 | B90: Банк Січ | C90: 34092020000156 | D90: ППР не здійснюється
A91: 380816__72 | B91: Банк Січ | C91: 34092020000157 | D91: ППР не здійснюється
A92: 380816__73 | B92: Банк Січ | C92: 34092020000158 | D92: ППР не здійснюється
A93: 380816__74 | B93: Банк Січ | C93: 34092020000159 | D93: ППР не здійснюється
A94: 380816__75 | B94: Банк Січ | C94: 34092020000160 | D94: ППР не здійснюється
A95: 380816__76 | B95: Банк Січ | C95: 34092020000161 | D95: ППР не здійснюється
A96: 380816__77 | B96: Банк Січ | C96: 34092020000162 | D96: ППР не здійснюється
A97: 380816__78 | B97: Банк Січ | C97: 34092020000163 | D97: ППР не здійснюється
A98: 380816__79 | B98: Банк Січ | C98: 34092020000164 | D98: ППР не здійснюється
A99: 380816__80 | B99: Банк Січ | C99: 34092020000165 | D99: ППР не здійснюється
A100: 380816__81 | B100: Банк Січ | C100: 34092020000166 | D100: ППР не здійснюється
A101: 380816__82 | B101: Банк Січ | C101: 34092020000167 | D101: ППР не здійснюється
A102: 380816__83 | B102: Банк Січ | C102: 34092020000168 | D102: ППР не здійснюється
A103: 380816__84 | B103: Банк Січ | C103: 34092020000169 | D103: ППР не здійснюється
A104: 380816__85 | B104: Банк Січ | C104: 34092020000170 | D104: ППР не здійснюється
A105: 380816__86 | B105: Банк Січ | C105: 34092020000171 | D105: ППР не здійснюється
A106: 380816__87 | B106: Банк Січ | C106: 34092020000172 | D106: ППР не здійснюється
A107: 380816__88 | B107: Банк Січ | C107: 34092020000173 | D107: ППР не здійснюється
A108: 380816__89 | B108: Банк Січ | C108: 34092020000174 | D108: ППР не здійснюється
A109: 380816__90 | B109: Банк Січ | C109: 34092020000175 | D109: ППР не здійснюється
A110: 380816__91 | B110: Банк Січ | C110: 34092020000176 | D110: ППР не здійснюється
A111: 380816__92 | B111: Банк Січ | C111: 34092020000177 | D111: ППР не здійснюється
A112: 380816__93 | B112: Банк Січ | C112: 34092020000178 | D112: ППР не здійснюється
A113: 380816__94 | B113: Банк Січ | C113: 34092020000179 | D113: ППР не здійснюється
A114: 380816__95 | B114: Банк Січ | C114: 34092020000180 | D114: ППР не здійснюється
A115: 380816__96 | B115: Банк Січ | C115: 34092020000181 | D115: ППР не здійснюється
A116: 380816__97 | B116: Банк Січ | C116: 34092020000182 | D116: ППР не здійснюється
A117: 380816__98 | B117: Банк Січ | C117: 34092020000183 | D117: ППР не здійснюється
A118: 380816__99 | B118: Банк Січ | C118: 34092020000184 | D118: ППР не здійснюється
A119: 380816__100 | B119: Банк Січ | C119: 34092020000185 | D119: ППР не здійснюється
A120: 380816__101 | B120: Банк Січ | C120: 34092020000186 | D120: ППР не здійснюється
A121: 380816__102 | B121: Банк Січ | C121: 34092020000187 | D121: ППР не здійснюється
A122: 380816__103 | B122: Банк Січ | C122: 34092020000188 | D122: ППР не здійснюється
A123: 380816__104 | B123: Банк Січ | C123: 34092020000189 | D123: ППР не здійснюється
A124: 380816__105 | B124: Банк Січ | C124: 34092020000190 | D124: ППР не здійснюється
A125: 380816__106 | B125: Банк Січ | C125: 34092020000191 | D125: ППР не здійснюється
A126: 380816__107 | B126: Банк Січ | C126: 34092020000192 | D126: ППР не здійснюється
A127: 380816__108 | B127: Банк Січ | C127: 34092020000193 | D127: ППР не здійснюється
A128: 380816__109 | B128: Банк Січ | C128: 34092020000194 | D128: ППР не здійснюється
A129: 380816__110 | B129: Банк Січ | C129: 34092020000195 | D129: ППР не здійснюється
A130: 380816__111 | B130: Банк Січ | C130: 34092020000196 | D130: ППР не здійснюється
A131: 380816__112 | B131: Банк Січ | C131: 34092020000197 | D131: ППР не здійснюється
A132: 380816__113 | B132: Банк Січ | C132: 34092020000198 | D132: ППР не здійснюється
A133: 380816__114 | B133: Банк Січ | C133: 34092020000199 | D133: ППР не здійснюється
A134: 380816__115 | B134: Банк Січ | C134: 34092020001100 | D134: ППР не здійснюється
A135: 380816__116 | B135: Банк Січ | C135: 34092020001101 | D135: ППР не здійснюється
A136: 380816__117 | B136: Банк Січ | C136: 34092020001102 | D136: ППР не здійснюється
A137: 380816__118 | B137: Банк Січ | C137: 34092020001103 | D137: ППР не здійснюється
A138: 380816__119 | B138: Банк Січ | C138: 34092020001104 | D138: ППР не здійснюється
A139: 380816__120 | B139: Банк Січ | C139: 34092020001105 | D139: ППР не здійснюється
A140: 380816__121 | B140: Банк Січ | C140: 34092020001106 | D140: ППР не здійснюється
A141: 380816__122 | B141: Банк Січ | C141: 34092020001107 | D141: ППР не здійснюється
A142: 380816__123 | B142: Банк Січ | C142: 34092020001108 | D142: ППР не здійснюється
A143: 380816__124 | B143: Банк Січ | C143: 34092020001109 | D143: ППР не здійснюється
A144: 380816__125 | B144: Банк Січ | C144: 34092020001110 | D144: ППР не здійснюється
A145: 380816__126 | B145: Банк Січ | C145: 34092020001111 | D145: ППР не здійснюється
A146: 380816__127 | B146: Банк Січ | C146: 34092020001112 | D146: ППР не здійснюється
A147: 380816__128 | B147: Банк Січ | C147: 34092020001113 | D147: ППР не здійснюється
A148: 380816__129 | B148: Банк Січ | C148: 34092020001114 | D148: ППР не здійснюється
A149: 380816__130 | B149: Банк Січ | C149: 34092020001115 | D149: ППР не здійснюється
A150: 380816__131 | B150: Банк Січ | C150: 34092020001116 | D150: ППР не здійснюється
A151: 380816__132 | B151: Банк Січ | C151: 34092020001117 | D151: ППР не здійснюється
A152: 380816__133 | B152: Банк Січ | C152: 34092020001118 | D152: ППР не здійснюється
A153: 380816__134 | B153: Банк Січ | C153: 34092020001119 | D153: ППР не здійснюється
A154: 380816__135 | B154: Банк Січ | C154: 34092020001120 | D154: ППР не здійснюється
A155: 380816__136 | B155: Банк Січ | C155: 34092020001121 | D155: ППР не здійснюється
A156: 380816__137 | B156: Банк Січ | C156: 34092020001122 | D156: ППР не здійснюється
A157: 380816__138 | B157: Банк Січ | C157: 34092020001123 | D157: ППР не здійснюється
A158: 380816__139 | B158: Банк Січ | C158: 34092020001124 | D158: ППР не здійснюється
A159: 380816__140 | B159: Банк Січ | C159: 34092020001125 | D159: ППР не здійснюється
A160: 380816__141 | B160: Банк Січ | C160: 34092020001126 | D160: ППР не здійснюється
A161: 380816__142 | B161: Банк Січ | C161: 34092020001127 | D161: ППР не здійснюється
A162: 380816__143 | B162: Банк Січ | C162: 34092020001128 | D162: ППР не здійснюється
A163: 380816__144 | B163: Банк Січ | C163: 34092020001129 | D163: ППР не здійснюється
A164: 380816__145 | B164: Банк Січ | C164: 34092020001130 | D164: ППР не здійснюється
A165: 380816__146 | B165: Банк Січ | C165: 34092020001131 | D165: ППР не здійснюється
A166: 380816__147 | B166: Банк Січ | C166: 34092020001132 | D166: ППР не здійснюється
A167: 380816__148 | B167: Банк Січ | C167: 34092020001133 | D167: ППР не здійснюється
A168: 380816__149 | B168: Банк Січ | C168: 34092020001134 | D168: ППР не здійснюється
A169: 380816__150 | B169: Банк Січ | C169: 34092020001135 | D169: ППР не здійснюється
A170: 380816__151 | B170: Банк Січ | C170: 34092020001136 | D170: ППР не здійснюється
A171: 380816__152 | B171: Банк Січ | C171: 34092020001137 | D171: ППР не здійснюється
A172: 380816__153 | B172: Банк Січ | C172: 34092020001138 | D172: ППР не здійснюється
A173: 380816__154 | B173: Банк Січ | C173: 34092020001139 | D173: ППР не здійснюється
A174: 380816__155 | B174: Банк Січ | C174: 34092020001140 | D174: ППР не здійснюється
A175: 380816__156 | B175: Банк Січ | C175: 34092020001141 | D175: ППР не здійснюється
A176: 380816__157 | B176: Банк Січ | C176: 34092020001142 | D176: ППР не здійснюється
A177: 380816__158 | B177: Банк Січ | C177: 34092020001143 | D177: ППР не здійснюється
A178: 380816__159 | B178: Банк Січ | C178: 34092020001144 | D178: ППР не здійснюється
A179: 380816__160 | B179: Банк Січ | C179: 34092020001145 | D179: ППР не здійснюється
A180: 380816__161 | B180: Банк Січ | C180: 34092020001146 | D180: ППР не здійснюється
A181: 380816__162 | B181: Банк Січ | C181: 34092020001147 | D181: ППР не здійснюється
A182: 380816__163 | B182: Банк Січ | C182: 34092020001148 | D182: ППР не здійснюється
A183: 380816__164 | B183: Банк Січ | C183: 34092020001149 | D183: ППР не здійснюється
A184: 380816__165 | B184: Банк Січ | C184: 34092020001150 | D184: ППР не здійснюється
A185: 380816__166 | B185: Банк Січ | C185: 34092020001151 | D185: ППР не здійснюється
A186: 380816__167 | B186: Банк Січ | C186: 34092020001152 | D186: ППР не здійснюється
A187: 380816__168 | B187: Банк Січ | C187: 34092020001153 | D187: ППР не здійснюється
A188: 380816__169 | B188: Банк Січ | C188: 34092020001154 | D188: ППР не здійснюється
A189: 380816__170 | B189: Банк Січ | C189: 34092020001155 | D189: ППР не здійснюється
A190: 380816__171 | B190: Банк Січ | C190: 34092020001156 | D190: ППР не здійснюється
A191: 380816__172 | B191: Банк Січ | C191: 34092020001157 | D191: ППР не здійснюється
A192: 380816__173 | B192: Банк Січ | C192: 34092020001158 | D192: ППР не здійснюється
A193: 380816__174 | B193: Банк Січ | C193: 34092020001159 | D193: ППР не здійснюється
A194: 380816__175 | B194: Банк Січ | C194: 34092020001160 | D194: ППР не здійснюється
A195: 380816__176 | B195: Банк Січ | C195: 34092020001161 | D195: ППР не здійснюється
A196: 380816__177 | B196: Банк Січ | C196: 34092020001162 | D196: ППР не здійснюється
A197: 380816__178 | B197: Банк Січ | C197: 34092020001163 | D197: ППР не здійснюється
A198: 380816__179 | B198: Банк Січ | C198: 34092020001164 | D198: ППР не здійснюється
A199: 380816__180 | B199: Банк Січ | C199: 34092020001165 | D199: ППР не здійснюється
A200: 380816__181 | B200: Банк Січ | C200: 34092020001166 | D200: ППР не здійснюється
A201: 380816__182 | B201: Банк Січ | C201: 34092020001167 | D201: ППР не здійснюється
A202: 380816__183 | B202: Банк Січ | C202: 34092020001168 | D202: ППР не здійснюється
A203: 380816__184 | B203: Банк Січ | C203: 34092020001169 | D203: ППР не здійснюється
A204: 380816__185 | B204: Банк Січ | C204: 34092020001170 | D204: ППР не здійснюється
A205: 380816__186 | B205: Банк Січ | C205: 34092020001171 | D205: ППР не здійснюється
... 555 more rows

Sheet 4.журнал торгів
B1: Цей документ був підготовлений Фондом гарантування вкладів фізичних осіб (далі – Фонд) виключно для інформаційних цілей і не повинен вважатися як спонукання до будь-яких дій чи бездіяльності. Інформація, що міститься в цьому документі, була отримана з/або ґрунтується на джерелах, які вважаються надійними, але не є вичерпною та не може сприйматися як повна або актуальна. Зокрема, але не виключно, станом на дату придбання активів допускаються несуттєві зміни лота, в складі якого продаються такі активи. Під несуттєвими змінами лота слід розуміти такі зміни характеристик активів у складі такого лота, які впливають на його балансову вартість, але не більше ніж на 10 відсотків. Рішення покупця щодо будь-яких дій або бездіяльності повинно ґрунтуватися на власних оцінках та дослідженнях майна (активу/активів), котре реалізується. Фонд не несе відповідальності за рішення покупця та його наслідки, що ґрунтується на інформації, викладеній в даному документі.
A7: unicid | B7: Банк | C7: № кред. Дог | D7: Кількість торгів | E7: Початкова вартість реалізації (голландський аукціон) | F7: Мінімальна ціна на останніх торгах (голландський аукціон) | G7: № лота | H7: Дата проведення останнього аукціону
A8: 380816__1 | B8: Банк Січ | C8: 203470-ГР-3581 | D8: 4 | E8: 3951573.48 | F8: 395157.35 | G8: GL18N024148 | H8: 2023-08-03
A9: 380816__2 | B9: Банк Січ | C9: 203470-ГР-3582 | D9: 4 | E9: 1312568.04 | F9: 131256.8 | G9: GL18N024148 | H9: 2023-08-03
A10: 380816__3 | B10: Банк Січ | C10: 203570-ГР-2511 | D10: 4 | E10: 598021.83 | F10: 59802.18 | G10: GL19N023566 | H10: 2023-06-15
A11: 380816__4 | B11: Банк Січ | C11: 173/13 | D11: 4 | E11: 946816.1 | F11: 94681.61 | G11: GL18N023568 | H11: 2023-06-15
A12: 380816__5 | B12: Банк Січ | C12: 176/13 | D12: 4 | E12: 950488.76 | F12: 95048.88 | G12: GL18N023568 | H12: 2023-06-15
A13: 380816__6 | B13: Банк Січ | C13: 258/19 | D13: 4 | E13: 351195.6 | F13: 35119.56 | G13: GL6N023708 | H13: 2023-06-27
A14: 380816__7 | B14: Банк Січ | C14: 246/19 | D14: 4 | E14: 976581.59 | F14: 97658.16 | G14: GL6N023708 | H14: 2023-06-27
A15: 380816__8 | B15: Банк Січ | C15: 112/21 | D15: 4 | E15: 26699691.67 | F15: 2669969.17 | G15: GL19N023950 | H15: 2023-07-17
A16: 380816__9 | B16: Банк Січ | C16: 463/21 | D16: 4 | E16: 28894883.32 | F16: 2889488.33 | G16: GL19N023950 | H16: 2023-07-17
A17: 380816__10 | B17: Банк Січ | C17: 394/21 | D17: 4 | E17: 57798540.02 | F17: 5779854 | G17: GL18N024285 | H17: 2023-08-10
A18: 380816__11 | B18: Банк Січ | C18: 26002001204450 | D18: 4 | E18: 845 | F18: 84.5 | G18: GL18N024285 | H18: 2023-08-10
A19: 380816__12 | B19: Банк Січ | C19: 26001002204450 | D19: 4 | E19: 400 | F19: 40 | G19: GL18N024285 | H19: 2023-08-10
A20: 380816__13 | B20: Банк Січ | C20: 104/13 | D20: 4 | E20: 123283.49 | F20: 12328.35 | G20: GL15N023853 | H20: 2023-07-04
A21: 380816__14 | B21: Банк Січ | C21: 26004010664 | D21: 4 | E21: 1600 | F21: 160 | G21: GL15N023853 | H21: 2023-07-04
A22: 380816__15 | B22: Банк Січ | C22: 578/21 | D22: 4 | E22: 31144475.74 | F22: 3114447.57 | G22: GL15N023853 | H22: 2023-07-04
A23: 380816__16 | B23: Банк Січ | C23: 34092020000011 | D23: 4 | E23: 319.776 | F23: 31.9776 | G23: GL15N023853 | H23: 2023-07-04
A24: 380816__17 | B24: Банк Січ | C24: 34092020000012 | D24: 4 | E24: 319.848 | F24: 31.9848 | G24: GL15N023853 | H24: 2023-07-04
A25: 380816__18 | B25: Банк Січ | C25: 34092020000013 | D25: 4 | E25: 324.12 | F25: 32.412 | G25: GL15N023853 | H25: 2023-07-04
A26: 380816__19 | B26: Банк Січ | C26: 34092020000014 | D26: 4 | E26: 499.2 | F26: 49.92 | G26: GL15N023853 | H26: 2023-07-04
A27: 380816__20 | B27: Банк Січ | C27: 34092020000015 | D27: 4 | E27: 332.652 | F27: 33.2652 | G27: GL15N023853 | H27: 2023-07-04
A28: 380816__21 | B28: Банк Січ | C28: 34092020000016 | D28: 4 | E28: 333.072 | F28: 33.3072 | G28: GL15N023853 | H28: 2023-07-04
A29: 380816__22 | B29: Банк Січ | C29: 34092020000017 | D29: 4 | E29: 334.896 | F29: 33.4896 | G29: GL15N023853 | H29: 2023-07-04
A30: 380816__23 | B30: Банк Січ | C30: 34092020000018 | D30: 4 | E30: 334.92 | F30: 33.492 | G30: GL15N023853 | H30: 2023-07-04
A31: 380816__24 | B31: Банк Січ | C31: 34092020000019 | D31: 4 | E31: 336.036 | F31: 33.6036 | G31: GL15N023853 | H31: 2023-07-04
A32: 380816__25 | B32: Банк Січ | C32: 34092020000110 | D32: 4 | E32: 347.448 | F32: 34.7448 | G32: GL15N023853 | H32: 2023-07-04
A33: 380816__26 | B33: Банк Січ | C33: 34092020000111 | D33: 4 | E33: 347.868 | F33: 34.7868 | G33: GL15N023853 | H33: 2023-07-04
A34: 380816__27 | B34: Банк Січ | C34: 34092020000112 | D34: 4 | E34: 353.292 | F34: 35.3292 | G34: GL15N023853 | H34: 2023-07-04
A35: 380816__28 | B35: Банк Січ | C35: 34092020000113 | D35: 4 | E35: 353.292 | F35: 35.3292 | G35: GL15N023853 | H35: 2023-07-04
A36: 380816__29 | B36: Банк Січ | C36: 34092020000114 | D36: 4 | E36: 546 | F36: 54.6 | G36: GL15N023853 | H36: 2023-07-04
A37: 380816__30 | B37: Банк Січ | C37: 34092020000115 | D37: 4 | E37: 362.1 | F37: 36.21 | G37: GL15N023853 | H37: 2023-07-04
A38: 380816__31 | B38: Банк Січ | C38: 34092020000116 | D38: 4 | E38: 363.132 | F38: 36.3132 | G38: GL15N023853 | H38: 2023-07-04
A39: 380816__32 | B39: Банк Січ | C39: 34092020000117 | D39: 4 | E39: 363.696 | F39: 36.3696 | G39: GL15N023853 | H39: 2023-07-04
A40: 380816__33 | B40: Банк Січ | C40: 34092020000118 | D40: 4 | E40: 366.528 | F40: 36.6528 | G40: GL15N023853 | H40: 2023-07-04
A41: 380816__34 | B41: Банк Січ | C41: 34092020000119 | D41: 4 | E41: 367.788 | F41: 36.7788 | G41: GL15N023853 | H41: 2023-07-04
A42: 380816__35 | B42: Банк Січ | C42: 34092020000120 | D42: 4 | E42: 369.612 | F42: 36.9612 | G42: GL15N023853 | H42: 2023-07-04
A43: 380816__36 | B43: Банк Січ | C43: 34092020000121 | D43: 4 | E43: 570 | F43: 57 | G43: GL15N023853 | H43: 2023-07-04
A44: 380816__37 | B44: Банк Січ | C44: 34092020000122 | D44: 4 | E44: 374.304 | F44: 37.4304 | G44: GL15N023853 | H44: 2023-07-04
A45: 380816__38 | B45: Банк Січ | C45: 34092020000123 | D45: 4 | E45: 378.3 | F45: 37.83 | G45: GL15N023853 | H45: 2023-07-04
A46: 380816__39 | B46: Банк Січ | C46: 34092020000124 | D46: 4 | E46: 380.472 | F46: 38.0472 | G46: GL15N023853 | H46: 2023-07-04
A47: 380816__40 | B47: Банк Січ | C47: 34092020000125 | D47: 4 | E47: 382.908 | F47: 38.2908 | G47: GL15N023853 | H47: 2023-07-04
A48: 380816__41 | B48: Банк Січ | C48: 34092020000126 | D48: 4 | E48: 390.048 | F48: 39.0048 | G48: GL15N023853 | H48: 2023-07-04
A49: 380816__42 | B49: Банк Січ | C49: 34092020000127 | D49: 4 | E49: 398.28 | F49: 39.828 | G49: GL15N023853 | H49: 2023-07-04
A50: 380816__43 | B50: Банк Січ | C50: 34092020000128 | D50: 4 | E50: 402.072 | F50: 40.2072 | G50: GL15N023853 | H50: 2023-07-04
A51: 380816__44 | B51: Банк Січ | C51: 34092020000129 | D51: 4 | E51: 416.76 | F51: 41.676 | G51: GL15N023853 | H51: 2023-07-04
A52: 380816__45 | B52: Банк Січ | C52: 34092020000130 | D52: 4 | E52: 419.592 | F52: 41.9592 | G52: GL15N023853 | H52: 2023-07-04
A53: 380816__46 | B53: Банк Січ | C53: 34092020000131 | D53: 4 | E53: 643.2 | F53: 64.32 | G53: GL15N023853 | H53: 2023-07-04
A54: 380816__47 | B54: Банк Січ | C54: 34092020000132 | D54: 4 | E54: 423.84 | F54: 42.384 | G54: GL15N023853 | H54: 2023-07-04
A55: 380816__48 | B55: Банк Січ | C55: 34092020000133 | D55: 4 | E55: 432.672 | F55: 43.2672 | G55: GL15N023853 | H55: 2023-07-04
A56: 380816__49 | B56: Банк Січ | C56: 34092020000134 | D56: 4 | E56: 432.792 | F56: 43.2792 | G56: GL15N023853 | H56: 2023-07-04
A57: 380816__50 | B57: Банк Січ | C57: 34092020000135 | D57: 4 | E57: 433.836 | F57: 43.3836 | G57: GL15N023853 | H57: 2023-07-04
A58: 380816__51 | B58: Банк Січ | C58: 34092020000136 | D58: 4 | E58: 434.46 | F58: 43.446 | G58: GL15N023853 | H58: 2023-07-04
A59: 380816__52 | B59: Банк Січ | C59: 34092020000137 | D59: 4 | E59: 444.252 | F59: 44.4252 | G59: GL15N023853 | H59: 2023-07-04
A60: 380816__53 | B60: Банк Січ | C60: 34092020000138 | D60: 4 | E60: 691.2 | F60: 69.12 | G60: GL15N023853 | H60: 2023-07-04
A61: 380816__54 | B61: Банк Січ | C61: 34092020000139 | D61: 4 | E61: 465.06 | F61: 46.506 | G61: GL15N023853 | H61: 2023-07-04
A62: 380816__55 | B62: Банк Січ | C62: 34092020000140 | D62: 4 | E62: 465.072 | F62: 46.5072 | G62: GL15N023853 | H62: 2023-07-04
A63: 380816__56 | B63: Банк Січ | C63: 34092020000141 | D63: 4 | E63: 465.072 | F63: 46.5072 | G63: GL15N023853 | H63: 2023-07-04
A64: 380816__57 | B64: Банк Січ | C64: 34092020000142 | D64: 4 | E64: 465.792 | F64: 46.5792 | G64: GL15N023853 | H64: 2023-07-04
A65: 380816__58 | B65: Банк Січ | C65: 34092020000143 | D65: 4 | E65: 490.116 | F65: 49.0116 | G65: GL15N023853 | H65: 2023-07-04
A66: 380816__59 | B66: Банк Січ | C66: 34092020000144 | D66: 4 | E66: 494.268 | F66: 49.4268 | G66: GL15N023853 | H66: 2023-07-04
A67: 380816__60 | B67: Банк Січ | C67: 34092020000145 | D67: 4 | E67: 496.104 | F67: 49.6104 | G67: GL15N023853 | H67: 2023-07-04
A68: 380816__61 | B68: Банк Січ | C68: 34092020000146 | D68: 4 | E68: 507.864 | F68: 50.7864 | G68: GL15N023853 | H68: 2023-07-04
A69: 380816__62 | B69: Банк Січ | C69: 34092020000147 | D69: 4 | E69: 507.996 | F69: 50.7996 | G69: GL15N023853 | H69: 2023-07-04
A70: 380816__63 | B70: Банк Січ | C70: 34092020000148 | D70: 4 | E70: 510.984 | F70: 51.0984 | G70: GL15N023853 | H70: 2023-07-04
A71: 380816__64 | B71: Банк Січ | C71: 34092020000149 | D71: 4 | E71: 521.28 | F71: 52.128 | G71: GL15N023853 | H71: 2023-07-04
A72: 380816__65 | B72: Банк Січ | C72: 34092020000150 | D72: 4 | E72: 522.132 | F72: 52.2132 | G72: GL15N023853 | H72: 2023-07-04
A73: 380816__66 | B73: Банк Січ | C73: 34092020000151 | D73: 4 | E73: 525.948 | F73: 52.5948 | G73: GL15N023853 | H73: 2023-07-04
A74: 380816__67 | B74: Банк Січ | C74: 34092020000152 | D74: 4 | E74: 531.672 | F74: 53.1672 | G74: GL15N023853 | H74: 2023-07-04
A75: 380816__68 | B75: Банк Січ | C75: 34092020000153 | D75: 4 | E75: 531.672 | F75: 53.1672 | G75: GL15N023853 | H75: 2023-07-04
A76: 380816__69 | B76: Банк Січ | C76: 34092020000154 | D76: 4 | E76: 531.672 | F76: 53.1672 | G76: GL15N023853 | H76: 2023-07-04
A77: 380816__70 | B77: Банк Січ | C77: 34092020000155 | D77: 4 | E77: 531.924 | F77: 53.1924 | G77: GL15N023853 | H77: 2023-07-04
A78: 380816__71 | B78: Банк Січ | C78: 34092020000156 | D78: 4 | E78: 533.64 | F78: 53.364 | G78: GL15N023853 | H78: 2023-07-04
A79: 380816__72 | B79: Банк Січ | C79: 34092020000157 | D79: 4 | E79: 534.612 | F79: 53.4612 | G79: GL15N023853 | H79: 2023-07-04
A80: 380816__73 | B80: Банк Січ | C80: 34092020000158 | D80: 4 | E80: 3199.2 | F80: 319.92 | G80: GL15N023853 | H80: 2023-07-04
A81: 380816__74 | B81: Банк Січ | C81: 34092020000159 | D81: 4 | E81: 3199.2 | F81: 319.92 | G81: GL15N023853 | H81: 2023-07-04
A82: 380816__75 | B82: Банк Січ | C82: 34092020000160 | D82: 4 | E82: 3199.2 | F82: 319.92 | G82: GL15N023853 | H82: 2023-07-04
A83: 380816__76 | B83: Банк Січ | C83: 34092020000161 | D83: 4 | E83: 546.54 | F83: 54.654 | G83: GL15N023853 | H83: 2023-07-04
A84: 380816__77 | B84: Банк Січ | C84: 34092020000162 | D84: 4 | E84: 837.6 | F84: 83.76 | G84: GL15N023853 | H84: 2023-07-04
A85: 380816__78 | B85: Банк Січ | C85: 34092020000163 | D85: 4 | E85: 3199.2 | F85: 319.92 | G85: GL15N023853 | H85: 2023-07-04
A86: 380816__79 | B86: Банк Січ | C86: 34092020000164 | D86: 4 | E86: 3199.2 | F86: 319.92 | G86: GL15N023853 | H86: 2023-07-04
A87: 380816__80 | B87: Банк Січ | C87: 34092020000165 | D87: 4 | E87: 3199.2 | F87: 319.92 | G87: GL15N023853 | H87: 2023-07-04
A88: 380816__81 | B88: Банк Січ | C88: 34092020000166 | D88: 4 | E88: 556.104 | F88: 55.6104 | G88: GL15N023853 | H88: 2023-07-04
A89: 380816__82 | B89: Банк Січ | C89: 34092020000167 | D89: 4 | E89: 3199.2 | F89: 319.92 | G89: GL15N023853 | H89: 2023-07-04
A90: 380816__83 | B90: Банк Січ | C90: 34092020000168 | D90: 4 | E90: 565.26 | F90: 56.526 | G90: GL15N023853 | H90: 2023-07-04
A91: 380816__84 | B91: Банк Січ | C91: 34092020000169 | D91: 4 | E91: 565.26 | F91: 56.526 | G91: GL15N023853 | H91: 2023-07-04
A92: 380816__85 | B92: Банк Січ | C92: 34092020000170 | D92: 4 | E92: 565.62 | F92: 56.562 | G92: GL15N023853 | H92: 2023-07-04
A93: 380816__86 | B93: Банк Січ | C93: 34092020000171 | D93: 4 | E93: 3199.2 | F93: 319.92 | G93: GL15N023853 | H93: 2023-07-04
A94: 380816__87 | B94: Банк Січ | C94: 34092020000172 | D94: 4 | E94: 3199.2 | F94: 319.92 | G94: GL15N023853 | H94: 2023-07-04
A95: 380816__88 | B95: Банк Січ | C95: 34092020000173 | D95: 4 | E95: 871.2 | F95: 87.12 | G95: GL15N023853 | H95: 2023-07-04
A96: 380816__89 | B96: Банк Січ | C96: 34092020000174 | D96: 4 | E96: 873.6 | F96: 87.36 | G96: GL15N023853 | H96: 2023-07-04
A97: 380816__90 | B97: Банк Січ | C97: 34092020000175 | D97: 4 | E97: 873.6 | F97: 87.36 | G97: GL15N023853 | H97: 2023-07-04
A98: 380816__91 | B98: Банк Січ | C98: 34092020000176 | D98: 4 | E98: 873.6 | F98: 87.36 | G98: GL15N023853 | H98: 2023-07-04
A99: 380816__92 | B99: Банк Січ | C99: 34092020000177 | D99: 4 | E99: 580.008 | F99: 58.0008 | G99: GL15N023853 | H99: 2023-07-04
A100: 380816__93 | B100: Банк Січ | C100: 34092020000178 | D100: 4 | E100: 581.484 | F100: 58.1484 | G100: GL15N023853 | H100: 2023-07-04
A101: 380816__94 | B101: Банк Січ | C101: 34092020000179 | D101: 4 | E101: 3199.2 | F101: 319.92 | G101: GL15N023853 | H101: 2023-07-04
A102: 380816__95 | B102: Банк Січ | C102: 34092020000180 | D102: 4 | E102: 594.564 | F102: 59.4564 | G102: GL15N023853 | H102: 2023-07-04
A103: 380816__96 | B103: Банк Січ | C103: 34092020000181 | D103: 4 | E103: 599.472 | F103: 59.9472 | G103: GL15N023853 | H103: 2023-07-04
A104: 380816__97 | B104: Банк Січ | C104: 34092020000182 | D104: 4 | E104: 616.68 | F104: 61.668 | G104: GL15N023853 | H104: 2023-07-04
A105: 380816__98 | B105: Банк Січ | C105: 34092020000183 | D105: 4 | E105: 621.648 | F105: 62.1648 | G105: GL15N023853 | H105: 2023-07-04
A106: 380816__99 | B106: Банк Січ | C106: 34092020000184 | D106: 4 | E106: 962.4 | F106: 96.24 | G106: GL15N023853 | H106: 2023-07-04
A107: 380816__100 | B107: Банк Січ | C107: 34092020000185 | D107: 4 | E107: 1600.8 | F107: 160.08 | G107: GL15N023853 | H107: 2023-07-04
A108: 380816__101 | B108: Банк Січ | C108: 34092020000186 | D108: 4 | E108: 45600 | F108: 4560 | G108: GL15N023853 | H108: 2023-07-04
A109: 380816__102 | B109: Банк Січ | C109: 34092020000187 | D109: 4 | E109: 654.108 | F109: 65.4108 | G109: GL15N023853 | H109: 2023-07-04
A110: 380816__103 | B110: Банк Січ | C110: 34092020000188 | D110: 4 | E110: 1010.4 | F110: 101.04 | G110: GL15N023853 | H110: 2023-07-04
A111: 380816__104 | B111: Банк Січ | C111: 34092020000189 | D111: 4 | E111: 677.688 | F111: 67.7688 | G111: GL15N023853 | H111: 2023-07-04
A112: 380816__105 | B112: Банк Січ | C112: 34092020000190 | D112: 4 | E112: 679.548 | F112: 67.9548 | G112: GL15N023853 | H112: 2023-07-04
A113: 380816__106 | B113: Банк Січ | C113: 34092020000191 | D113: 4 | E113: 679.908 | F113: 67.9908 | G113: GL15N023853 | H113: 2023-07-04
A114: 380816__107 | B114: Банк Січ | C114: 34092020000192 | D114: 4 | E114: 1600.8 | F114: 160.08 | G114: GL15N023853 | H114: 2023-07-04
A115: 380816__108 | B115: Банк Січ | C115: 34092020000193 | D115: 4 | E115: 682.824 | F115: 68.2824 | G115: GL15N023853 | H115: 2023-07-04
A116: 380816__109 | B116: Банк Січ | C116: 34092020000194 | D116: 4 | E116: 694.26 | F116: 69.426 | G116: GL15N023853 | H116: 2023-07-04
A117: 380816__110 | B117: Банк Січ | C117: 34092020000195 | D117: 4 | E117: 1062 | F117: 106.2 | G117: GL15N023853 | H117: 2023-07-04
A118: 380816__111 | B118: Банк Січ | C118: 34092020000196 | D118: 4 | E118: 699.648 | F118: 69.9648 | G118: GL15N023853 | H118: 2023-07-04
A119: 380816__112 | B119: Банк Січ | C119: 34092020000197 | D119: 4 | E119: 717.552 | F119: 71.7552 | G119: GL15N023853 | H119: 2023-07-04
A120: 380816__113 | B120: Банк Січ | C120: 34092020000198 | D120: 4 | E120: 717.684 | F120: 71.7684 | G120: GL15N023853 | H120: 2023-07-04
A121: 380816__114 | B121: Банк Січ | C121: 34092020000199 | D121: 4 | E121: 721.32 | F121: 72.132 | G121: GL15N023853 | H121: 2023-07-04
A122: 380816__115 | B122: Банк Січ | C122: 34092020001100 | D122: 4 | E122: 1129.2 | F122: 112.92 | G122: GL15N023853 | H122: 2023-07-04
A123: 380816__116 | B123: Банк Січ | C123: 34092020001101 | D123: 4 | E123: 773.256 | F123: 77.3256 | G123: GL15N023853 | H123: 2023-07-04
A124: 380816__117 | B124: Банк Січ | C124: 34092020001102 | D124: 4 | E124: 1185.6 | F124: 118.56 | G124: GL15N023853 | H124: 2023-07-04
A125: 380816__118 | B125: Банк Січ | C125: 34092020001103 | D125: 4 | E125: 806.928 | F125: 80.6928 | G125: GL15N023853 | H125: 2023-07-04
A126: 380816__119 | B126: Банк Січ | C126: 34092020001104 | D126: 4 | E126: 817.548 | F126: 81.7548 | G126: GL15N023853 | H126: 2023-07-04
A127: 380816__120 | B127: Банк Січ | C127: 34092020001105 | D127: 4 | E127: 821.568 | F127: 82.1568 | G127: GL15N023853 | H127: 2023-07-04
A128: 380816__121 | B128: Банк Січ | C128: 34092020001106 | D128: 4 | E128: 1252.8 | F128: 125.28 | G128: GL15N023853 | H128: 2023-07-04
A129: 380816__122 | B129: Банк Січ | C129: 34092020001107 | D129: 4 | E129: 826.56 | F129: 82.656 | G129: GL15N023853 | H129: 2023-07-04
A130: 380816__123 | B130: Банк Січ | C130: 34092020001108 | D130: 4 | E130: 1270.8 | F130: 127.08 | G130: GL15N023853 | H130: 2023-07-04
A131: 380816__124 | B131: Банк Січ | C131: 34092020001109 | D131: 4 | E131: 1287.6 | F131: 128.76 | G131: GL15N023853 | H131: 2023-07-04
A132: 380816__125 | B132: Банк Січ | C132: 34092020001110 | D132: 4 | E132: 861.324 | F132: 86.1324 | G132: GL15N023853 | H132: 2023-07-04
A133: 380816__126 | B133: Банк Січ | C133: 34092020001111 | D133: 4 | E133: 1322.4 | F133: 132.24 | G133: GL15N023853 | H133: 2023-07-04
A134: 380816__127 | B134: Банк Січ | C134: 34092020001112 | D134: 4 | E134: 891.384 | F134: 89.1384 | G134: GL15N023853 | H134: 2023-07-04
A135: 380816__128 | B135: Банк Січ | C135: 34092020001113 | D135: 4 | E135: 1363.2 | F135: 136.32 | G135: GL15N023853 | H135: 2023-07-04
A136: 380816__129 | B136: Банк Січ | C136: 34092020001114 | D136: 4 | E136: 909.324 | F136: 90.9324 | G136: GL15N023853 | H136: 2023-07-04
A137: 380816__130 | B137: Банк Січ | C137: 34092020001115 | D137: 4 | E137: 940.368 | F137: 94.0368 | G137: GL15N023853 | H137: 2023-07-04
A138: 380816__131 | B138: Банк Січ | C138: 34092020001116 | D138: 4 | E138: 942.636 | F138: 94.2636 | G138: GL15N023853 | H138: 2023-07-04
A139: 380816__132 | B139: Банк Січ | C139: 34092020001117 | D139: 4 | E139: 1455.6 | F139: 145.56 | G139: GL15N023853 | H139: 2023-07-04
A140: 380816__133 | B140: Банк Січ | C140: 34092020001118 | D140: 4 | E140: 969.54 | F140: 96.954 | G140: GL15N023853 | H140: 2023-07-04
A141: 380816__134 | B141: Банк Січ | C141: 34092020001119 | D141: 4 | E141: 976.296 | F141: 97.6296 | G141: GL15N023853 | H141: 2023-07-04
A142: 380816__135 | B142: Банк Січ | C142: 34092020001120 | D142: 4 | E142: 1496.4 | F142: 149.64 | G142: GL15N023853 | H142: 2023-07-04
A143: 380816__136 | B143: Банк Січ | C143: 34092020001121 | D143: 4 | E143: 991.512 | F143: 99.1512 | G143: GL15N023853 | H143: 2023-07-04
A144: 380816__137 | B144: Банк Січ | C144: 34092020001122 | D144: 4 | E144: 12000 | F144: 1200 | G144: GL15N023853 | H144: 2023-07-04
A145: 380816__138 | B145: Банк Січ | C145: 34092020001123 | D145: 4 | E145: 1022.22 | F145: 102.222 | G145: GL15N023853 | H145: 2023-07-04
A146: 380816__139 | B146: Банк Січ | C146: 34092020001124 | D146: 4 | E146: 1580.4 | F146: 158.04 | G146: GL15N023853 | H146: 2023-07-04
A147: 380816__140 | B147: Банк Січ | C147: 34092020001125 | D147: 4 | E147: 1587.6 | F147: 158.76 | G147: GL15N023853 | H147: 2023-07-04
A148: 380816__141 | B148: Банк Січ | C148: 34092020001126 | D148: 4 | E148: 1587.6 | F148: 158.76 | G148: GL15N023853 | H148: 2023-07-04
A149: 380816__142 | B149: Банк Січ | C149: 34092020001127 | D149: 4 | E149: 1587.6 | F149: 158.76 | G149: GL15N023853 | H149: 2023-07-04
A150: 380816__143 | B150: Банк Січ | C150: 34092020001128 | D150: 4 | E150: 1587.6 | F150: 158.76 | G150: GL15N023853 | H150: 2023-07-04
A151: 380816__144 | B151: Банк Січ | C151: 34092020001129 | D151: 4 | E151: 1588.8 | F151: 158.88 | G151: GL15N023853 | H151: 2023-07-04
A152: 380816__145 | B152: Банк Січ | C152: 34092020001130 | D152: 4 | E152: 1048.248 | F152: 104.8248 | G152: GL15N023853 | H152: 2023-07-04
A153: 380816__146 | B153: Банк Січ | C153: 34092020001131 | D153: 4 | E153: 1610.4 | F153: 161.04 | G153: GL15N023853 | H153: 2023-07-04
A154: 380816__147 | B154: Банк Січ | C154: 34092020001132 | D154: 4 | E154: 1640.4 | F154: 164.04 | G154: GL15N023853 | H154: 2023-07-04
A155: 380816__148 | B155: Банк Січ | C155: 34092020001133 | D155: 4 | E155: 1078.944 | F155: 107.8944 | G155: GL15N023853 | H155: 2023-07-04
A156: 380816__149 | B156: Банк Січ | C156: 34092020001134 | D156: 4 | E156: 1650 | F156: 165 | G156: GL15N023853 | H156: 2023-07-04
A157: 380816__150 | B157: Банк Січ | C157: 34092020001135 | D157: 4 | E157: 1650 | F157: 165 | G157: GL15N023853 | H157: 2023-07-04
A158: 380816__151 | B158: Банк Січ | C158: 34092020001136 | D158: 4 | E158: 1654.8 | F158: 165.48 | G158: GL15N023853 | H158: 2023-07-04
A159: 380816__152 | B159: Банк Січ | C159: 34092020001137 | D159: 4 | E159: 1088.616 | F159: 108.8616 | G159: GL15N023853 | H159: 2023-07-04
A160: 380816__153 | B160: Банк Січ | C160: 34092020001138 | D160: 4 | E160: 1115.52 | F160: 111.552 | G160: GL15N023853 | H160: 2023-07-04
A161: 380816__154 | B161: Банк Січ | C161: 34092020001139 | D161: 4 | E161: 1166.436 | F161: 116.6436 | G161: GL15N023853 | H161: 2023-07-04
A162: 380816__155 | B162: Банк Січ | C162: 34092020001140 | D162: 4 | E162: 1175.22 | F162: 117.522 | G162: GL15N023853 | H162: 2023-07-04
A163: 380816__156 | B163: Банк Січ | C163: 34092020001141 | D163: 4 | E163: 1182.024 | F163: 118.2024 | G163: GL15N023853 | H163: 2023-07-04
A164: 380816__157 | B164: Банк Січ | C164: 34092020001142 | D164: 4 | E164: 1198.812 | F164: 119.8812 | G164: GL15N023853 | H164: 2023-07-04
A165: 380816__158 | B165: Банк Січ | C165: 34092020001143 | D165: 4 | E165: 1872 | F165: 187.2 | G165: GL15N023853 | H165: 2023-07-04
A166: 380816__159 | B166: Банк Січ | C166: 34092020001144 | D166: 4 | E166: 1229.652 | F166: 122.9652 | G166: GL15N023853 | H166: 2023-07-04
A167: 380816__160 | B167: Банк Січ | C167: 34092020001145 | D167: 4 | E167: 1878 | F167: 187.8 | G167: GL15N023853 | H167: 2023-07-04
A168: 380816__161 | B168: Банк Січ | C168: 34092020001146 | D168: 4 | E168: 1241.244 | F168: 124.1244 | G168: GL15N023853 | H168: 2023-07-04
A169: 380816__162 | B169: Банк Січ | C169: 34092020001147 | D169: 4 | E169: 1251.168 | F169: 125.1168 | G169: GL15N023853 | H169: 2023-07-04
A170: 380816__163 | B170: Банк Січ | C170: 34092020001148 | D170: 4 | E170: 1255.86 | F170: 125.586 | G170: GL15N023853 | H170: 2023-07-04
A171: 380816__164 | B171: Банк Січ | C171: 34092020001149 | D171: 4 | E171: 1258.992 | F171: 125.8992 | G171: GL15N023853 | H171: 2023-07-04
A172: 380816__165 | B172: Банк Січ | C172: 34092020001150 | D172: 4 | E172: 1934.4 | F172: 193.44 | G172: GL15N023853 | H172: 2023-07-04
A173: 380816__166 | B173: Банк Січ | C173: 34092020001151 | D173: 4 | E173: 1934.4 | F173: 193.44 | G173: GL15N023853 | H173: 2023-07-04
A174: 380816__167 | B174: Банк Січ | C174: 34092020001152 | D174: 4 | E174: 1269.372 | F174: 126.9372 | G174: GL15N023853 | H174: 2023-07-04
A175: 380816__168 | B175: Банк Січ | C175: 34092020001153 | D175: 4 | E175: 1275.516 | F175: 127.5516 | G175: GL15N023853 | H175: 2023-07-04
A176: 380816__169 | B176: Банк Січ | C176: 34092020001154 | D176: 4 | E176: 1968 | F176: 196.8 | G176: GL15N023853 | H176: 2023-07-04
A177: 380816__170 | B177: Банк Січ | C177: 34092020001155 | D177: 4 | E177: 1971.6 | F177: 197.16 | G177: GL15N023853 | H177: 2023-07-04
A178: 380816__171 | B178: Банк Січ | C178: 34092020001156 | D178: 4 | E178: 1305.216 | F178: 130.5216 | G178: GL15N023853 | H178: 2023-07-04
A179: 380816__172 | B179: Банк Січ | C179: 34092020001157 | D179: 4 | E179: 2115.6 | F179: 211.56 | G179: GL15N023853 | H179: 2023-07-04
A180: 380816__173 | B180: Банк Січ | C180: 34092020001158 | D180: 4 | E180: 1422.852 | F180: 142.2852 | G180: GL15N023853 | H180: 2023-07-04
A181: 380816__174 | B181: Банк Січ | C181: 34092020001159 | D181: 4 | E181: 1428.336 | F181: 142.8336 | G181: GL15N023853 | H181: 2023-07-04
A182: 380816__175 | B182: Банк Січ | C182: 34092020001160 | D182: 4 | E182: 1429.08 | F182: 142.908 | G182: GL15N023853 | H182: 2023-07-04
A183: 380816__176 | B183: Банк Січ | C183: 34092020001161 | D183: 4 | E183: 2200.8 | F183: 220.08 | G183: GL15N023853 | H183: 2023-07-04
A184: 380816__177 | B184: Банк Січ | C184: 34092020001162 | D184: 4 | E184: 1449.48 | F184: 144.948 | G184: GL15N023853 | H184: 2023-07-04
A185: 380816__178 | B185: Банк Січ | C185: 34092020001163 | D185: 4 | E185: 1475.712 | F185: 147.5712 | G185: GL15N023853 | H185: 2023-07-04
A186: 380816__179 | B186: Банк Січ | C186: 34092020001164 | D186: 4 | E186: 1486.152 | F186: 148.6152 | G186: GL15N023853 | H186: 2023-07-04
A187: 380816__180 | B187: Банк Січ | C187: 34092020001165 | D187: 4 | E187: 2284.8 | F187: 228.48 | G187: GL15N023853 | H187: 2023-07-04
A188: 380816__181 | B188: Банк Січ | C188: 34092020001166 | D188: 4 | E188: 1536.924 | F188: 153.6924 | G188: GL15N023853 | H188: 2023-07-04
A189: 380816__182 | B189: Банк Січ | C189: 34092020001167 | D189: 4 | E189: 1565.112 | F189: 156.5112 | G189: GL15N023853 | H189: 2023-07-04
A190: 380816__183 | B190: Банк Січ | C190: 34092020001168 | D190: 4 | E190: 2392.8 | F190: 239.28 | G190: GL15N023853 | H190: 2023-07-04
A191: 380816__184 | B191: Банк Січ | C191: 34092020001169 | D191: 4 | E191: 1598.064 | F191: 159.8064 | G191: GL15N023853 | H191: 2023-07-04
A192: 380816__185 | B192: Банк Січ | C192: 34092020001170 | D192: 4 | E192: 1606.98 | F192: 160.698 | G192: GL15N023853 | H192: 2023-07-04
A193: 380816__186 | B193: Банк Січ | C193: 34092020001171 | D193: 4 | E193: 1613.64 | F193: 161.364 | G193: GL15N023853 | H193: 2023-07-04
A194: 380816__187 | B194: Банк Січ | C194: 34092020001172 | D194: 4 | E194: 1619.208 | F194: 161.9208 | G194: GL15N023853 | H194: 2023-07-04
A195: 380816__188 | B195: Банк Січ | C195: 34092020001173 | D195: 4 | E195: 1620.276 | F195: 162.0276 | G195: GL15N023853 | H195: 2023-07-04
A196: 380816__189 | B196: Банк Січ | C196: 34092020001174 | D196: 4 | E196: 1620.528 | F196: 162.0528 | G196: GL15N023853 | H196: 2023-07-04
A197: 380816__190 | B197: Банк Січ | C197: 34092020001175 | D197: 4 | E197: 1634.22 | F197: 163.422 | G197: GL15N023853 | H197: 2023-07-04
A198: 380816__191 | B198: Банк Січ | C198: 34092020001176 | D198: 4 | E198: 1635.108 | F198: 163.5108 | G198: GL15N023853 | H198: 2023-07-04
A199: 380816__192 | B199: Банк Січ | C199: 34092020001177 | D199: 4 | E199: 1638.444 | F199: 163.8444 | G199: GL15N023853 | H199: 2023-07-04
A200: 380816__193 | B200: Банк Січ | C200: 34092020001178 | D200: 4 | E200: 1638.78 | F200: 163.878 | G200: GL15N023853 | H200: 2023-07-04
A201: 380816__194 | B201: Банк Січ | C201: 34092020001179 | D201: 4 | E201: 1638.9 | F201: 163.89 | G201: GL15N023853 | H201: 2023-07-04
A202: 380816__195 | B202: Банк Січ | C202: 34092020001180 | D202: 4 | E202: 1647.228 | F202: 164.7228 | G202: GL15N023853 | H202: 2023-07-04
A203: 380816__196 | B203: Банк Січ | C203: 34092020001181 | D203: 4 | E203: 1647.792 | F203: 164.7792 | G203: GL15N023853 | H203: 2023-07-04
A204: 380816__197 | B204: Банк Січ | C204: 34092020001182 | D204: 4 | E204: 1650.228 | F204: 165.0228 | G204: GL15N023853 | H204: 2023-07-04
A205: 380816__198 | B205: Банк Січ | C205: 34092020001183 | D205: 4 | E205: 1650.588 | F205: 165.0588 | G205: GL15N023853 | H205: 2023-07-04
... 520 more rows

Sheet Група_актива
A1: ← Назад
A2: 1. Предмет продажу для активу, віднесеного до І групи активів, складається з прав вимоги за кредитним договором.
A4: 2. Предмет продажу для активу, віднесеного до ІІ групи активів, складають наступні майнові права (окремі або в сукупності):
A5: - право оскаржувати, як у судовому, так і в позасудовому порядках припинення, ліквідацію позичальників та/або майнових поручителів (поручителів), які є юридичними особами, їх правонаступників;
A6: - право звернення до державних органів, установ та організацій всіх форм власності в межах прав та повноважень власника майнових прав (прав вимоги);
A7: - право звернення до правонаступників, спадкоємців та органів місцевого самоврядування в межах прав та повноважень власника майнових прав (прав вимоги), якщо позичальником та/або майновим поручителем (поручителем) є фізична особа, в тому числі фізична особа-підприємець;
A8: - права кредитора за майновими правами (правами вимоги) (зокрема, права вимоги застосування наслідків недійсності правочинів, вимоги з отримання коштів від реалізації заставного та іншого майна, вимоги, які випливають з розірвання та/або визнання недійсним договорів та/або визнання нікчемними договорів, права, які випливають із судових справ, в тому числі справ про банкрутство, виконавчих проваджень, в тому числі щодо майна, яке не було реалізоване на торгах та підлягатиме передачі стягувачу в погашення боргу після продажу майнових прав, права, які випливають з мирових угод, договорів з арбітражними керуючими, охоронними організаціями, права участі в колегіальних органах, в тому числі в комітеті кредиторів, право одержати, переважно перед іншими кредиторами майнових поручителів, іпотекодавця, заставодавця, якщо таке переважне право встановлено нормами чинного законодавства України, у порядку, визначеному договорами іпотеки (договорами застави), Законом України «Про іпотеку», Законом України «Про заставу», задоволення всіх своїх вимог (повернення суми основної заборгованості, сплати нарахованих процентів, комісій, можливої неустойки (штраф, пеня), відшкодування збитків, тощо), що випливають з умов кредитних договорів та договорів забезпечення, за рахунок майна, вказаного в таких договорах та додатках до них, тощо), які виникнуть в майбутньому у разі скасування реєстрації припинення/ліквідації боржників (позичальників, майнових поручителів, поручителів, які є юридичними особами);
A9: - право на оскарження будь-яких рішень у відповідності до вимог чинного законодавства України, які стосуються банку та пов’язані з правами вимоги та/або майновими правами до боржників (позичальників, майнових поручителів, поручителів), їх правонаступників, та/або укладеними договорами;
A10: - право набути у власність гроші та/або майно на підставах, що виникли за укладеними договорами;
A11: - право отримання грошових коштів/відшкодування від боржників (позичальників, майнових поручителів, поручителів), їх правонаступників за укладеними договорами;
A12: - будь-які інші без виключення права, що пов’язані або випливають із майнових прав (прав вимоги) до боржників (позичальників, майнових поручителів, поручителів), їх правонаступників.
A14: 3. Предмет продажу для активу, віднесеного до підгрупи ІІІп, складають наступні майнові права (окремі або в сукупності):
A15: - право звернення до державних органів, установ та організацій всіх форм власності в межах прав та повноважень власника прав вимоги, які виникли за укладеними договорами;
A16: - право набути у власність гроші та/або майно на підставах, що виникли у зв’язку із укладенням та здійсненням операцій за укладеними договорами;
A17: - право оскаржувати припинення прав вимоги, в тому числі право оскаржувати в судовому порядку припинення (відсутність) прав вимоги;
A18: - права кредитора за правами вимоги (зокрема, права вимоги застосування наслідків недійсності правочинів, вимоги з отримання коштів від реалізації заставного та іншого майна, вимоги, які випливають з розірвання та/або визнання недійсним договорів та/або визнання нікчемними договорів, права, які випливають із судових справ, в тому числі справ про банкрутство, виконавчих проваджень, в тому числі щодо майна, яке не було реалізоване на торгах та підлягатиме передачі стягувачу в погашення боргу після продажу майнових прав, права, які випливають з мирових угод, договорів з арбітражними керуючими, охоронними організаціями, права участі в колегіальних органах, в тому числі в комітеті кредиторів, право одержати, переважно перед іншими кредиторами майнових поручителів, іпотекодавця, заставодавця, якщо таке переважне право встановлено нормами чинного законодавства України, у порядку, визначеному договорами іпотеки (договорами застави), Законом України «Про іпотеку», Законом України «Про заставу», задоволення всіх своїх вимог (повернення суми основної заборгованості, сплати нарахованих процентів, комісій, можливої неустойки (штраф, пеня), відшкодування збитків, тощо), що випливають з умов кредитних договорів та договорів забезпечення, за рахунок майна, вказаного в таких договорах та додатках до них, тощо), які виникнуть в майбутньому у разі скасування рішень про їх припинення або зміну;
A19: -право отримання грошових коштів/відшкодування від боржників (позичальників, майнових поручителів, поручителів), їх правонаступників за укладеними договорами за наслідками здійснених правочинів за укладеними договорами;
A20: - право на оскарження будь-яких рішень у відповідності до вимог чинного законодавства України, які стосуються банку та пов’язані з правами вимоги та/або майновими правами до боржників (позичальників, майнових поручителів, поручителів), їх правонаступників, та/або укладеними договорами;
A21: - право отримання грошових коштів/відшкодування до боржників (позичальників, майнових поручителів, поручителів), їх правонаступників за наслідками зміни або розірвання укладених договорів;
A22: - будь-які інші без виключення права, що пов’язані або випливають із прав вимоги до боржників (позичальників, майнових поручителів, поручителів), їх правонаступників.
A24: 4. Предмет продажу для активу, віднесеного до підгрупи ІІІн групи активів, складають наступні майнові права (окремі або в сукупності):
A25: - право звернення до державних органів, установ та організацій всіх форм власності в межах прав та повноважень власника прав вимоги, які виникли за укладеними договорами;
A26: - право набути у власність гроші та/або майно на підставах, що виникли у зв’язку із укладенням та здійсненням операцій за укладеними договорами;
A27: - право оскаржувати недійсність прав вимоги, в тому числі право оскаржувати в судовому порядку недійсність прав вимоги;
A28: - права кредитора за правами вимоги (зокрема, права вимоги застосування наслідків недійсності правочинів, вимоги з отримання коштів від реалізації заставного та іншого майна, вимоги, які випливають з розірвання та/або визнання недійсним договорів та/або визнання нікчемними договорів, права, які випливають із судових справ, в тому числі справ про банкрутство, виконавчих проваджень, в тому числі щодо майна, яке не було реалізоване на торгах та підлягатиме передачі стягувачу в погашення боргу після продажу майнових прав, права, які випливають з мирових угод, договорів з арбітражними керуючими, охоронними організаціями, права участі в колегіальних органах, в тому числі в комітеті кредиторів, право одержати, переважно перед іншими кредиторами майнових поручителів, іпотекодавця, заставодавця, якщо таке переважне право встановлено нормами чинного законодавства України, у порядку, визначеному договорами іпотеки (договорами застави), Законом України «Про іпотеку», Законом України «Про заставу», задоволення всіх своїх вимог (повернення суми основної заборгованості, сплати нарахованих процентів, комісій, можливої неустойки (штраф, пеня), відшкодування збитків, тощо), що випливають з умов кредитних договорів та договорів забезпечення, за рахунок майна, вказаного в таких договорах та додатках до них, тощо), які виникнуть в майбутньому у разі скасування рішень про їх недійсність або зміну;
A29: -право отримання грошових коштів/відшкодування від боржників (позичальників, майнових поручителів, поручителів), їх правонаступників за наслідками недійсності/нікчемності укладених договорів;
A30: - право на оскарження будь-яких рішень у відповідності до вимог чинного законодавства України, які стосуються банку та пов’язані з правами вимоги та/або майновими правами до боржників (позичальників, майнових поручителів, поручителів), їх правонаступників, та/або укладеними договорами;
A31: - право отримання грошових коштів/відшкодування від боржників (позичальників, майнових поручителів, поручителів), їх правонаступників за наслідками зміни або розірвання укладених договорів;
A32: - будь-які інші без виключення права, що пов’язані або випливають із прав вимоги, до боржників (позичальників, майнових поручителів, поручителів), їх правонаступників
A34: «Недійсність (нікчемність), припинення всіх або будь-якого із прав, що складають Майнові права за цим лотом, або неможливість реалізації покупцем будь-якого із Майнових прав, набутих ним за договором купівлі-продажу Майнових прав за цим лотом, не вплине на дійсність договору купівлі-продажу Майнових прав за цим лотом та Покупець погоджується, що Продавець не несе жодної відповідальності за такі наслідки. Банк (продавець) та/або Фонд не відповідає за неотримання покупцем грошових коштів або іншого майна, які покупець очікував отримати від Майнових прав, набуваючи у власність Майнові права за цим лотом. Приймаючи рішення щодо придбання Майнових прав за цим лотом покупець має розуміти (усвідомлювати) характер Майнових прав, що переходять до покупця за цим лотом, та приймати усі ризики, пов’язані із таким переходом, у тому числі ризики того, що покупець у майбутньому не зможе отримати жодних коштів або майна за Майновими правами.»
A35: Цей документ був підготовлений Фондом гарантування вкладів фізичних осіб (далі – Фонд) виключно для інформаційних цілей і не повинен вважатися як спонукання до будь-яких дій чи бездіяльності. Інформація, що міститься в цьому документі, була отримана з/або ґрунтується на джерелах, які вважаються надійними, але не є вичерпною та не може сприйматися як повна або актуальна. Рішення покупця щодо будь-яких дій або бездіяльності повинно ґрунтуватися на власних оцінках та дослідженнях майна (активу/активів), котре реалізується. Фонд не несе відповідальності за рішення покупця та його наслідки, що ґрунтується на інформації, викладеній в даному документі.
A36: Покупцем не може бути особа, пов'язана з державою-агресором, відповідно до Постанови Кабінету Міністрів України №187 від 03.03.2022 (зі змінами).
A37: Звертаємо увагу, що на період дії воєнного стану на території України договори посвідчуються нотаріусом, який включений до затвердженого Міністерством юстиції переліку (https://minjust.gov.ua/news/ministry/perelik-notariusiv-yakimi-v-umovah-voennogo-stanu-vchinyayutsya-notarialni-dii-schodo-tsinnogo-mayna). Нотаріальне посвідчення договорів відчуження нерухомого майна на час дії воєнного стану здійснюється нотаріусом, який включений до затвердженого Міністерством юстиції переліку, за місцезнаходженням такого майна. Виключенням є м. Київ та Київська область, де договори відчуження нерухомого майна посвідчуються нотаріусом з м. Києва або Київської обл. за місцезнаходженням такого майна, або місцезнаходженням юридичної особи, або за зареєстрованим місцем проживання фізичної особи - однієї із сторін договору.

Sheet Hidden_Словник
A1: Коротка назва | B1: Назва банку | C1: МФО | D1: Дата вводу тимч.адм. | E1: Дата рішення про ліквид. | J1: # | K1: область | L1: Регіон | P1: Тип актива | Q1: NU | T1: Банкрутство | W1: Тип застави | Y1: ТАК/Ні | AA1: Вид судового провадження | AD1: Відповідач (позичальник/поручитель) | AH1: Наявність документів кредитної справи | AM1: Одиниці виміру | AP1: валюта | AT1: область | AU1: населений пункт | AX1: Наявність забезпечення
A2: Авант-Банк | B2: ПАТ "АВАНТ-БАНК" | C2: 380708 | D2: 2016-01-29 | E2: 2016-02-26 | J2: 1 | K2: Автономна Республіка Крим | L2: КРИМ/АТО | P2: Ю/О право вимоги | Q2: Сільське господарство, лісове господарство та рибне господарство | T2: Діюче | W2: житл. нерухомість | X2: 10 | Y2: ТАК | AA2: стягнення заборгованості | AD2: Позичальник | AH2: Наявні документи кредитної справи | AM2: га | AP2: Гривня | AQ2: 980 | AT2: Автономна Республіка Крим | AU2: Алупка | AX2: Наявне
A3: АКБ Банк | B3: ПАТ "АКБ Банк" | C3: 331100 | D3: 2014-05-30 | E3: 2014-08-29 | J3: 2 | K3: Севастополь | L3: КРИМ/АТО | P3: Ф/О право вимоги | Q3: Сільське господарство, мисливство та надання пов'язаних із ними послуг | T3: Банкрутство | W3: ком. нерухомість | X3: 11 | Y3: НІ | AA3: стягнення забезпечення | AD3: Поручитель | AH3: Наявний кредитний договір | AM3: м.кв. | AP3: Доллар США | AQ3: 840 | AT3: Автономна Республіка Крим | AU3: Абрикосівка | AX3: Відсутнє (реалізовано)
A4: Аксіома | B4: ПАТ "КБ "АКСІОМА" | C4: 307305 | D4: 2014-10-10 | E4: 2015-01-30 | J4: 3 | K4: Вінницька | L4: ЦЕНТР | P4: ФОП право вимоги | Q4: Вирощування однорічних і дворічних культур | T4: В стані припинення (крім банкрутства) | W4: земельні ділянки | X4: 12 | AA4: банкрутство | AD4: Солідарно | AH4: Наяваний договір застави | AM4: м.куб. | AP4: Євро | AQ4: 978 | AT4: Автономна Республіка Крим | AU4: Абрикосове | AX4: Відсутнє (виведено)
A5: Актабанк | B5: ПАТ "АКТАБАНК" | C5: 307394 | D5: 2014-09-17 | E5: 2015-01-16 | J5: 4 | K5: Волинська | L5: ЗАХІД | P5: Дебіторська заборгованість | Q5: Вирощування зернових культур (крім рису), бобових культур і насіння олійних культур | T5: Ліквідовано | W5: транспорт | X5: 2 | AA5: визнання зобов'язань недійсними | AD5: 3-і особи | AH5: Відсутні документи кредитної справи | AM5: т | AP5: Швейцарські франки | AQ5: 756 | AT5: Автономна Республіка Крим | AU5: Аврора (Слов'янська сільська рада) | AX5: Відсутнє (інше)
A6: Активбанк | B6: ПАТ "КБ "АКТИВ - БАНК" | C6: 300852 | D6: 2014-09-03 | E6: 2014-12-23 | J6: 5 | K6: Дніпропетровська | L6: ПІВДЕНЬ | P6: Майн. права з ЦП | Q6: Вирощування рису | T6: Санація | W6: обладнання | X6: 3 | AA6: нікчемність правочину | AM6: шт. | AP6: Польські злоті | AQ6: 985 | AT6: Автономна Республіка Крим | AU6: Аграрне
A7: АРТЕМ-БАНК | B7: АТ «АРТЕМ-БАНК» | C7: 300885 | D7: 2016-11-16 | E7: 2016-12-16 | J7: 6 | K7: Донецька | L7: КРИМ/АТО | P7: Ю/О майнові права | Q7: Вирощування овочів і баштанних культур, коренеплодів і бульбоплодів | T7: Інше | W7: товари | X7: 4 | AA7: інше | AM7: од. | AP7: Фунт стерлінгів | AQ7: 826 | AT7: Автономна Республіка Крим | AU7: Аерофлотський
A8: БАНК ПЕТРОКОММЕРЦ-УКРАЇНА | B8: ПАТ "БАНК ПЕТРОКОММЕРЦ-УКРАЇНА" | C8: 300120 | D8: 2016-03-18 | E8: 2016-04-22 | J8: 7 | K8: Житомирська | L8: ЦЕНТР | P8: Ф/О майнові права | Q8: Вирощування цукрової тростини | W8: депозит | X8: 5 | AA8: ППР не здійснюється | AP8: Китайські юані | AQ8: 156 | AT8: Автономна Республіка Крим | AU8: Азов
A9: БГ банк | B9: ПАТ "БГ БАНК" | C9: 320995 | D9: 2014-11-28 | E9: 2015-02-27 | J9: 8 | K9: Закарпатська | L9: ЗАХІД | P9: ФОП майнові права | Q9: Вирощування тютюну | W9: майнові права | X9: 6 | AP9: Рос. рубль | AQ9: 643 | AT9: Автономна Республіка Крим | AU9: Азовське
A10: Богуслав | B10: АТ «БАНК БОГУСЛАВ» | C10: 380322 | J10: 9 | K10: Запорізька | L10: ПІВДЕНЬ | P10: Інше | Q10: Вирощування прядивних культур | W10: цінні папери | X10: 65 | AP10: мульт. валютн. | AQ10: 777 | AT10: Автономна Республіка Крим | AU10: Айвазовське
A11: Брокбізнесбанк | B11: АТ "БРОКБІЗНЕСБАНК" | C11: 300249 | D11: 2014-03-03 | E11: 2014-06-11 | J11: 10 | K11: Івано_Франківська | L11: ЗАХІД | Q11: Вирощування інших однорічних і дворічних культур | W11: фінансова порука | X11: 7 | AT11: Автономна Республіка Крим | AU11: Айвове
A12: ВБР | B12: ПАТ "ВБР" | C12: 380719 | D12: 2014-11-28 | E12: 2015-12-21 | J12: 11 | K12: Київ | L12: ЦЕНТР | Q12: Вирощування багаторічних культур | W12: беззаставний | X12: 8 | AT12: Автономна Республіка Крим | AU12: Айкаван
A13: ВЕКТОР | B13: ПАТ "ВЕКТОР БАНК" | C13: 339038 | D13: 2017-03-03 | E13: 2017-03-22 | J13: 12 | K13: Київська | L13: ЦЕНТР | Q13: Вирощування винограду | W13: інше | X13: 9 | AT13: Автономна Республіка Крим | AU13: Акрополіс
A14: Велес | B14: АТ "БАНК ВЕЛЕС" | C14: 322799 | E14: 2015-12-11 | J14: 13 | K14: Кіровоградська | L14: ЦЕНТР | Q14: Вирощування тропічних і субтропічних фруктів | AT14: Автономна Республіка Крим | AU14: Алмазне
A15: ВіЕйБі | B15: ПАТ "ВіЕйБі Банк" | C15: 380537 | D15: 2014-11-21 | E15: 2015-03-20 | J15: 14 | K15: Луганська | L15: КРИМ/АТО | Q15: Вирощування цитрусових | AT15: Автономна Республіка Крим | AU15: Алушта
A16: ВТБ банк | B16: АТ «ВТБ БАНК» | C16: 321767 | D16: 2018-12-19 | E16: 2020-12-18 | J16: 15 | K16: Львівська | L16: ЗАХІД | Q16: Вирощування зерняткових і кісточкових фруктів | AT16: Автономна Республіка Крим | AU16: Амурське
A17: Грінбанк | B17: ПАТ "Грін Банк" | C17: 322324 | D17: 2014-09-25 | E17: 2015-01-23 | J17: 16 | K17: Миколаївська | L17: ПІВДЕНЬ | Q17: Вирощування ягід, горіхів, інших плодових дерев і чагарників | AT17: Автономна Республіка Крим | AU17: Ана-Юрт
A18: Даніель | B18: ПАТ "КБ "Даніель" | C18: 380980 | D18: 2014-01-17 | E18: 2014-04-16 | J18: 17 | K18: Одеська | L18: ПІВДЕНЬ | Q18: Вирощування олійних плодів | AT18: Автономна Республіка Крим | AU18: Андрусове
A19: Дельта | B19: АТ "Дельта Банк" | C19: 380236 | D19: 2015-03-03 | E19: 2015-10-02 | J19: 18 | K19: Полтавська | L19: ЦЕНТР | Q19: Вирощування культур для виробництва напоїв | AT19: Автономна Республіка Крим | AU19: Антонівка
A20: Демарк | B20: Банк "Демарк" | C20: 353575 | D20: 2014-09-29 | E20: 2015-01-30 | J20: 19 | K20: Рівненська | L20: ЗАХІД | Q20: Вирощування пряних, ароматичних і лікарських культур | AT20: Автономна Республіка Крим | AU20: Апрелівка
A21: ДЕРЖЗЕМБАНК | B21: ПАТ «ДЕРЖЗЕМБАНК» | C21: 380968 | D21: 2016-07-27 | E21: 2016-09-27 | J21: 20 | K21: Сумська | L21: СХІД | Q21: Вирощування інших багаторічних культур | AT21: Автономна Республіка Крим | AU21: Арбузівка
A22: ДІАМАНТБАНК | B22: ПАТ "ДІАМАНТБАНК" | C22: 320854 | D22: 2017-04-24 | E22: 2017-06-24 | J22: 21 | K22: Тернопільська | L22: ЗАХІД | Q22: Відтворення рослин | AT22: Автономна Республіка Крим | AU22: Арбузове
A23: Експобанк | B23: АТ "КБ "ЕКСПОБАНК" | C23: 322294 | D23: 2014-09-25 | E23: 2015-01-26 | J23: 22 | K23: Харківська | L23: СХІД | Q23: Відтворення рослин | AT23: Автономна Республіка Крим | AU23: Аркадіївка
A24: Енергобанк | B24: ПАТ "ЕНЕРГОБАНК" | C24: 300272 | D24: 2015-02-13 | E24: 2015-06-12 | J24: 23 | K24: Херсонська | L24: ПІВДЕНЬ | Q24: Тваринництво | AT24: Автономна Республіка Крим | AU24: Армійське
A25: ЕРДЕ банк | B25: АТ "ЕРДЕ БАНК" | C25: 380667 | D25: 2012-10-30 | E25: 2013-01-09 | J25: 24 | K25: Хмельницька | L25: ЦЕНТР | Q25: Розведення великої рогатої худоби молочних порід | AT25: Автономна Республіка Крим | AU25: Армянськ
A26: Євробанк | B26: ПАТ "КБ "ЄВРОБАНК" | C26: 380355 | D26: 2016-06-17 | E26: 2016-08-17 | J26: 25 | K26: Черкаська | L26: ЦЕНТР | Q26: Розведення іншої великої рогатої худоби та буйволів | AT26: Автономна Республіка Крим | AU26: Аромат
A27: Єврогазбанк | B27: АТ "ЄВРОГАЗБАНК" | C27: 380430 | D27: 2014-07-17 | E27: 2014-11-18 | J27: 26 | K27: Чернівецька | L27: ЗАХІД | Q27: Розведення коней та інших тварин родини конячих | AT27: Автономна Республіка Крим | AU27: Ароматне
A28: Західінкомбанк | B28: ПАТ "Західінкомбанк" | C28: 303484 | D28: 2014-05-29 | E28: 2014-07-23 | J28: 27 | K28: Чернігівська | L28: СХІД | Q28: Розведення верблюдів та інших тварин родини верблюдячих | AT28: Автономна Республіка Крим | AU28: Артемівка
A29: Златобанк | B29: АТ "ЗЛАТОБАНК" | C29: 380612 | D29: 2015-02-14 | E29: 2015-05-13 | Q29: Розведення овець і кіз | AT29: Автономна Республіка Крим | AU29: Бабенкове
A30: Золоті ворота | B30: АТ "БАНК ЗОЛОТІ ВОРОТА" | C30: 351931 | D30: 2014-08-04 | E30: 2014-12-05 | Q30: Розведення свиней | AT30: Автономна Республіка Крим | AU30: Багата Ущелина
A31: Імексбанк | B31: АТ "ІМЕКСБАНК" | C31: 328384 | D31: 2015-01-27 | E31: 2015-05-27 | Q31: Розведення свійської птиці | AT31: Автономна Республіка Крим | AU31: Багате
A32: ІНВЕСТБАНК | B32: ПАТ "КБ "ІНВЕСТБАНК" | C32: 328210 | D32: 2016-12-16 | E32: 2017-01-13 | Q32: Розведення інших тварин | AT32: Автономна Республіка Крим | AU32: Багатівка
A33: Інтеграл банк | B33: ПАТ "Інтеграл-банк" | C33: 320735 | D33: 2015-09-16 | E33: 2015-11-27 | Q33: Змішане сільське господарство | AT33: Автономна Республіка Крим | AU33: Багерове
A34: Інтербанк | B34: ПАТ КБ "ІНТЕРБАНК" | C34: 300216 | D34: 2014-04-24 | E34: 2014-07-23 | Q34: Змішане сільське господарство | AT34: Автономна Республіка Крим | AU34: Баланове
A35: Інтеркредит банк | B35: ПАТ "ІнтерКредитБанк" | C35: 307424 | D35: 2014-10-10 | E35: 2015-01-17 | Q35: Допоміжна діяльність у сільському господарстві та післяурожайна діяльність | AT35: Автономна Республіка Крим | AU35: Балки
A36: Камбіо | B36: ПАТ "Банк Камбіо" | C36: 380399 | D36: 2014-12-05 | E36: 2015-03-02 | Q36: Допоміжна діяльність у рослинництві | AT36: Автономна Республіка Крим | AU36: Барабанове
A37: Київ | B37: ПАТ "АКБ "КИЇВ" | C37: 322498 | D37: 2015-02-25 | E37: 2015-06-25 | Q37: Допоміжна діяльність у тваринництві | AT37: Автономна Республіка Крим | AU37: Барсове
A38: Київськая Русь | B38: ПАТ "Банк "Київська Русь" | C38: 319092 | D38: 2015-03-20 | E38: 2015-07-17 | Q38: Післяурожайна діяльність | AT38: Автономна Республіка Крим | AU38: Батальне
A39: КЛАСИКБАНК | B39: ПАТ «КЛАСИКБАНК» | C39: 306704 | D39: 2016-06-15 | E39: 2016-08-12 | Q39: Оброблення насіння для відтворення | AT39: Автономна Республіка Крим | AU39: Бахчисарай
A40: Контракт | B40: ПАТ Банк "Контракт" | C40: 322465 | D40: 2015-10-07 | E40: 2015-12-11 | Q40: Мисливство, відловлювання тварин і надання пов'язаних із ними послуг | AT40: Автономна Республіка Крим | AU40: Бахчівка (Серебрянська сільська рада)
A41: Кредитпромбанк | B41: ПАТ "КРЕДИТПРОМБАНК" | C41: 300863 | D41: 2015-03-03 | E41: 2015-06-03 | Q41: Мисливство, відловлювання тварин і надання пов'язаних із ними послуг | AT41: Автономна Республіка Крим | AU41: Баштанівка
A42: Легбанк | B42: ПАТ "Легбанк" | C42: 300056 | D42: 2014-11-28 | E42: 2015-02-27 | Q42: Лісове господарство та лісозаготівлі | AT42: Автономна Республіка Крим | AU42: Берегове
A43: МР Банк | B43: АКЦІОНЕРНЕ ТОВАРИСТВО "МІЖНАРОДНИЙ РЕЗЕРВНИЙ БАНК" | C43: 320627 | AT43: Автономна Республіка Крим | AU43: Березівка
A44: Мегабанк | B44: АТ «МЕГАБАНК» | C44: 351629 | AT44: Автономна Республіка Крим | AU44: Бєлінське
A45: Меліор | B45: ПАТ "МЕЛІОР БАНК" | C45: 307435 | D45: 2014-10-10 | E45: 2015-02-11 | AT45: Автономна Республіка Крим | AU45: Біла Скеля
A46: Меркурій | B46: АТ БАНК "МЕРКУРІЙ" | C46: 351663 | D46: 2014-03-14 | E46: 2014-06-12 | AT46: Автономна Республіка Крим | AU46: Білогірськ
A47: Михайлівський | B47: ПАТ "БАНК МИХАЙЛІВСЬКИЙ" | C47: 380935 | D47: 2016-05-23 | E47: 2016-07-13 | Q47: Лісівництво та інша діяльність у лісовому господарстві | AT47: Автономна Республіка Крим | AU47: Білоглинка
A48: Міський комерційний банк | B48: ПАТ "МІСЬКИЙ КОМЕРЦІЙНИЙ БАНК" | C48: 339339 | D48: 2014-11-21 | E48: 2015-03-20 | Q48: Лісівництво та інша діяльність у лісовому господарстві | AT48: Автономна Республіка Крим | AU48: Білокам'яне
A49: Надра | B49: ПАТ "КБ "Надра" | C49: 380764 | D49: 2015-02-06 | E49: 2015-06-05 | Q49: Лісозаготівлі | AT49: Автономна Республіка Крим | AU49: Бітумне (Гресівська)
A50: Національний кредит | B50: "БАНК НАЦІОНАЛЬНИЙ КРЕДИТ" | C50: 320702 | D50: 2015-06-08 | E50: 2015-08-31 | Q50: Лісозаготівлі | AT50: Автономна Республіка Крим | AU50: Благодатне
A51: Національні інвестиції | B51: БАНК НАЦІОНАЛЬНІ ІНВЕСТИЦІЇ | C51: 300498 | D51: 2015-09-18 | E51: 2015-12-01 | Q51: Збирання дикорослих недеревних продуктів | AT51: Автономна Республіка Крим | AU51: Ближнє
A52: НК БАНК | B52: АТ "БАНК НАРОДНИЙ КАПІТАЛ" | C52: 322432 | D52: 2017-01-20 | E52: 2017-03-09 | Q52: Збирання дикорослих недеревних продуктів | AT52: Автономна Республіка Крим | AU52: Ближньогородське
A53: Новий | B53: ПАТ АКБ Новий | C53: 305062 | Q53: Надання допоміжних послуг у лісовому господарстві | AT53: Автономна Республіка Крим | AU53: Богатир
A54: Омега | B54: ПАТ "ОМЕГА БАНК" | C54: 300164 | D54: 2015-03-03 | E54: 2015-07-06 | Q54: Надання допоміжних послуг у лісовому господарстві | AT54: Автономна Республіка Крим | AU54: Богачівка (Магазинська)
A55: Південкомбанк | B55: ПАТ "КБ "ПІВДЕНКОМБАНК" | C55: 335946 | D55: 2014-05-26 | E55: 2014-09-26 | Q55: Рибне господарство | AT55: Автономна Республіка Крим | AU55: Болотне
A56: Платинум Банк | B56: ПАТ "Платинум Банк" | C56: 380388 | D56: 2017-01-11 | E56: 2017-02-24 | Q56: Рибальство | AT56: Автономна Республіка Крим | AU56: Бондаренкове
A57: Праймбанк | B57: ПАТ "ПРАЙМ-БАНК" | C57: 300669 | D57: 2014-10-03 | E57: 2015-01-14 | Q57: Морське рибальство | AT57: Автономна Республіка Крим | AU57: Борисівка
A58: Промінвестбанк | B58: ПАТ «Промінвестбанк» | C58: 300012 | Q58: Прісноводне рибальство | AT58: Автономна Республіка Крим | AU58: Бородіно
A59: Промекономбанк | B59: ПАТ "КБ "ПРОМЕКОНОМБАНК" | C59: 334992 | D59: 2014-05-22 | E59: 2014-09-08 | Q59: Рибництво (аквакультура) | AT59: Автономна Республіка Крим | AU59: Ботанічне
A60: Профінбанк | B60: ПАТ "ПРОФІН БАНК" | C60: 334594 | D60: 2015-01-20 | E60: 2015-04-20 | AT60: Автономна Республіка Крим | AU60: Братське
A61: Радикал | B61: ПАТ "РАДИКАЛ БАНК" | C61: 319111 | D61: 2015-07-10 | E61: 2015-11-10 | Q61: Морське рибництво (аквакультура) | AT61: Автономна Республіка Крим | AU61: Братське (Братської)
A62: Реал банк | B62: ПАТ "РЕАЛ БАНК" | C62: 351588 | D62: 2014-03-03 | E62: 2014-05-21 | Q62: Прісноводне рибництво (аквакультура) | AT62: Автономна Республіка Крим | AU62: Брянське
A63: Банк Січ | B63: АТ "Банк Січ" | C63: 380816 | Q63: Добувна промисловість і розроблення кар'єрів | AT63: Автономна Республіка Крим | AU63: Буревісник
A64: Смартбанк | B64: ПУАТ «СМАРТБАНК» | C64: 380786 | D64: 2016-05-25 | E64: 2016-07-25 | Q64: Добування кам'яного та бурого вугілля | AT64: Автономна Республіка Крим | AU64: Валентинове (Кримська)
A65: Софіївський | B65: ПАТ "Банк "Софійський" | C65: 380861 | D65: 2015-12-23 | E65: 2016-04-25 | AT65: Автономна Республіка Крим | AU65: Варварівка
A66: Стандарт | B66: ПАТ КБ "СТАНДАРТ" | C66: 380690 | D66: 2015-02-20 | E66: 2015-06-19 | Q66: Добування кам'яного вугілля | AT66: Автономна Республіка Крим | AU66: Василькове
A67: Старокиївський | B67: ПАТ "СТАРОКИЇВСЬКИЙ БАНК" | C67: 321477 | D67: 2014-06-18 | E67: 2014-09-18 | Q67: Добування кам'яного вугілля | AT67: Автономна Республіка Крим | AU67: Велике (Суворовська)
A68: Столичний | B68: ПАТ АБ "СТОЛИЧНИЙ" | C68: 397133 | D68: 2015-07-10 | E68: 2015-09-18 | Q68: Добування бурого вугілля | AT68: Автономна Республіка Крим | AU68: Велике Садове (Куйбишевська)
A69: Таврика | B69: АТ "БАНК "ТАВРИКА" | C69: 300788 | D69: 2012-12-21 | E69: 2013-03-21 | Q69: Добування бурого вугілля | AT69: Автономна Республіка Крим | AU69: Великосілля
A70: Терра банк | B70: ПАТ "ТЕРРА БАНК" | C70: 380601 | D70: 2014-08-22 | E70: 2014-12-24 | Q70: Добування сирої нафти та природного газу | AT70: Автономна Республіка Крим | AU70: Вересаєве
A71: ТК Кредит | B71: АТ КБ "ТК Кредит" | C71: 322830 | D71: 2016-02-10 | E71: 2016-04-08 | Q71: Добування сирої нафти | AT71: Автономна Республіка Крим | AU71: Верхні Орішники
A72: ТРАСТ | B72: ПАТ БАНК "ТРАСТ" | C72: 380474 | D72: 2016-12-07 | E72: 2016-12-30 | Q72: Добування сирої нафти | AT72: Автономна Республіка Крим | AU72: Верхня Кутузовка
A73: Укоопспілка | B73: АБ "УКООПСПІЛКА" | C73: 322625 | D73: 2015-01-23 | E73: 2015-04-23 | Q73: Добування природного газу | AT73: Автономна Республіка Крим | AU73: Верхньозаморське
A74: Укрбізнесбанк | B74: ПАТ "УКРБІЗНЕСБАНК" | C74: 334969 | D74: 2014-12-26 | E74: 2015-04-24 | Q74: Добування природного газу | AT74: Автономна Республіка Крим | AU74: Верхньокурганне
A75: Укргазпромбанк | B75: ПАТ "УКРГАЗПРОМБАНК" | C75: 320843 | D75: 2015-04-08 | E75: 2015-09-15 | Q75: Добування металевих руд | AT75: Автономна Республіка Крим | AU75: Верхоріччя
A76: Укрінбанк | B76: ПАТ "УКРІНБАНК" | C76: 300142 | D76: 2015-12-25 | E76: 2016-03-23 | Q76: Добування залізних руд | AT76: Автономна Республіка Крим | AU76: Вершинне
A77: Унікомбанк | B77: ПАТ "УНІКОМБАНК" | C77: 335902 | D77: 2015-10-16 | E77: 2015-12-04 | Q77: Добування залізних руд | AT77: Автономна Республіка Крим | AU77: Веселе
A78: УПБ | B78: ПАТ "УПБ" | C78: 300205 | D78: 2015-05-29 | E78: 2015-08-31 | Q78: Добування руд кольорових металів | AT78: Автономна Республіка Крим | AU78: Веселівка
A79: УФС | B79: ПАТ "КБ "УФС" | C79: 377777 | D79: 2014-08-15 | E79: 2014-11-13 | Q79: Добування уранових і торієвих руд | AT79: Автономна Республіка Крим | AU79: Видне
A80: ФІДОБАНК | B80: ПУАТ «ФІДОБАНК» | C80: 300175 | D80: 2016-05-20 | E80: 2016-07-20 | Q80: Добування руд інших кольорових металів | AT80: Автономна Республіка Крим | AU80: Виноградне
A81: Фінанси та кредит | B81: АТ "БАНК "ФІНАНСИ ТА КРЕДИТ" | C81: 300131 | D81: 2015-09-18 | E81: 2015-12-17 | Q81: Добування інших корисних копалин та розроблення кар'єрів | AT81: Автономна Республіка Крим | AU81: Виноградний
A82: ФІНБАНК | B82: ПАТ "ФІНБАНК" | C82: 328685 | D82: 2017-04-07 | E82: 2017-04-27 | Q82: Добування каменю, піску та глини | AT82: Автономна Республіка Крим | AU82: Виноградове
A83: Фінростбанк | B83: АТ "ФІНРОСТБАНК" | C83: 328599 | D83: 2014-07-16 | E83: 2014-10-16 | Q83: Добування декоративного та будівельного каменю, вапняку, гіпсу, крейди та глинистого сланцю | AT83: Автономна Республіка Крим | AU83: Випасне
A84: ФОРТУНА-БАНК | B84: АТ "ФОРТУНА-БАНК" | C84: 300904 | D84: 2017-01-27 | E84: 2017-02-22 | Q84: Добування піску, гравію, глин і каоліну | AT84: Автономна Республіка Крим | AU84: Високогірне
A85: Форум | B85: ПАТ "БАНК ФОРУМ" | C85: 322948 | D85: 2014-03-14 | E85: 2014-06-16 | Q85: Добування корисних копалин та розроблення кар'єрів, н.в.і.у. | AT85: Автономна Республіка Крим | AU85: Вишенне
A86: Хрещатик | B86: ПАТ "КБ "Хрещатик" | C86: 300670 | D86: 2016-04-05 | E86: 2016-06-03 | Q86: Добування мінеральної сировини для хімічної промисловості та виробництва мінеральних добрив | AT86: Автономна Республіка Крим | AU86: Вишнівка (Вишнівської)
A87: Юніон стандарт банк | B87: ПАТ "ЮСБ БАНК" | C87: 305987 | D87: 2015-10-03 | E87: 2015-12-28 | Q87: Добування торфу | AT87: Автономна Республіка Крим | AU87: Вишняківка
A88: Родовід | B88: АТ «РОДОВІД БАНК» | C88: 321712 | D88: 2017-12-20 | E88: 2017-12-20 | Q88: Добування солі | AT88: Автономна Республіка Крим | AU88: Відважне
A89: ФІНАНСОВА ІНІЦІАТИВА | B89: ПАТ «КБ «ФІНАНСОВА ІНІЦІАТИВА» | C89: 380054 | Q89: Добування інших корисних копалин та розроблення кар'єрів, н.в.і.у. | AT89: Автономна Республіка Крим | AU89: Відкрите
A90: КБ Преміум | B90: КБ Преміум | C90: 339555 | Q90: Надання допоміжних послуг у сфері добувної промисловості та розроблення кар'єрів | AT90: Автономна Республіка Крим | AU90: Відрадне
A91: Велес | B91: Велес | C91: 322799 | Q91: Надання допоміжних послуг у сфері добування нафти та природного газу | AT91: Автономна Республіка Крим | AU91: Відродження
A92: Аркада | B92: Аркада | C92: 322335 | Q92: Надання допоміжних послуг у сфері добування нафти та природного газу | AT92: Автономна Республіка Крим | AU92: Вікторівка
A93: Місто Банк | B93: Місто Банк | C93: 328760 | Q93: Надання допоміжних послуг у сфері добування інших корисних копалин та розроблення кар'єрів | AT93: Автономна Республіка Крим | AU93: Віліне
A94: Укркомунбанк | B94: Укркомунбанк | C94: 304988 | Q94: Надання допоміжних послуг у сфері добування інших корисних копалин та розроблення кар'єрів | AT94: Автономна Республіка Крим | AU94: Вільне
A95: ЧБРР | B95: ЧБРР | C95: 384577 | Q95: Переробна промисловість | AT95: Автономна Республіка Крим | AU95: Вітвисте (Єрмаковська)
A96: Капітал | B96: ПАТ «АКБ «КАПІТАЛ» | C96: 334828 | Q96: Виробництво харчових продуктів | AT96: Автономна Республіка Крим | AU96: Вітіне
A97: Земельний Капітал | B97: АТ «КБ «ЗЕМЕЛЬНИЙ КАПІТАЛ» | C97: 305880 | Q97: Виробництво м'яса та м'ясних продуктів | AT97: Автономна Республіка Крим | AU97: Вітрівка (Виноградівська)
Q98: Виробництво м'яса | AT98: Автономна Республіка Крим | AU98: Вітрянка (Ковильнівська сільська рада)
Q99: Виробництво м'яса свійської птиці | AT99: Автономна Республіка Крим | AU99: Владиславівка
Q100: Виробництво м'ясних продуктів | AT100: Автономна Республіка Крим | AU100: Владне
Q101: Перероблення та консервування риби, ракоподібних і молюсків | AT101: Автономна Республіка Крим | AU101: Внукове
Q102: Перероблення та консервування риби, ракоподібних і молюсків | AT102: Автономна Республіка Крим | AU102: Вогневе (Кольцовська)
Q103: Перероблення та консервування фруктів і овочів | AT103: Автономна Республіка Крим | AU103: Вогні (Кукушкінська сільська рада)
Q104: Перероблення та консервування картоплі | AT104: Автономна Республіка Крим | AU104: Водне
Q105: Виробництво фруктових і овочевих соків | AT105: Автономна Республіка Крим | AU105: Водопійне
Q106: Інші види перероблення та консервування фруктів і овочів | AT106: Автономна Республіка Крим | AU106: Водопійне (Сизівська)
Q107: Виробництво олії та тваринних жирів | AT107: Автономна Республіка Крим | AU107: Войкове
Q108: Виробництво олії та тваринних жирів | AT108: Автономна Республіка Крим | AU108: Воїнка (Воїнська)
Q109: Виробництво маргарину і подібних харчових жирів | AT109: Автономна Республіка Крим | AU109: Володимирівка
Q110: Виробництво молочних продуктів | AT110: Автономна Республіка Крим | AU110: Володимирове
Q111: Перероблення молока, виробництво масла та сиру | AT111: Автономна Республіка Крим | AU111: Володине
Q112: Виробництво морозива | AT112: Автономна Республіка Крим | AU112: Волочаївка (Ковильнівська сільська рада)
Q113: Виробництво продуктів борошномельно-круп'яної промисловості, крохмалів та крохмальних продуктів | AT113: Автономна Республіка Крим | AU113: Волошине (Суворівської)
Q114: Виробництво продуктів борошномельно-круп'яної промисловості | AT114: Автономна Республіка Крим | AU114: Воробйове
Q115: Виробництво крохмалів та крохмальних продуктів | AT115: Автономна Республіка Крим | AU115: Ворон
Q116: Виробництво хліба, хлібобулочних і борошняних виробів | AT116: Автономна Республіка Крим | AU116: Воронки (Зиминська сільська рада)
Q117: Виробництво хліба та хлібобулочних виробів; виробництво борошняних кондитерських виробів, тортів і тістечок нетривалого зберігання | AT117: Автономна Республіка Крим | AU117: Воронцівка (Ільїнської)
Q118: Виробництво сухарів і сухого печива; виробництво борошняних кондитерських виробів, тортів і тістечок тривалого зберігання | AT118: Автономна Республіка Крим | AU118: Восточне
Q119: Виробництво макаронних виробів та подібних борошняних виробів | AT119: Автономна Республіка Крим | AU119: Восход
Q120: Виробництво інших харчових продуктів | AT120: Автономна Республіка Крим | AU120: Вузлове
Q121: Виробництво цукру | AT121: Автономна Республіка Крим | AU121: Вулканівка
Q122: Виробництво какао, шоколаду та цукрових кондитерських виробів | AT122: Автономна Республіка Крим | AU122: В'язникове
Q123: Виробництво чаю та кави | AT123: Автономна Республіка Крим | AU123: Гаршине
Q124: Виробництво прянощів і приправ | AT124: Автономна Республіка Крим | AU124: Гаспра
Q125: Виробництво готової їжі та страв | AT125: Автономна Республіка Крим | AU125: Гвардійське (Гвардійської)
Q126: Виробництво дитячого харчування та дієтичних харчових продуктів | AT126: Автономна Республіка Крим | AU126: Генеральське
Q127: Виробництво інших харчових продуктів, н.в.і.у. | AT127: Автономна Республіка Крим | AU127: Геройське
Q128: Виробництво готових кормів для тварин | AT128: Автономна Республіка Крим | AU128: Гірне
Q129: Виробництво готових кормів для тварин, що утримуються на фермах | AT129: Автономна Республіка Крим | AU129: Глазівка
Q130: Виробництво готових кормів для домашніх тварин | AT130: Автономна Республіка Крим | AU130: Глибокий Яр
Q131: Виробництво напоїв | AT131: Автономна Республіка Крим | AU131: Глінка (Вересаєвська сільська рада)
Q132: Виробництво напоїв | AT132: Автономна Республіка Крим | AU132: Голованівка
Q133: Дистиляція, ректифікація та змішування спиртних напоїв | AT133: Автономна Республіка Крим | AU133: Голуба Затока
Q134: Виробництво виноградних вин | AT134: Автономна Республіка Крим | AU134: Голубинка
Q135: Виробництво сидру та інших плодово-ягідних вин | AT135: Автономна Республіка Крим | AU135: Горлинка
Q136: Виробництво інших недистильованих напоїв із зброджуваних продуктів | AT136: Автономна Республіка Крим | AU136: Горностаївка
Q137: Виробництво пива | AT137: Автономна Республіка Крим | AU137: Городнє (Руч'ївська сільська рада)
Q138: Виробництво солоду | AT138: Автономна Республіка Крим | AU138: Гресівський
Q139: Виробництво безалкогольних напоїв; виробництво мінеральних вод та інших вод, розлитих у пляшки | AT139: Автономна Республіка Крим | AU139: Григорівка
Q140: Виробництво тютюнових виробів | AT140: Автономна Республіка Крим | AU140: Гришине (Гришинської)
Q141: Виробництво тютюнових виробів | AT141: Автономна Республіка Крим | AU141: Громівка
Q142: Виробництво тютюнових виробів | AT142: Автономна Республіка Крим | AU142: Громове
Q143: Текстильне виробництво | AT143: Автономна Республіка Крим | AU143: Громовка
Q144: Підготування та прядіння текстильних волокон | AT144: Автономна Республіка Крим | AU144: Грушеве
Q145: Підготування та прядіння текстильних волокон | AT145: Автономна Республіка Крим | AU145: Грушівка
Q146: Ткацьке виробництво | AT146: Автономна Республіка Крим | AU146: Гурзуф
Q147: Ткацьке виробництво | AT147: Автономна Республіка Крим | AU147: Давидове
Q148: Оздоблення текстильних виробів | AT148: Автономна Республіка Крим | AU148: Далеке
Q149: Оздоблення текстильних виробів | AT149: Автономна Республіка Крим | AU149: Данилівка
Q150: Виробництво інших текстильних виробів | AT150: Автономна Республіка Крим | AU150: Дачне
Q151: Виробництво трикотажного полотна | AT151: Автономна Республіка Крим | AU151: Дворіччя
Q152: Виробництво готових текстильних виробів, крім одягу | AT152: Автономна Республіка Крим | AU152: Дворове
Q153: Виробництво килимів і килимових виробів | AT153: Автономна Республіка Крим | AU153: Дем'янівка
Q154: Виробництво канатів, мотузок, шпагату та сіток | AT154: Автономна Республіка Крим | AU154: Денисівка
Q155: Виробництво нетканих текстильних матеріалів та виробів із них, крім одягу | AT155: Автономна Республіка Крим | AU155: Джанкой
Q156: Виробництво інших текстильних виробів технічного та промислового призначення | AT156: Автономна Республіка Крим | AU156: Дивне
Q157: Виробництво інших текстильних виробів, н.в.і.у. | AT157: Автономна Республіка Крим | AU157: Дібрівка
Q158: Виробництво одягу | AT158: Автономна Республіка Крим | AU158: Дібрівське
Q159: Виробництво одягу, крім хутряного | AT159: Автономна Республіка Крим | AU159: Дмитрівка
Q160: Виробництво одягу зі шкіри | AT160: Автономна Республіка Крим | AU160: Дмитрівка (Войковське)
Q161: Виробництво робочого одягу | AT161: Автономна Республіка Крим | AU161: Дмитрове
Q162: Виробництво іншого верхнього одягу | AT162: Автономна Республіка Крим | AU162: Дніпровка
Q163: Виробництво спіднього одягу | AT163: Автономна Республіка Крим | AU163: Добре
Q164: Виробництво іншого одягу й аксесуарів | AT164: Автономна Республіка Крим | AU164: Добролюбовка
Q165: Виготовлення виробів із хутра | AT165: Автономна Республіка Крим | AU165: Добрушине
Q166: Виготовлення виробів із хутра | AT166: Автономна Республіка Крим | AU166: Дозорне
Q167: Виробництво трикотажного та в'язаного одягу | AT167: Автономна Республіка Крим | AU167: Докучаєве
Q168: Виробництво панчішно-шкарпеткових виробів | AT168: Автономна Республіка Крим | AU168: Долинівка
Q169: Виробництво іншого трикотажного та в'язаного одягу | AT169: Автономна Республіка Крим | AU169: Долинка (Митяївська)
Q170: Виробництво шкіри, виробів зі шкіри та інших матеріалів | AT170: Автономна Республіка Крим | AU170: Долинка (Новопавлівської)
Q171: Дублення шкур і оздоблення шкіри; виробництво дорожніх виробів, сумок, лимарно-сідельних виробів; вичинка та фарбування хутра | AT171: Автономна Республіка Крим | AU171: Долинне
Q172: Дублення шкур і оздоблення шкіри; вичинка та фарбування хутра | AT172: Автономна Республіка Крим | AU172: Донське
Q173: Виробництво дорожніх виробів, сумок, лимарно-сідельних виробів зі шкіри та інших матеріалів | AT173: Автономна Республіка Крим | AU173: Дорожнє
Q174: Виробництво взуття | AT174: Автономна Республіка Крим | AU174: Доходне
Q175: Виробництво взуття | AT175: Автономна Республіка Крим | AU175: Дрофине
Q176: Оброблення деревини та виготовлення виробів з деревини та корка, крім меблів; виготовлення виробів із соломки та рослинних матеріалів для плетіння | AT176: Автономна Республіка Крим | AU176: Дружне
Q177: Лісопильне та стругальне виробництво | AT177: Автономна Республіка Крим | AU177: Дубки
Q178: Лісопильне та стругальне виробництво | AT178: Автономна Республіка Крим | AU178: Дятлівка
Q179: Виготовлення виробів з деревини, корка, соломки та рослинних матеріалів для плетіння | AT179: Автономна Республіка Крим | AU179: Євпаторія
Q180: Виробництво фанери, дерев'яних плит і панелей, шпону | AT180: Автономна Республіка Крим | AU180: Єгорове
Q181: Виробництво щитового паркету | AT181: Автономна Республіка Крим | AU181: Єлизаветове
Q182: Виробництво інших дерев'яних будівельних конструкцій і столярних виробів | AT182: Автономна Республіка Крим | AU182: Єрмакове
Q183: Виробництво дерев'яної тари | AT183: Автономна Республіка Крим | AU183: Єрофєєве
Q184: Виробництво інших виробів з деревини; виготовлення виробів з корка, соломки та рослинних матеріалів для плетіння | AT184: Автономна Республіка Крим | AU184: Жайворонки
Q185: Виробництво паперу та паперових виробів | AT185: Автономна Республіка Крим | AU185: Желябовка
Q186: Виробництво паперової маси, паперу та картону | AT186: Автономна Республіка Крим | AU186: Жемчужина
Q187: Виробництво паперової маси | AT187: Автономна Республіка Крим | AU187: Жемчужина Криму
Q188: Виробництво паперу та картону | AT188: Автономна Республіка Крим | AU188: Живописне
Q189: Виготовлення виробів з паперу та картону | AT189: Автономна Республіка Крим | AU189: Жилине
Q190: Виробництво гофрованого паперу та картону, паперової та картонної тари | AT190: Автономна Республіка Крим | AU190: Жовтокам'янка (Суворовська)
Q191: Виробництво паперових виробів господарсько-побутового та санітарно-гігієнічного призначення | AT191: Автономна Республіка Крим | AU191: Журавки
Q192: Виробництво паперових канцелярських виробів | AT192: Автономна Республіка Крим | AU192: Журавлі
Q193: Виробництво шпалер | AT193: Автономна Республіка Крим | AU193: Журавлівка
Q194: Виробництво інших виробів з паперу та картону | AT194: Автономна Республіка Крим | AU194: Завіт-Ленінський
Q195: Поліграфічна діяльність, тиражування записаної інформації | AT195: Автономна Республіка Крим | AU195: Завітне
Q196: Поліграфічна діяльність і надання пов'язаних із нею послуг | AT196: Автономна Республіка Крим | AU196: Заводське
Q197: Друкування газет | AT197: Автономна Республіка Крим | AU197: Задорне
Q198: Друкування іншої продукції | AT198: Автономна Республіка Крим | AU198: Зайцеве
Q199: Виготовлення друкарських форм і надання інших поліграфічних послуг | AT199: Автономна Республіка Крим | AU199: Заливне
Q200: Брошурувально-палітурна діяльність і надання пов'язаних із нею послуг | AT200: Автономна Республіка Крим | AU200: Залізничне
... 924 more rows
